{"text_format":"1","workbook":"xlsx","n_sheets":12,"sheets":["Dt","General","Resumen","Estado_del_arte","Objetivos","Metodología","Cronograma","Productos","Integrantes","Presupuesto","Impactos","Bibliografía"],"not_rendered":{"charts":0,"images":1,"macros":1,"external_links":0,"defined_names":49,"comments":5,"pivot_tables":0},"unopened":[],"bounds":{"document_bytes":16777216,"sheet_cells":100000,"rows_first":2000,"rows_last":500,"rows_between":2000,"halvings":0,"cell_chars":16384,"cell_head_chars":4096},"cells_cut":0,"cells_raw":0,"read":"whole","date_system":"1900"}

{"sheet":"Dt","index":0,"n_rows":2004,"n_cols":648,"rows_kept":2004,"cut":false,"hidden":true,"merged":[]}
[null,"No eliminar Hoja … :)))",null,null,null,null,null,null,null,null,null,null,null,null,null,null,null,null,null,null,null,null,null,null,null,null,"No","Campo ","1_Opcion","2_Opcion",null,"Avaya1719",null,null,null,null,null,null,null,null,null,null,"http://scienti.colciencias.gov.co:8080/gruplac/jsp/visualiza/visualizagr.jsp?nro="]
[null,null,null,null,null,null,null,null,null,null,null,null,null,null,null,null,null,null,null,null,null,null,null,null,null,null,1,"Sedes","Calle 100",null,null,null,null,null,null,null,null,null,null,null,null,null,null,null,null,"BB",null,{"$f":"MIN(BD3:BD300)","v":4},{"$f":"MAX(BD3:BD300)","v":300}]
[null,null,null,null," ",null,null,null,null,null,null,null,null,null,null,null,null,null,null,null,null,null,null,null,null,null,2,"Sedes","Campus Cajica",null,null,null,null,null,null,null,null,null,null,"Hoja","FAC","Grupo","COD","Clas","Link","Lineas","Fila Grupo","Min","Max"," ",null,null,"COD","Lineas","Cel","Fila",null,null,"Código de Grupo",null,null,null,null,"Hora","Agente","Agente"]
[null,null,null,null,null,null,null,null,null,null,null,null,null,null,null,null,null,null,null,null,null,null,null,null,null,null,3,"Sedes","Medicina",null,null,null,null,null,null,null,null,1,{"$f":"COUNTIF($AN$4:$AN$78,AL4)","v":1},3,"CIAS","Fitoplasmas y Virus","COL0028687","C","http://scienti.colciencias.gov.co:8080/gruplac/jsp/visualiza/visualizagr.jsp?nro=00000000008436",{"$f":"$AT$2&AV4&\":\"&$AT$2&AW4","v":"BB10:BB10"},{"$f":"ROW()","v":4},{"$f":"MINA(IF(AQ4=$BA$4:$BA$300,$BD$4:$BD$300))","v":10},{"$f":"MAXA(IF(AQ4=$BA$4:$BA$300,$BD$4:$BD$300))","v":10}," ",null,null,"COL0049659","Medios de comunicación, educación y salud",1,{"$f":"ROW()","v":4},null,null,"COL0015722",{"$f":"COUNTIF($AQ$4:$AQ$78,BG4)","v":1},null,null,null,"19:54:00","a","a",{"$f":"DMIN(BL3:BM12,\"hora\",BN3:BN4)","v":0.4548611111111111},"|"]
[null,null,null,null,null,null,null,null,null,null,null,null,null,null,null,null,null,null,null,null,null,null,null,null,null,null,4,"Sedes","Otros",null,null,null,null,null,null,null,null,2,1,4,"CIAS","Grupo de investigación en Biodiversidad y ecología de abejas silvestres","COL0031959","B","http://scienti.colciencias.gov.co:8080/gruplac/jsp/visualiza/visualizagr.jsp?nro=00000000001366",{"$f":"$AT$2&AV5&\":\"&$AT$2&AW5","v":"BB11:BB15"},{"$f":"ROW()","v":5},{"$f":"MINA(IF(AQ5=$BA$4:$BA$300,$BD$4:$BD$300))","v":11},{"$f":"MAXA(IF(AQ5=$BA$4:$BA$300,$BD$4:$BD$300))","v":15}," ",null,null,"COL0049659","Salud Pública y Nutrición, Prevención de la Enfermedad y Promoción de la Salud",2,{"$f":"ROW()","v":5},null,null,"COL0026486",1,null,null,null,"09:54:00","b","B"]
[null,null,null,null,null,null,null,null,null,null,null,null,null,null,null,null,null,null,null,null,null,null,null,null,null,null,1,"Facultad","Ciencias Básicas","CIAS",null,null,null,null,null,null,null,3,1,12,"CIAS","MATRIX","COL0039321","C","http://scienti.colciencias.gov.co:8080/gruplac/jsp/visualiza/visualizagr.jsp?nro=00000000002208","BB42:BB46",{"$f":"ROW()","v":6},{"$f":"MINA(IF(AQ6=$BA$4:$BA$300,$BD$4:$BD$300))","v":42},{"$f":"MAXA(IF(AQ6=$BA$4:$BA$300,$BD$4:$BD$300))","v":46}," ",null,null,"COL0062704","Procesos Organizacionales (Prospectiva de las Organizaciones), Programáticos y Políticos para la Promoción del Desarrollo.",1,{"$f":"ROW()","v":6},null,null,"COL0027367",1,null,null,null,"17:54:00","c","c"]
[null,null,null,null,null,null,null,null,null,null,null,null,null,null,null,null,null,null,null,null,null,null,null,null,null,null,2,"Facultad","Ciencias Económicas","ECO",null,null,null,null,null,null,null,4,1,18,"CIAS","Desarrollo e integración de estrategias alternativas para la protección de cultivos de importancia económica, con énfasis en control biológico.","COL0032278","B","http://scienti.colciencias.gov.co:8080/gruplac/jsp/visualiza/visualizagr.jsp?nro=00000000001399","BB65:BB66",{"$f":"ROW()","v":7},{"$f":"MINA(IF(AQ7=$BA$4:$BA$300,$BD$4:$BD$300))","v":65},{"$f":"MAXA(IF(AQ7=$BA$4:$BA$300,$BD$4:$BD$300))","v":66}," ",null,null,"COL0062704","Prospectiva de las Organizaciones",2,{"$f":"ROW()","v":7},null,null,"COL0018448",1,null,null,null,"10:55:00","a"]
[null,null,null,null,null,null,null,null,null,null,null,null,null,null,null,null,null,null,null,null,null,null,null,null,null,null,3,"Facultad","Derecho","DER",null,null,null,null,null,null,null,5,1,26,"CIAS","Grupo de Micología y Fitopatologia ","COL0013719","A1","http://scienti.colciencias.gov.co:8080/gruplac/jsp/visualiza/visualizagr.jsp?nro=00000000001127","BB107:BB111",{"$f":"ROW()","v":8},{"$f":"MINA(IF(AQ8=$BA$4:$BA$300,$BD$4:$BD$300))","v":107},{"$f":"MAXA(IF(AQ8=$BA$4:$BA$300,$BD$4:$BD$300))","v":111}," ",null,null,"COL0062704","Responsabilidad Ambiental",3,{"$f":"ROW()","v":8},null,null,"COL0028767",1,null,null,null,"11:45:00","a"]
[null,null,null,null,null,null,null,null,null,null,null,null,null,null,null,null,null,null,null,null,null,null,null,null,null,null,4,"Facultad","Educación y Humanidades","HUM",null,null,null,null,null,null,null,6,1,28,"CIAS","Fitopatologia molecular","COL0086179","C","http://scienti.colciencias.gov.co:8080/gruplac/jsp/visualiza/visualizagr.jsp?nro=00000000007907","BB118:BB120",{"$f":"ROW()","v":9},{"$f":"MINA(IF(AQ9=$BA$4:$BA$300,$BD$4:$BD$300))","v":118},{"$f":"MAXA(IF(AQ9=$BA$4:$BA$300,$BD$4:$BD$300))","v":120}," ",null,null,"COL0062704","Responsabilidad Social Empresarial",4,{"$f":"ROW()","v":9},null,null,"COL0028918",1,null,null,null,"15:12:00","b"]
[null,null,null,null,null,null,null,null,null,null,null,null,null,null,null,null,null,null,null,null,null,null,null,null,null,null,5,"Facultad","Estudios a Distancia","DIS",null,null,null,null,null,null,null,7,1,30,"CIAS","Estadística, Control y Optimización","COL0136423","C","http://scienti.colciencias.gov.co:8080/gruplac/jsp/visualiza/visualizagr.jsp?nro=00000000013845","BB125:BB129",{"$f":"ROW()","v":10},{"$f":"MINA(IF(AQ10=$BA$4:$BA$300,$BD$4:$BD$300))","v":125},{"$f":"MAXA(IF(AQ10=$BA$4:$BA$300,$BD$4:$BD$300))","v":129}," ",null,null,"COL0028687","Fitoplasmas",1,{"$f":"ROW()","v":10},null,null,"COL0031824",1,null,null,null,"23:12:00","b"]
[null,null,null,null,null,null,null,null,null,null,null,null,null,null,null,null,null,null,null,null,null,null,null,null,null,null,6,"Facultad","Ingeniería","ING",null,null,null,null,null,null,null,8,1,32,"CIAS","Ictiología","COL0038084","C","http://scienti.colciencias.gov.co:8080/gruplac/jsp/visualiza/visualizagr.jsp?nro=00000000002068","BB134:BB134",{"$f":"ROW()","v":11},{"$f":"MINA(IF(AQ11=$BA$4:$BA$300,$BD$4:$BD$300))","v":134},{"$f":"MAXA(IF(AQ11=$BA$4:$BA$300,$BD$4:$BD$300))","v":134}," ",null,null,"COL0031959","Análisis de redes de interacción planta-polinizador a partir de técnicas palinológicas",1,{"$f":"ROW()","v":11},null,null,"COL0031959",1,null,null,null,"06:20:00","c"]
[null,null,null,null,null,null,null,null,null,null,null,null,null,null,null,null,null,null,null,null,null,null,null,null,null,null,7,"Facultad","Medicina y Ciencias de la Salud","MED",null,null,null,null,null,null,null,9,1,41,"CIAS","Grupo de Investigación en Hidrobiología Aplicada (HIDROBIA)","COL0048492","D","http://scienti.colciencias.gov.co:8080/gruplac/jsp/visualiza/visualizagr.jsp?nro=00000000005664","BB165:BB168",{"$f":"ROW()","v":12},{"$f":"MINA(IF(AQ12=$BA$4:$BA$300,$BD$4:$BD$300))","v":165},{"$f":"MAXA(IF(AQ12=$BA$4:$BA$300,$BD$4:$BD$300))","v":168}," ",null,null,"COL0031959","Cría de especies del género Bombus para su utilización como polinizadores en cultivos de la sabana Cundi-boyacense.",2,{"$f":"ROW()","v":12},null,null,"COL0032278",1,null,null,null,"12:30:00","a"]
[null,null,null,null,null,null,null,null,null,null,null,null,null,null,null,null,null,null,null,null,null,null,null,null,null,null,8,"Facultad","Relaciones Internacionales, Estrategia y Seguridad","EES",null,null,null,null,null,null,null,10,1,42,"CIAS","Agrobiología de especies vegetales promisorias de clima frío","COL0077814","C","http://scienti.colciencias.gov.co:8080/gruplac/jsp/visualiza/visualizagr.jsp?nro=00000000006560","BB169:BB169",{"$f":"ROW()","v":13},{"$f":"MINA(IF(AQ13=$BA$4:$BA$300,$BD$4:$BD$300))","v":169},{"$f":"MAXA(IF(AQ13=$BA$4:$BA$300,$BD$4:$BD$300))","v":169}," ",null,null,"COL0031959","Diversidad, biología y taxonomia de polinizadores colombianos",3,{"$f":"ROW()","v":13},null,null,"COL0033239",1]
[null,null,null,null,null,null,null,null,null,null,null,null,null,null,null,null,null,null,null,null,null,null,null,null,null,null,1,"Programa","CIAS","Biología Aplicada",2,null,null,null,null,null,null,11,1,43,"CIAS","Grupo Integrado de Investigaciones en Química y Biología (InQuiBio)","COL0077707","A1","http://scienti.colciencias.gov.co:8080/gruplac/jsp/visualiza/visualizagr.jsp?nro=00000000008358","BB170:BB178",{"$f":"ROW()","v":14},{"$f":"MINA(IF(AQ14=$BA$4:$BA$300,$BD$4:$BD$300))","v":170},{"$f":"MAXA(IF(AQ14=$BA$4:$BA$300,$BD$4:$BD$300))","v":178}," ",null,null,"COL0031959","Ecología de la polinización: estudios del uso sostenible de especies de abejas silvestres como polinizadores de hortalizas y frutales",4,{"$f":"ROW()","v":14},null,null,"COL0036025",1]
[null,null,null,null,null,null,null,null,null,null,null,null,null,null,null,null,null,null,null,null,null,null,null,null,null,null,2,"Programa","CIAS","Tecnología en Horticultura",3,null,null,null,null,null,null,12,1,44,"CIAS","GRUPO DE INVESTIGACIÓN EN QUÍMICA AMBIENTAL Y TECNOLOGÍAS LIMPIAS - QUATELI","COL0110436","C","http://scienti.colciencias.gov.co:8080/gruplac/jsp/visualiza/visualizagr.jsp?nro=00000000011141","BB179:BB184",{"$f":"ROW()","v":15},{"$f":"MINA(IF(AQ15=$BA$4:$BA$300,$BD$4:$BD$300))","v":179},{"$f":"MAXA(IF(AQ15=$BA$4:$BA$300,$BD$4:$BD$300))","v":184}," ",null,null,"COL0031959","Modelos biológicos y ecológicos de insectos benéficos",5,{"$f":"ROW()","v":15},null,null,"COL0038084",1]
[null,null,null,null,null,null,null,null,null,null,null,null,null,null,null,null,null,null,null,null,null,null,null,null,null,null,3,"Programa","CIAS","Maestría en Biología Aplicada",33,null,null,null,null,null,null,13,1,56,"CIAS","ECMU (Evaluacion en Competencias y Matemáticas Universitarias)","COL0110329","C","http://scienti.colciencias.gov.co:8080/gruplac/jsp/visualiza/visualizagr.jsp?nro=00000000011130","BB238:BB240",{"$f":"ROW()","v":16},{"$f":"MINA(IF(AQ16=$BA$4:$BA$300,$BD$4:$BD$300))","v":238},{"$f":"MAXA(IF(AQ16=$BA$4:$BA$300,$BD$4:$BD$300))","v":240}," ",null,null,"COL0044859","Multimedia Educativa",1,{"$f":"ROW()","v":16},null,null,"COL0039321",1]
[null,null,null,null,null,null,null,null,null,null,null,null,null,null,null,null,null,null,null,null,null,null,null,null,null,null,3,"Programa","CIAS","Departamento de Matemáticas",34,null,null,null,null,null,null,14,1,58,"CIAS","Grupo de Docencia e Investigación en Física","COL0138796","C","http://scienti.colciencias.gov.co:8080/gruplac/jsp/visualiza/visualizagr.jsp?nro=00000000014082","BB246:BB250",{"$f":"ROW()","v":17},{"$f":"MINA(IF(AQ17=$BA$4:$BA$300,$BD$4:$BD$300))","v":246},{"$f":"MAXA(IF(AQ17=$BA$4:$BA$300,$BD$4:$BD$300))","v":250}," ",null,null,"COL0044859","Sistemas Multimedia",2,{"$f":"ROW()","v":17},null,null,"COL0045848",1]
[null,null,null,null,null,null,null,null,null,null,null,null,null,null,null,null,null,null,null,null,null,null,null,null,null,null,3,"Programa","CIAS","Departamento de Física",35,null,null,null,null,null,null,15,1,11,"DER","GRUPO DE DERECHO PÚBLICO ","COL0028918","C","http://scienti.colciencias.gov.co:8080/gruplac/jsp/visualiza/visualizagr.jsp?nro=00000000001079","BB32:BB41",{"$f":"ROW()","v":18},{"$f":"MINA(IF(AQ18=$BA$4:$BA$300,$BD$4:$BD$300))","v":32},{"$f":"MAXA(IF(AQ18=$BA$4:$BA$300,$BD$4:$BD$300))","v":41}," ",null,null,"COL0044859","Procesamiento digital de imágenes y Visión por computador",3,{"$f":"ROW()","v":18},null,null,"COL0047566",1]
[null,null,null,null,null,null,null,null,null,null,null,null,null,null,null,null,null,null,null,null,null,null,null,null,null,null,3,"Programa","CIAS","Departamento de Química",36,null,null,null,null,null,null,16,1,47,"DER","Grupo de Derecho Privado","COL0128047","D","http://scienti.colciencias.gov.co:8080/gruplac/jsp/visualiza/visualizagr.jsp?nro=00000000012964","BB197:BB198",{"$f":"ROW()","v":19},{"$f":"MINA(IF(AQ19=$BA$4:$BA$300,$BD$4:$BD$300))","v":197},{"$f":"MAXA(IF(AQ19=$BA$4:$BA$300,$BD$4:$BD$300))","v":198}," ",null,null,"COL0044859","Visualización y Computación Gráfica",4,{"$f":"ROW()","v":19},null,null,"COL0047762",1]
[null,null,null,null,null,null,null,null,null,null,null,null,null,null,null,null,null,null,null,null,null,null,null,null,null,null,3,"Programa","CIAS","Doctorado en Ciencias Aplicadas",33,null,null,null,null,null,null,17,1,68,"DER","GRUPO DE INVESTIGACIÓN EN POLÍTICAS PUBLICAS-GIPP","COL0142449","NR","http://scienti.colciencias.gov.co:8080/gruplac/jsp/visualiza/visualizagr.jsp?nro=00000000014449","BB278:BB284",{"$f":"ROW()","v":20},{"$f":"MINA(IF(AQ20=$BA$4:$BA$300,$BD$4:$BD$300))","v":278},{"$f":"MAXA(IF(AQ20=$BA$4:$BA$300,$BD$4:$BD$300))","v":284}," ",null,null,"COL0047762","Desarrollo de modelos de ingeniería de tejido humano",1,{"$f":"ROW()","v":20},null,null,"COL0049659",1]
[null,null,null,null,null,null,null,null,null,null,null,null,null,null,null,null,null,null,null,null,null,null,null,null,null,null,4,"Programa","DER","Derecho",16,null,null,null,null,null,null,18,1,2,"DIS","PROPPIO: Procesos organizacionales, programaticos y políticos para la promoción del desarrollo","COL0062704","C","http://scienti.colciencias.gov.co:8080/gruplac/jsp/visualiza/visualizagr.jsp?nro=00000000006477","BB6:BB9",{"$f":"ROW()","v":21},{"$f":"MINA(IF(AQ21=$BA$4:$BA$300,$BD$4:$BD$300))","v":6},{"$f":"MAXA(IF(AQ21=$BA$4:$BA$300,$BD$4:$BD$300))","v":9}," ",null,null,"COL0047762","Metabolismo Oseo - Bone Metabolism",2,{"$f":"ROW()","v":21},null,null,"COL0049999",1]
[null,null,null,null,null,null,null,null,null,null,null,null,null,null,null,null,null,null,null,null,null,null,null,null,null,null,5,"Programa","DER","Maestría en Derecho Procesal Penal",47,null,null,null,null,null,null,19,1,8,"DIS","INCONDIS","COL0127649","D","http://scienti.colciencias.gov.co:8080/gruplac/jsp/visualiza/visualizagr.jsp?nro=00000000012918","BB24:BB24",{"$f":"ROW()","v":22},{"$f":"MINA(IF(AQ22=$BA$4:$BA$300,$BD$4:$BD$300))","v":24},{"$f":"MAXA(IF(AQ22=$BA$4:$BA$300,$BD$4:$BD$300))","v":24}," ",null,null,"COL0126015","INMUNODERMATOLOGIA",1,{"$f":"ROW()","v":22},null,null,"COL0050294",1]
[null,null,null,null,null,null,null,null,null,null,null,null,null,null,null,null,null,null,null,null,null,null,null,null,null,null,6,"Programa","DER","Maestría en Derecho Administrativo",48,null,null,null,null,null,null,20,1,20,"DIS","\"PYDES\" Pedagogía y didáctica en la educación superior","COL0018448","B","http://scienti.colciencias.gov.co:8080/gruplac/jsp/visualiza/visualizagr.jsp?nro=00000000000929","BB70:BB72",{"$f":"ROW()","v":23},{"$f":"MINA(IF(AQ23=$BA$4:$BA$300,$BD$4:$BD$300))","v":70},{"$f":"MAXA(IF(AQ23=$BA$4:$BA$300,$BD$4:$BD$300))","v":72}," ",null,null,"COL0126015","PSORIASIS",2,{"$f":"ROW()","v":23},null,null,"COL0052163",1]
[null,null,null,null,null,null,null,null,null,null,null,null,null,null,null,null,null,null,null,null,null,null,null,null,null,null,7,"Programa","DER","Maestría en Instituciones Jurídicas de la Fuerza Pública",49,null,null,null,null,null,null,21,1,22,"DIS","Medios, Mediaciones y Procesos en Educación a Distancia","COL0067504","C","http://scienti.colciencias.gov.co:8080/gruplac/jsp/visualiza/visualizagr.jsp?nro=00000000004308","BB79:BB84",{"$f":"ROW()","v":24},{"$f":"MINA(IF(AQ24=$BA$4:$BA$300,$BD$4:$BD$300))","v":79},{"$f":"MAXA(IF(AQ24=$BA$4:$BA$300,$BD$4:$BD$300))","v":84}," ",null,null,"COL0127649","Línea en Contabilidad Integral",1,{"$f":"ROW()","v":24},null,null,"COL0052181",1]
[null,null,null,null,null,null,null,null,null,null,null,null,null,null,null,null,null,null,null,null,null,null,null,null,null,null,8,"Programa","DER","Especialización en Derecho Administrativo",50,null,null,null,null,null,null,22,1,39,"DIS","PIREO \"Procesos de Integración, Regionalización y Estructuras Organizacionales\"","COL0066229","D","http://scienti.colciencias.gov.co:8080/gruplac/jsp/visualiza/visualizagr.jsp?nro=00000000004242","BB157:BB159",{"$f":"ROW()","v":25},{"$f":"MINA(IF(AQ25=$BA$4:$BA$300,$BD$4:$BD$300))","v":157},{"$f":"MAXA(IF(AQ25=$BA$4:$BA$300,$BD$4:$BD$300))","v":159}," ",null,null,"COL0015722","BIOÉTICA. Biopolítica y biojurídica",1,{"$f":"ROW()","v":25},null,null,"COL0065804",1]
[null,null,null,null,null,null,null,null,null,null,null,null,null,null,null,null,null,null,null,null,null,null,null,null,null,null,9,"Programa","DER","Especialización en Procedimiento Penal, Constitucional y Justicia Militar",51,null,null,null,null,null,null,23,1,61,"DIS","Modelos de simulación ICDIST","COL0069296","NR","http://scienti.colciencias.gov.co:8080/gruplac/jsp/visualiza/visualizagr.jsp?nro=00000000004423","BB257:BB257",{"$f":"ROW()","v":26},{"$f":"MINA(IF(AQ26=$BA$4:$BA$300,$BD$4:$BD$300))","v":257},{"$f":"MAXA(IF(AQ26=$BA$4:$BA$300,$BD$4:$BD$300))","v":257}," ",null,null,"COL0015722","LIDERAZGO Y EDUCACIÓN",2,{"$f":"ROW()","v":26},null,null,"COL0066229",1]
[null,null,null,null,null,null,null,null,null,null,null,null,null,null,null,null,null,null,null,null,null,null,null,null,null,null,10,"Programa","DER","Especialización en Derecho Sancionatorio",52,null,null,null,null,null,null,24,1,67,"DIS","INAMPE","COL0142331","NR","http://scienti.colciencias.gov.co:8080/gruplac/jsp/visualiza/visualizagr.jsp?nro=00000000014438","BB275:BB277",{"$f":"ROW()","v":27},{"$f":"MINA(IF(AQ27=$BA$4:$BA$300,$BD$4:$BD$300))","v":275},{"$f":"MAXA(IF(AQ27=$BA$4:$BA$300,$BD$4:$BD$300))","v":277}," ",null,null,"COL0005439","MODELACIÓN NUMÉRICA",1,{"$f":"ROW()","v":27},null,null,"COL0066669",1]
[null,null,null,null,null,null,null,null,null,null,null,null,null,null,null,null,null,null,null,null,null,null,null,null,null,null,11,"Programa","DER","Especialización en Derechos Humanos y Sistemas de Protección",53,null,null,null,null,null,null,25,1,13,"ECO","Grupo de Estudios en Ciencias Económicas - CIE","COL0050294","C","http://scienti.colciencias.gov.co:8080/gruplac/jsp/visualiza/visualizagr.jsp?nro=00000000003322","BB47:BB49",{"$f":"ROW()","v":28},{"$f":"MINA(IF(AQ28=$BA$4:$BA$300,$BD$4:$BD$300))","v":47},{"$f":"MAXA(IF(AQ28=$BA$4:$BA$300,$BD$4:$BD$300))","v":49}," ",null,null,"COL0005439","ORDENACIÓN DEL TERRITORIO",2,{"$f":"ROW()","v":28},null,null,"COL0066768",1]
[null,null,null,null,null,null,null,null,null,null,null,null,null,null,null,null,null,null,null,null,null,null,null,null,null,null,12,"Programa","DIS","Administración de Empresas",17,null,null,null,null,null,null,26,1,17,"ECO","Grupo de Estudios Macroeconómicos","COL0027367","C","http://scienti.colciencias.gov.co:8080/gruplac/jsp/visualiza/visualizagr.jsp?nro=00000000000855","BB62:BB64",{"$f":"ROW()","v":29},{"$f":"MINA(IF(AQ29=$BA$4:$BA$300,$BD$4:$BD$300))","v":62},{"$f":"MAXA(IF(AQ29=$BA$4:$BA$300,$BD$4:$BD$300))","v":64}," ",null,null,"COL0005439","PAVIMENTOS",3,{"$f":"ROW()","v":29},null,null,"COL0067504",1]
[null,null,null,null,null,null,null,null,null,null,null,null,null,null,null,null,null,null,null,null,null,null,null,null,null,null,12,"Programa","DIS","Administración de seguridad y Salud Ocupacional ","X",null,null,null,null,null,null,27,1,40,"ECO","Grupo de estudios contemporáneos en contabilidad, gestión y organizaciones","COL0028767","B","http://scienti.colciencias.gov.co:8080/gruplac/jsp/visualiza/visualizagr.jsp?nro=00000000001069","BB160:BB164",{"$f":"ROW()","v":30},{"$f":"MINA(IF(AQ30=$BA$4:$BA$300,$BD$4:$BD$300))","v":160},{"$f":"MAXA(IF(AQ30=$BA$4:$BA$300,$BD$4:$BD$300))","v":164}," ",null,null,"COL0005439","SUELOS",4,{"$f":"ROW()","v":30},null,null,"COL0068762",1]
[null,null,null,null,null,null,null,null,null,null,null,null,null,null,null,null,null,null,null,null,null,null,null,null,null,null,13,"Programa","DIS","Contaduría Pública",18,null,null,null,null,null,null,28,1,64,"ECO","GECS (Grupo de Investigación en Contabilidad y Sociedad)","COL0117722","NR","http://scienti.colciencias.gov.co:8080/gruplac/jsp/visualiza/visualizagr.jsp?nro=00000000011887","BB265:BB266",{"$f":"ROW()","v":31},{"$f":"MINA(IF(AQ31=$BA$4:$BA$300,$BD$4:$BD$300))","v":265},{"$f":"MAXA(IF(AQ31=$BA$4:$BA$300,$BD$4:$BD$300))","v":266}," ",null,null,"COL0005439","TRANSPORTES",5,{"$f":"ROW()","v":31},null,null,"COL0069296",1]
[null,null,null,null,null,null,null,null,null,null,null,null,null,null,null,null,null,null,null,null,null,null,null,null,null,null,14,"Programa","DIS","Ingeniería Civil",19,null,null,null,null,null,null,29,1,21,"EES","Estudios Internacionales y Políticos","COL0066768","B","http://scienti.colciencias.gov.co:8080/gruplac/jsp/visualiza/visualizagr.jsp?nro=00000000004270","BB73:BB78",{"$f":"ROW()","v":32},{"$f":"MINA(IF(AQ32=$BA$4:$BA$300,$BD$4:$BD$300))","v":73},{"$f":"MAXA(IF(AQ32=$BA$4:$BA$300,$BD$4:$BD$300))","v":78}," ",null,null,"COL0028918","Derecho Constitucional",1,{"$f":"ROW()","v":32},null,null,"COL0048492",1]
[null,null,null,null,null,null,null,null,null,null,null,null,null,null,null,null,null,null,null,null,null,null,null,null,null,null,15,"Programa","DIS","Ingeniería Industrial",20,null,null,null,null,null,null,30,1,53,"EES","Sociedad, Estrategia y Seguridad","COL0066669","C","http://scienti.colciencias.gov.co:8080/gruplac/jsp/visualiza/visualizagr.jsp?nro=00000000004263","BB220:BB223",{"$f":"ROW()","v":33},{"$f":"MINA(IF(AQ33=$BA$4:$BA$300,$BD$4:$BD$300))","v":220},{"$f":"MAXA(IF(AQ33=$BA$4:$BA$300,$BD$4:$BD$300))","v":223}," ",null,null,"COL0028918","Derecho Historia y Filosofía",2,{"$f":"ROW()","v":33},null,null,"COL0050982",1]
[null,null,null,null,null,null,null,null,null,null,null,null,null,null,null,null,null,null,null,null,null,null,null,null,null,null,16,"Programa","DIS","Ingeniería Informática",21,null,null,null,null,null,null,31,1,9,"HUM","LIDERAZGO","COL0015722","A","http://scienti.colciencias.gov.co:8080/gruplac/jsp/visualiza/visualizagr.jsp?nro=00000000000744","BB25:BB26",{"$f":"ROW()","v":34},{"$f":"MINA(IF(AQ34=$BA$4:$BA$300,$BD$4:$BD$300))","v":25},{"$f":"MAXA(IF(AQ34=$BA$4:$BA$300,$BD$4:$BD$300))","v":26}," ",null,null,"COL0028918","Derecho Militar",3,{"$f":"ROW()","v":34},null,null,"COL0062704",1]
[null,null,null,null,null,null,null,null,null,null,null,null,null,null,null,null,null,null,null,null,null,null,null,null,null,null,16,"Programa","DIS","Relaciones Internacionales y Estudios Políticos","X",null,null,null,null,null,null,32,1,23,"HUM","HUMANITAS","COL0101099","C","http://scienti.colciencias.gov.co:8080/gruplac/jsp/visualiza/visualizagr.jsp?nro=00000000010165","BB85:BB88",{"$f":"ROW()","v":35},{"$f":"MINA(IF(AQ35=$BA$4:$BA$300,$BD$4:$BD$300))","v":85},{"$f":"MAXA(IF(AQ35=$BA$4:$BA$300,$BD$4:$BD$300))","v":88}," ",null,null,"COL0028918","Derecho Penal",4,{"$f":"ROW()","v":35},null,null,"COL0077814",1]
[null,null,null,null,null,null,null,null,null,null,null,null,null,null,null,null,null,null,null,null,null,null,null,null,null,null,17,"Programa","DIS","Especialización en Alta Gerencia",54,null,null,null,null,null,null,33,{"$f":"COUNTIF($AN$4:$AN$78,AL36)","v":1},38,"HUM","Cultura y Desarrollo Humano","COL0002896","D","http://scienti.colciencias.gov.co:8080/gruplac/jsp/visualiza/visualizagr.jsp?nro=00000000000740","BB154:BB156",{"$f":"ROW()","v":36},{"$f":"MINA(IF(AQ36=$BA$4:$BA$300,$BD$4:$BD$300))","v":154},{"$f":"MAXA(IF(AQ36=$BA$4:$BA$300,$BD$4:$BD$300))","v":156}," ",null,null,"COL0028918","Derecho y Estado",5,{"$f":"ROW()","v":36},null,null,"COL0067371",{"$f":"COUNTIF($AQ$4:$AQ$78,BG36)","v":1}]
[null,null,null,null,null,null,null,null,null,null,null,null,null,null,null,null,null,null,null,null,null,null,null,null,null,null,18,"Programa","ECO","Administración de Empresas","X"]
[null,null,null,null,null,null,null,null,null,null,null,null,null,null,null,null,null,null,null,null,null,null,null,null,null,null,18,"Programa","ECO","Contaduría Pública","X"]
[null,null,null,null,null,null,null,null,null,null,null,null,null,null,null,null,null,null,null,null,null,null,null,null,null,null,18,"Programa","ECO","Economía","X"]
[null,null,null,null,null,null,null,null,null,null,null,null,null,null,null,null,null,null,null,null,null,null,null,null,null,null,18,"Programa","ECO","Maestría en Gestión de Organizaciones ",24,null,null,null,null,null,null,34,1,50,"HUM","BioethicsGroup","COL0031824","B","http://scienti.colciencias.gov.co:8080/gruplac/jsp/visualiza/visualizagr.jsp?nro=00000000001353","BB208:BB211",{"$f":"ROW()","v":40},{"$f":"MINA(IF(AQ40=$BA$4:$BA$300,$BD$4:$BD$300))","v":208},{"$f":"MAXA(IF(AQ40=$BA$4:$BA$300,$BD$4:$BD$300))","v":211}," ",null,null,"COL0028918","Derecho, Educación y Sociedad",6,{"$f":"ROW()","v":40},null,null,"COL0086179",1]
[null,null,null,null,null,null,null,null,null,null,null,null,null,null,null,null,null,null,null,null,null,null,null,null,null,null,19,"Programa","ECO","Especialización en Alta Gerencia",25,null,null,null,null,null,null,35,1,5,"ING","Grupo de Investigación en Multimedia -GIM-","COL0044859","C","http://scienti.colciencias.gov.co:8080/gruplac/jsp/visualiza/visualizagr.jsp?nro=00000000002706","BB16:BB19",{"$f":"ROW()","v":41},{"$f":"MINA(IF(AQ41=$BA$4:$BA$300,$BD$4:$BD$300))","v":16},{"$f":"MAXA(IF(AQ41=$BA$4:$BA$300,$BD$4:$BD$300))","v":19}," ",null,null,"COL0028918","Derechos Humanos y Derecho Internacional Humanitario",7,{"$f":"ROW()","v":41},null,null,"COL0077707",1]
[null,null,null,null,null,null,null,null,null,null,null,null,null,null,null,null,null,null,null,null,null,null,null,null,null,null,20,"Programa","ECO","Especialización en Administración Aeronáutica y Aeroespacial",26,null,null,null,null,null,null,36,1,10,"ING","GEOTECNIA","COL0005439","C","http://scienti.colciencias.gov.co:8080/gruplac/jsp/visualiza/visualizagr.jsp?nro=00000000000739","BB27:BB31",{"$f":"ROW()","v":42},{"$f":"MINA(IF(AQ42=$BA$4:$BA$300,$BD$4:$BD$300))","v":27},{"$f":"MAXA(IF(AQ42=$BA$4:$BA$300,$BD$4:$BD$300))","v":31}," ",null,null,"COL0039321","Analisis de Matrices",1,{"$f":"ROW()","v":42},null,null,"COL0028687",1]
[null,null,null,null,null,null,null,null,null,null,null,null,null,null,null,null,null,null,null,null,null,null,null,null,null,null,21,"Programa","ECO","Especialización en Control Interno",27,null,null,null,null,null,null,37,1,14,"ING","TIGUM: Grupo de Investigacion en Telemedicina Universidad Militar","COL0052181","C","http://scienti.colciencias.gov.co:8080/gruplac/jsp/visualiza/visualizagr.jsp?nro=00000000003508","BB50:BB53",{"$f":"ROW()","v":43},{"$f":"MINA(IF(AQ43=$BA$4:$BA$300,$BD$4:$BD$300))","v":50},{"$f":"MAXA(IF(AQ43=$BA$4:$BA$300,$BD$4:$BD$300))","v":53}," ",null,null,"COL0039321","Filosofía de la Ciencia: Filosofía de la Física",2,{"$f":"ROW()","v":43},null,null,"COL0096032",1]
[null,null,null,null,null,null,null,null,null,null,null,null,null,null,null,null,null,null,null,null,null,null,null,null,null,null,22,"Programa","ECO","Especialización en Gestión de Desarrollo Administrativo",28,null,null,null,null,null,null,38,1,16,"ING","VOLTA - GMCDP","COL0065804","A1","http://scienti.colciencias.gov.co:8080/gruplac/jsp/visualiza/visualizagr.jsp?nro=00000000004193","BB59:BB61",{"$f":"ROW()","v":44},{"$f":"MINA(IF(AQ44=$BA$4:$BA$300,$BD$4:$BD$300))","v":59},{"$f":"MAXA(IF(AQ44=$BA$4:$BA$300,$BD$4:$BD$300))","v":61}," ",null,null,"COL0039321","LEYES DE CONSERVACION HIPERBOLICA",3,{"$f":"ROW()","v":44},null,null,"COL0107771",1]
[null,null,null,null,null,null,null,null,null,null,null,null,null,null,null,null,null,null,null,null,null,null,null,null,null,null,23,"Programa","ECO","Especialización en Gerencia en Comercio Internacional",29,null,null,null,null,null,null,39,1,27,"ING","PRODUCCION, INNOVACION Y TECNOLOGIA","COL0049999","B","http://scienti.colciencias.gov.co:8080/gruplac/jsp/visualiza/visualizagr.jsp?nro=00000000003290","BB112:BB117",{"$f":"ROW()","v":45},{"$f":"MINA(IF(AQ45=$BA$4:$BA$300,$BD$4:$BD$300))","v":112},{"$f":"MAXA(IF(AQ45=$BA$4:$BA$300,$BD$4:$BD$300))","v":117}," ",null,null,"COL0039321","Matematicas aplicadas",4,{"$f":"ROW()","v":45},null,null,"COL0110329",1]
[null,null,null,null,null,null,null,null,null,null,null,null,null,null,null,null,null,null,null,null,null,null,null,null,null,null,24,"Programa","ECO","Especialización en Finanzas y Administración Pública",30,null,null,null,null,null,null,40,1,29,"ING","GIDAM","COL0116636","C","http://scienti.colciencias.gov.co:8080/gruplac/jsp/visualiza/visualizagr.jsp?nro=00000000011773","BB121:BB124",{"$f":"ROW()","v":46},{"$f":"MINA(IF(AQ46=$BA$4:$BA$300,$BD$4:$BD$300))","v":121},{"$f":"MAXA(IF(AQ46=$BA$4:$BA$300,$BD$4:$BD$300))","v":124}," ",null,null,"COL0039321","Solución numérica de ecuaciones diferenciales parciales",5,{"$f":"ROW()","v":46},null,null,"COL0110436\n",0]
[null,null,null,null,null,null,null,null,null,null,null,null,null,null,null,null,null,null,null,null,null,null,null,null,null,null,25,"Programa","ECO","Especialización en Mercadeo de Servicios",31,null,null,null,null,null,null,41,1,31,"ING","DAVINCI","COL0036025","B","http://scienti.colciencias.gov.co:8080/gruplac/jsp/visualiza/visualizagr.jsp?nro=00000000001843","BB130:BB133",{"$f":"ROW()","v":47},{"$f":"MINA(IF(AQ47=$BA$4:$BA$300,$BD$4:$BD$300))","v":130},{"$f":"MAXA(IF(AQ47=$BA$4:$BA$300,$BD$4:$BD$300))","v":133}," ",null,null,"COL0050294","Economía de la defensa y del conflicto",1,{"$f":"ROW()","v":47},null,null,"COL0114201",1]
[null,null,null,null,null,null,null,null,null,null,null,null,null,null,null,null,null,null,null,null,null,null,null,null,null,null,26,"Programa","ECO","Especialización en Revisoría Fiscal y Auditoría Internacional",32,null,null,null,null,null,null,42,1,33,"ING","Estructuras y sísmica","COL0016999","C","http://scienti.colciencias.gov.co:8080/gruplac/jsp/visualiza/visualizagr.jsp?nro=00000000000737","BB135:BB138",{"$f":"ROW()","v":48},{"$f":"MINA(IF(AQ48=$BA$4:$BA$300,$BD$4:$BD$300))","v":135},{"$f":"MAXA(IF(AQ48=$BA$4:$BA$300,$BD$4:$BD$300))","v":138}," ",null,null,"COL0050294","Gestión Ambiental",2,{"$f":"ROW()","v":48},null,null,"COL0116439",1]
[null,null,null,null,null,null,null,null,null,null,null,null,null,null,null,null,null,null,null,null,null,null,null,null,null,null,27,"Programa","EES","Relaciones Internacionales y Estudios Políticos",12,null,null,null,null,null,null,43,1,34,"ING","INGENIERÍA, GEOMÁTICA Y EDUCACIÓN (IGE)","COL0047566","C","http://scienti.colciencias.gov.co:8080/gruplac/jsp/visualiza/visualizagr.jsp?nro=00000000003044","BB139:BB144",{"$f":"ROW()","v":49},{"$f":"MINA(IF(AQ49=$BA$4:$BA$300,$BD$4:$BD$300))","v":139},{"$f":"MAXA(IF(AQ49=$BA$4:$BA$300,$BD$4:$BD$300))","v":144}," ",null,null,"COL0050294","Política Económica",3,{"$f":"ROW()","v":49},null,null,"COL0116538",1]
[null,null,null,null,null,null,null,null,null,null,null,null,null,null,null,null,null,null,null,null,null,null,null,null,null,null,28,"Programa","EES","Administración de la Seguridad y Salud Ocupacional",13,null,null,null,null,null,null,44,1,37,"ING","ACCEDER","COL0036749","C","http://scienti.colciencias.gov.co:8080/gruplac/jsp/visualiza/visualizagr.jsp?nro=00000000012996","BB152:BB153",{"$f":"ROW()","v":50},{"$f":"MINA(IF(AQ50=$BA$4:$BA$300,$BD$4:$BD$300))","v":152},{"$f":"MAXA(IF(AQ50=$BA$4:$BA$300,$BD$4:$BD$300))","v":153}," ",null,null,"COL0052181","Gestión hospitalaria",1,{"$f":"ROW()","v":50},null,null,"COL0116636",1]
[null,null,null,null,null,null,null,null,null,null,null,null,null,null,null,null,null,null,null,null,null,null,null,null,null,null,29,"Programa","EES","Relaciones Internacionales y Estudios Políticos",22,null,null,null,null,null,null,45,1,49,"ING","Tratamiento de agua","COL0026486","C","http://scienti.colciencias.gov.co:8080/gruplac/jsp/visualiza/visualizagr.jsp?nro=00000000000767","BB205:BB207",{"$f":"ROW()","v":51},{"$f":"MINA(IF(AQ51=$BA$4:$BA$300,$BD$4:$BD$300))","v":205},{"$f":"MAXA(IF(AQ51=$BA$4:$BA$300,$BD$4:$BD$300))","v":207}," ",null,null,"COL0052181","Procesamiento de seńales",2,{"$f":"ROW()","v":51},null,null,"COL0117052",1]
[null,null,null,null,null,null,null,null,null,null,null,null,null,null,null,null,null,null,null,null,null,null,null,null,null,null,30,"Programa","EES","Administración de la Seguridad y Salud Ocupacional",23,null,null,null,null,null,null,46,1,52,"ING","GISSIC: Grupo de Investigacion en Seguridad y Sistemas de Comunicaciones","COL0052163","C","http://scienti.colciencias.gov.co:8080/gruplac/jsp/visualiza/visualizagr.jsp?nro=00000000003506","BB215:BB219",{"$f":"ROW()","v":52},{"$f":"MINA(IF(AQ52=$BA$4:$BA$300,$BD$4:$BD$300))","v":215},{"$f":"MAXA(IF(AQ52=$BA$4:$BA$300,$BD$4:$BD$300))","v":219}," ",null,null,"COL0052181","Tele-cardiología",3,{"$f":"ROW()","v":52},null,null,"COL0117722",1]
[null,null,null,null,null,null,null,null,null,null,null,null,null,null,null,null,null,null,null,null,null,null,null,null,null,null,31,"Programa","EES","Maestría en Relaciones y Negocios Internacionales",44,null,null,null,null,null,null,47,1,54,"ING","GAV","COL0068762","B","http://scienti.colciencias.gov.co:8080/gruplac/jsp/visualiza/visualizagr.jsp?nro=00000000004391","BB224:BB229",{"$f":"ROW()","v":53},{"$f":"MINA(IF(AQ53=$BA$4:$BA$300,$BD$4:$BD$300))","v":224},{"$f":"MAXA(IF(AQ53=$BA$4:$BA$300,$BD$4:$BD$300))","v":229}," ",null,null,"COL0052181","Telemetría",4,{"$f":"ROW()","v":53},null,null,"COL0125107",1]
[null,null,null,null,null,null,null,null,null,null,null,null,null,null,null,null,null,null,null,null,null,null,null,null,null,null,32,"Programa","EES","Especialización en Administración de la Seguridad",45,null,null,null,null,null,null,48,1,57,"ING","Energia alternativa, Centro Multidisciplinario de Investigación","COL0117052","C","http://scienti.colciencias.gov.co:8080/gruplac/jsp/visualiza/visualizagr.jsp?nro=00000000011817","BB241:BB245",{"$f":"ROW()","v":54},{"$f":"MINA(IF(AQ54=$BA$4:$BA$300,$BD$4:$BD$300))","v":241},{"$f":"MAXA(IF(AQ54=$BA$4:$BA$300,$BD$4:$BD$300))","v":245}," ",null,null,"COL0107771","Calidad de Vida de las enfermedades respiratorias en la nińez",1,{"$f":"ROW()","v":54},null,null,"COL0125134",1]
[null,null,null,null,null,null,null,null,null,null,null,null,null,null,null,null,null,null,null,null,null,null,null,null,null,null,33,"Programa","EES","Especialización en Alta Gerencia de la Seguridad y Defensa",46,null,null,null,null,null,null,49,1,60,"ING","GI-iTEC - Grupo de Investigación e innovación Tecnológica en Electrónica y Comunicaciones","COL0143731","D","http://scienti.colciencias.gov.co:8080/gruplac/jsp/visualiza/visualizagr.jsp?nro=00000000014576","BB254:BB256",{"$f":"ROW()","v":55},{"$f":"MINA(IF(AQ55=$BA$4:$BA$300,$BD$4:$BD$300))","v":254},{"$f":"MAXA(IF(AQ55=$BA$4:$BA$300,$BD$4:$BD$300))","v":256}," ",null,null,"COL0107771","Enfermedad bronquial obstructiva recurrente en nińos (Asma, sibilancias inducidas por virus, sibilancias recurrentes, sibilancias persistentes de múltiples desencadenantes)",2,{"$f":"ROW()","v":55},null,null,"COL0126015",1]
[null,null,null,null,null,null,null,null,null,null,null,null,null,null,null,null,null,null,null,null,null,null,null,null,null,null,34,"Programa","HUM","Especialización en Docencia Universitaria",55,null,null,null,null,null,null,50,1,66,"ING","LA TRAMOYA","COL0126777","NR","http://scienti.colciencias.gov.co:8080/gruplac/jsp/visualiza/visualizagr.jsp?nro=00000000012813","BB272:BB274",{"$f":"ROW()","v":56},{"$f":"MINA(IF(AQ56=$BA$4:$BA$300,$BD$4:$BD$300))","v":272},{"$f":"MAXA(IF(AQ56=$BA$4:$BA$300,$BD$4:$BD$300))","v":274}," ",null,null,"COL0107771","Enfermedad pulmonar obstructiva crónica del Recién Nacido",3,{"$f":"ROW()","v":56},null,null,"COL0126777",1]
[null,null,null,null,null,null,null,null,null,null,null,null,null,null,null,null,null,null,null,null,null,null,null,null,null,null,35,"Programa","HUM","Maestría en Educación",55,null,null,null,null,null,null,51,1,70,"ING","GREST","COL0151789","NR","http://scienti.colciencias.gov.co:8080/gruplac/jsp/visualiza/visualizagr.jsp?nro=00000000015386","BB287:BB293",{"$f":"ROW()","v":57},{"$f":"MINA(IF(AQ57=$BA$4:$BA$300,$BD$4:$BD$300))","v":287},{"$f":"MAXA(IF(AQ57=$BA$4:$BA$300,$BD$4:$BD$300))","v":293}," ",null,null,"COL0107771","Enfermedades infecciosas de la infancia (Rinosinusitis, Croup, Bronquiolitis, Neumonía, Tuberculosis, Infección por VIH con afectación pulmonar)",4,{"$f":"ROW()","v":57},null,null,"COL0127649",1]
[null,null,null,null,null,null,null,null,null,null,null,null,null,null,null,null,null,null,null,null,null,null,null,null,null,null,36,"Programa","ING","Ingeniería Ambiental",4,null,null,null,null,null,null,52,1,1,"MED","CATCH","COL0049659","D","http://scienti.colciencias.gov.co:8080/gruplac/jsp/visualiza/visualizagr.jsp?nro=00000000003253","BB4:BB5",{"$f":"ROW()","v":58},{"$f":"MINA(IF(AQ58=$BA$4:$BA$300,$BD$4:$BD$300))","v":4},{"$f":"MAXA(IF(AQ58=$BA$4:$BA$300,$BD$4:$BD$300))","v":5}," ",null,null,"COL0107771","Fármaco economía de las enfermedades respiratorias en la infancia",5,{"$f":"ROW()","v":58},null,null,"COL0128047",1]
[null,null,null,null,null,null,null,null,null,null,null,null,null,null,null,null,null,null,null,null,null,null,null,null,null,null,37,"Programa","ING","Ingeniería Biomédica",5,null,null,null,null,null,null,53,1,6,"MED","BONE","COL0047762","C","http://scienti.colciencias.gov.co:8080/gruplac/jsp/visualiza/visualizagr.jsp?nro=00000000003064","BB20:BB21",{"$f":"ROW()","v":59},{"$f":"MINA(IF(AQ59=$BA$4:$BA$300,$BD$4:$BD$300))","v":20},{"$f":"MAXA(IF(AQ59=$BA$4:$BA$300,$BD$4:$BD$300))","v":21}," ",null,null,"COL0065804","Desarrollos mecatronicos",1,{"$f":"ROW()","v":59},null,null,"COL0036749",1]
[null,null,null,null,null,null,null,null,null,null,null,null,null,null,null,null,null,null,null,null,null,null,null,null,null,null,38,"Programa","ING","Ingeniería Civil",6,null,null,null,null,null,null,54,1,7,"MED","GRUPO DE PSORIASIS E INMUNODERMATOLOGIA","COL0126015","C","http://scienti.colciencias.gov.co:8080/gruplac/jsp/visualiza/visualizagr.jsp?nro=00000000012737","BB22:BB23",{"$f":"ROW()","v":60},{"$f":"MINA(IF(AQ60=$BA$4:$BA$300,$BD$4:$BD$300))","v":22},{"$f":"MAXA(IF(AQ60=$BA$4:$BA$300,$BD$4:$BD$300))","v":23}," ",null,null,"COL0065804","Energías Renovables",2,{"$f":"ROW()","v":60},null,null,"COL0129689",1]
[null,null,null,null,null,null,null,null,null,null,null,null,null,null,null,null,null,null,null,null,null,null,null,null,null,null,39,"Programa","ING","Ingeniería Industrial",7,null,null,null,null,null,null,55,1,15,"MED","Grupo para el estudio de enfermedades respiratorias en nińos. Respira","COL0107771","C","http://scienti.colciencias.gov.co:8080/gruplac/jsp/visualiza/visualizagr.jsp?nro=00000000010842","BB54:BB58",{"$f":"ROW()","v":61},{"$f":"MINA(IF(AQ61=$BA$4:$BA$300,$BD$4:$BD$300))","v":54},{"$f":"MAXA(IF(AQ61=$BA$4:$BA$300,$BD$4:$BD$300))","v":58}," ",null,null,"COL0065804","Materiales y Procesos de Manufactura",3,{"$f":"ROW()","v":61},null,null,"COL0138796",1]
[null,null,null,null,null,null,null,null,null,null,null,null,null,null,null,null,null,null,null,null,null,null,null,null,null,null,40,"Programa","ING","Ingeniería en Mecatrónica",8,null,null,null,null,null,null,56,1,19,"MED","Salud y Comportamiento","COL0033239","D","http://scienti.colciencias.gov.co:8080/gruplac/jsp/visualiza/visualizagr.jsp?nro=00000000001536","BB67:BB69",{"$f":"ROW()","v":62},{"$f":"MINA(IF(AQ62=$BA$4:$BA$300,$BD$4:$BD$300))","v":67},{"$f":"MAXA(IF(AQ62=$BA$4:$BA$300,$BD$4:$BD$300))","v":69}," ",null,null,"COL0027367","Aprendizaje en Economía",1,{"$f":"ROW()","v":62},null,null,"COL0142331",1]
[null,null,null,null,null,null,null,null,null,null,null,null,null,null,null,null,null,null,null,null,null,null,null,null,null,null,41,"Programa","ING","Ingeniería en Multimedia",9,null,null,null,null,null,null,57,1,24,"MED","GRUPO NEUROCIENCIAS HMC","COL0138698","C","http://scienti.colciencias.gov.co:8080/gruplac/jsp/visualiza/visualizagr.jsp?nro=00000000014072","BB89:BB101",{"$f":"ROW()","v":63},{"$f":"MINA(IF(AQ63=$BA$4:$BA$300,$BD$4:$BD$300))","v":89},{"$f":"MAXA(IF(AQ63=$BA$4:$BA$300,$BD$4:$BD$300))","v":101}," ",null,null,"COL0027367","Demografía y Economía Laboral",2,{"$f":"ROW()","v":63},null,null,"COL0142449",1]
[null,null,null,null,null,null,null,null,null,null,null,null,null,null,null,null,null,null,null,null,null,null,null,null,null,null,42,"Programa","ING","Ingenieria en Telecomunicaciones",10,null,null,null,null,null,null,58,1,25,"MED","Grupo de Investigacion en Dermatologia HMC","COL0116439","C","http://scienti.colciencias.gov.co:8080/gruplac/jsp/visualiza/visualizagr.jsp?nro=00000000011753","BB102:BB106",{"$f":"ROW()","v":64},{"$f":"MINA(IF(AQ64=$BA$4:$BA$300,$BD$4:$BD$300))","v":102},{"$f":"MAXA(IF(AQ64=$BA$4:$BA$300,$BD$4:$BD$300))","v":106}," ",null,null,"COL0027367","Polětica Monetaria y Desarrollo Financiero",3,{"$f":"ROW()","v":64},null,null,"COL0016999",1]
[null,null,null,null,null,null,null,null,null,null,null,null,null,null,null,null,null,null,null,null,null,null,null,null,null,null,43,"Programa","ING","Tecnología en Electrónica y Comunicaciones",11,null,null,null,null,null,null,59,1,35,"MED","Células Stem Adultas","COL0050982","C","http://scienti.colciencias.gov.co:8080/gruplac/jsp/visualiza/visualizagr.jsp?nro=00000000005735","BB145:BB148",{"$f":"ROW()","v":65},{"$f":"MINA(IF(AQ65=$BA$4:$BA$300,$BD$4:$BD$300))","v":145},{"$f":"MAXA(IF(AQ65=$BA$4:$BA$300,$BD$4:$BD$300))","v":148}," ",null,null,"COL0032278","Biología y Ecología de plagas y enemigos naturales de cultivos de importancia económica",1,{"$f":"ROW()","v":65},null,null,"COL0005439",1]
[null,null,null,null,null,null,null,null,null,null,null,null,null,null,null,null,null,null,null,null,null,null,null,null,null,null,44,"Programa","ING","Maestría en Ingeniería Mecatrónica",34,null,null,null,null,null,null,60,1,36,"MED","GRUPO DE SALUD ORAL Y CIRUGIA MAXILOFACIAL","COL0129689","D","http://scienti.colciencias.gov.co:8080/gruplac/jsp/visualiza/visualizagr.jsp?nro=00000000013172","BB149:BB151",{"$f":"ROW()","v":66},{"$f":"MINA(IF(AQ66=$BA$4:$BA$300,$BD$4:$BD$300))","v":149},{"$f":"MAXA(IF(AQ66=$BA$4:$BA$300,$BD$4:$BD$300))","v":151}," ",null,null,"COL0032278","Generación de recomendaciones para el manejo integrado de plagas, mediante el diseńo de modelos de simulación de agroecosistemas",2,{"$f":"ROW()","v":66},null,null,"COL0002896",1]
[null,null,null,null,null,null,null,null,null,null,null,null,null,null,null,null,null,null,null,null,null,null,null,null,null,null,45,"Programa","ING","Maestría en Ingeniería Civil",35,null,null,null,null,null,null,61,1,45,"MED","Kokhlias.","COL0125134","B","http://scienti.colciencias.gov.co:8080/gruplac/jsp/visualiza/visualizagr.jsp?nro=00000000012649","BB185:BB191",{"$f":"ROW()","v":67},{"$f":"MINA(IF(AQ67=$BA$4:$BA$300,$BD$4:$BD$300))","v":185},{"$f":"MAXA(IF(AQ67=$BA$4:$BA$300,$BD$4:$BD$300))","v":191}," ",null,null,"COL0033239","Prevención de la enfermedad y promoción de la salud",1,{"$f":"ROW()","v":67},null,null,"COL0013719",1]
[null,null,null,null,null,null,null,null,null,null,null,null,null,null,null,null,null,null,null,null,null,null,null,null,null,null,46,"Programa","ING","Maestría en Logística Integral",36,null,null,null,null,null,null,62,1,46,"MED","GRUPO DE REHABILITACION HOMIC-UMNG","COL0120281","C","http://scienti.colciencias.gov.co:8080/gruplac/jsp/visualiza/visualizagr.jsp?nro=00000000012152","BB192:BB196",{"$f":"ROW()","v":68},{"$f":"MINA(IF(AQ68=$BA$4:$BA$300,$BD$4:$BD$300))","v":192},{"$f":"MAXA(IF(AQ68=$BA$4:$BA$300,$BD$4:$BD$300))","v":196}," ",null,null,"COL0033239","Salud Mental y Calidad de Vida",2,{"$f":"ROW()","v":68},null,null,"COL0101099",1]
[null,null,null,null,null,null,null,null,null,null,null,null,null,null,null,null,null,null,null,null,null,null,null,null,null,null,47,"Programa","ING","Maestría en Gerencia de Proyectos",37,null,null,null,null,null,null,63,1,48,"MED","Grupo de Investigacion en Urologia HMC","COL0116538","D","http://scienti.colciencias.gov.co:8080/gruplac/jsp/visualiza/visualizagr.jsp?nro=00000000011763","BB199:BB204",{"$f":"ROW()","v":69},{"$f":"MINA(IF(AQ69=$BA$4:$BA$300,$BD$4:$BD$300))","v":199},{"$f":"MAXA(IF(AQ69=$BA$4:$BA$300,$BD$4:$BD$300))","v":204}," ",null,null,"COL0033239","Salud Sexual y Reproductiva",3,{"$f":"ROW()","v":69},null,null,"COL0044859",1]
[null,null,null,null,null,null,null,null,null,null,null,null,null,null,null,null,null,null,null,null,null,null,null,null,null,null,48,"Programa","ING","Especialización en Geomática",38,null,null,null,null,null,null,64,1,51,"MED","Epidemiología molecular de enfermedades endocrinas","COL0045848","C","http://scienti.colciencias.gov.co:8080/gruplac/jsp/visualiza/visualizagr.jsp?nro=00000000002874","BB212:BB214",{"$f":"ROW()","v":70},{"$f":"MINA(IF(AQ70=$BA$4:$BA$300,$BD$4:$BD$300))","v":212},{"$f":"MAXA(IF(AQ70=$BA$4:$BA$300,$BD$4:$BD$300))","v":214}," ",null,null,"COL0018448","Ambiente Virtuales de Aprendizaje",1,{"$f":"ROW()","v":70},null,null,"COL0149359",1]
[null,null,null,null,null,null,null,null,null,null,null,null,null,null,null,null,null,null,null,null,null,null,null,null,null,null,49,"Programa","ING","Especialización en Gerencia de la Calidad",39,null,null,null,null,null,null,65,{"$f":"COUNTIF($AN$4:$AN$78,AL71)","v":1},55,"MED","Insight","COL0067371","C","http://scienti.colciencias.gov.co:8080/gruplac/jsp/visualiza/visualizagr.jsp?nro=00000000006698","BB230:BB237",{"$f":"ROW()","v":71},{"$f":"MINA(IF(AQ71=$BA$4:$BA$300,$BD$4:$BD$300))","v":230},{"$f":"MAXA(IF(AQ71=$BA$4:$BA$300,$BD$4:$BD$300))","v":237}," ",null,null,"COL0018448","Formación pedagógica para el posconflicto en Colombia",2,{"$f":"ROW()","v":71},null,null,"COL0143731",{"$f":"COUNTIF($AQ$4:$AQ$78,BG71)","v":1}]
[null,null,null,null,null,null,null,null,null,null,null,null,null,null,null,null,null,null,null,null,null,null,null,null,null,null,50,"Programa","ING","Especialización en Gerencia en Logística Integral",40,null,null,null,null,null,null,66,1,59,"MED","EDUMECIS","COL0152463","R","http://scienti.colciencias.gov.co:8080/gruplac/jsp/visualiza/visualizagr.jsp?nro=00000000015421",{"$f":"$AT$2&AV72&\":\"&$AT$2&AW72","v":"BB251:BB253"},{"$f":"ROW()","v":72},{"$f":"MINA(IF(AQ72=$BA$4:$BA$300,$BD$4:$BD$300))","v":251},{"$f":"MAXA(IF(AQ72=$BA$4:$BA$300,$BD$4:$BD$300))","v":253}," ",null,null,"COL0018448","Gestión del conocimiento y calidad de la educación superior",3,{"$f":"ROW()","v":72},null,null,"\tCOL0151789",0]
[null,null,null,null,null,null,null,null,null,null,null,null,null,null,null,null,null,null,null,null,null,null,null,null,null,null,51,"Programa","ING","Especialización en Gerencia Integral de Proyectos",41,null,null,null,null,null,null,67,1,62,"MED","BioGenEtica & BioDerecho","COL0096032","NR","http://scienti.colciencias.gov.co:8080/gruplac/jsp/visualiza/visualizagr.jsp?nro=00000000009651","BB258:BB261",{"$f":"ROW()","v":73},{"$f":"MINA(IF(AQ73=$BA$4:$BA$300,$BD$4:$BD$300))","v":258},{"$f":"MAXA(IF(AQ73=$BA$4:$BA$300,$BD$4:$BD$300))","v":261}," ",null,null,"COL0066768","DERECHO DE LAS RELACIONES INTERNACIONALES",1,{"$f":"ROW()","v":73},null,null,"COL0152472",1]
[null,null,null,null,null,null,null,null,null,null,null,null,null,null,null,null,null,null,null,null,null,null,null,null,null,null,52,"Programa","ING","Especialización en Ingeniería de Pavimentos",42,null,null,null,null,null,null,68,1,63,"MED","Grupo de Investigación en Farmacología, Toxicología y Terapéutica-UMNG","COL0114201","NR","http://scienti.colciencias.gov.co:8080/gruplac/jsp/visualiza/visualizagr.jsp?nro=00000000011524","BB262:BB264",{"$f":"ROW()","v":74},{"$f":"MINA(IF(AQ74=$BA$4:$BA$300,$BD$4:$BD$300))","v":262},{"$f":"MAXA(IF(AQ74=$BA$4:$BA$300,$BD$4:$BD$300))","v":264}," ",null,null,"COL0066768","ECONOMIA Y NEGOCIOS INTERNACIONALES",2,{"$f":"ROW()","v":74},null,null,"COL0152319",1]
[null,null,null,null,null,null,null,null,null,null,null,null,null,null,null,null,null,null,null,null,null,null,null,null,null,null,53,"Programa","ING","Especialización en Planeación Ambiental y Manejo Integral de los Recursos Naturales",43,null,null,null,null,null,null,69,1,65,"MED","MEDICINA REGENERATIVA HMC UMNG","COL0125107","NR","http://scienti.colciencias.gov.co:8080/gruplac/jsp/visualiza/visualizagr.jsp?nro=00000000012646","BB267:BB271",{"$f":"ROW()","v":75},{"$f":"MINA(IF(AQ75=$BA$4:$BA$300,$BD$4:$BD$300))","v":267},{"$f":"MAXA(IF(AQ75=$BA$4:$BA$300,$BD$4:$BD$300))","v":271}," ",null,null,"COL0066768","ESTUDIOS POLÍTICOS",3,{"$f":"ROW()","v":75},null,null,"COL0152463",1]
[null,null,null,null,null,null,null,null,null,null,null,null,null,null,null,null,null,null,null,null,null,null,null,null,null,null,53,"Programa","ING","Doctorado en Ciencias Aplicadas",43,null,null,null,null,null,null,70,1,69,"MED","GAFRED","COL0149359","NR","http://scienti.colciencias.gov.co:8080/gruplac/jsp/visualiza/visualizagr.jsp?nro=00000000015141","BB285:BB286",{"$f":"ROW()","v":76},{"$f":"MINA(IF(AQ76=$BA$4:$BA$300,$BD$4:$BD$300))","v":285},{"$f":"MAXA(IF(AQ76=$BA$4:$BA$300,$BD$4:$BD$300))","v":286}," ",null,null,"COL0066768","ESTUDIOS REGIONALES",4,{"$f":"ROW()","v":76},null,null,"COL0138698",1]
[null,null,null,null,null,null,null,null,null,null,null,null,null,null,null,null,null,null,null,null,null,null,null,null,null,null,54,"Programa","MED","Medicina",14,null,null,null,null,null,null,71,1,71,"MED","Grupo de inmunología Clínica Aplicada (GICA)","COL0152472","NR","http://scienti.colciencias.gov.co:8080/gruplac/jsp/visualiza/visualizagr.jsp?nro=00000000015414","BB294:BB295",{"$f":"ROW()","v":77},{"$f":"MINA(IF(AQ77=$BA$4:$BA$300,$BD$4:$BD$300))","v":294},{"$f":"MAXA(IF(AQ77=$BA$4:$BA$300,$BD$4:$BD$300))","v":295}," ",null,null,"COL0066768","HISTORIA INTERNACIONAL",5,{"$f":"ROW()","v":77},null,null,"COL0120281",1]
[null,null,null,null,null,null,null,null,null,null,null,null,null,null,null,null,null,null,null,null,null,null,null,null,null,null,55,"Programa","MED","Tecnología en Atención Prehospitalaria",15,null,null,null,null,null,null,72,1,72,"MED","Epidemiología y Salud Colectiva ","COL0152319","NR","http://scienti.colciencias.gov.co:8080/gruplac/jsp/visualiza/visualizagr.jsp?nro=00000000015438","BB296:BB300",{"$f":"ROW()","v":78},{"$f":"MINA(IF(AQ78=$BA$4:$BA$300,$BD$4:$BD$300))","v":296},{"$f":"MAXA(IF(AQ78=$BA$4:$BA$300,$BD$4:$BD$300))","v":300},null,null,null,"COL0066768","RELACIONES INTERNACIONALES",6,{"$f":"ROW()","v":78},null,null,"COL0136423",1]
[null,null,null,null,null,null,null,null,null,null,null,null,null,null,null,null,null,null,null,null,null,null,null,null,null,null,1,"Tipo Proyecto","INV","Investigación Científica",{"$f":"AC79","v":"INV"},null,null,null,null,null,null,null,null,null,null,null,null,null,null,null,null,null,null,null,null,null,"COL0067504","Gestión Tecnológica",1,{"$f":"ROW()","v":79}]
[null,null,null,null,null,null,null,null,null,null,null,null,null,null,null,null,null,null,null,null,null,null,null,null,null,null,2,"Tipo Proyecto","IMP","Alto Impacto","IMP",null,null,null,null,null,null,null,null,null,null,null,null,null,null,null,null,null,null,null,null,null,"COL0067504","Gestión del conocimiento",2,{"$f":"ROW()","v":80}]
[null,null,null,null,null,null,null,null,null,null,null,null,null,null,null,null,null,null,null,null,null,null,null,null,null,null,1,"Función","Investigador Principal","Investigador Principal o lider del proyecto","IP",null,null,null,null,null,null,null,null,null,null,null,null,null,null,null,null,null,null,null,null,null,"COL0067504","Los Estilos de enseńanza y Aprendizaje",3,{"$f":"ROW()","v":81}]
[null,null,null,null,null,null,null,null,null,null,null,null,null,null,null,null,null,null,null,null,null,null,null,null,null,null,2,"Función","Coinvestigador","Investigador que apoya al lider del proyecto","CO",null,null,null,null,null,null,null,null,null,null,null,null,null,null,null,null,null,null,null,null,null,"COL0067504","Mercadeo Cuántico",4,{"$f":"ROW()","v":82}]
[null,null,null,null,null,null,null,null,null,null,null,null,null,null,null,null,null,null,null,null,null,null,null,null,null,null,3,"Función","Asistente OPS","Asistente de Investigacion contratado OPS","OPS",null,null,null,null,null,null,null,null,null,null,null,null,null,null,null,null,null,null,null,null,null,"COL0067504","Mineria Web",5,{"$f":"ROW()","v":83}]
[null,null,null,null,null,null,null,null,null,null,null,null,null,null,null,null,null,null,null,null,null,null,null,null,null,null,4,"Función","Joven Investigador","Joven investigador UMNG o Colciencias","JV",null,null,null,null,null,null,null,null,null,null,null,null,null,null,null,null,null,null,null,null,null,"COL0067504","Salud Pública, Bioética e Ingeniería",6,{"$f":"ROW()","v":84}]
[null,null,null,null,null,null,null,null,null,null,null,null,null,null,null,null,null,null,null,null,null,null,null,null,null,null,5,"Función","Asistente Graduado","Asistente Graduado para proyectos de alto impacto","AG",null,null,null,null,null,null,null,null,null,null,null,null,null,null,null,null,null,null,null,null,null,"COL0101099","Educación y Sociedad",1,{"$f":"ROW()","v":85}]
[null,null,null,null,null,null,null,null,null,null,null,null,null,null,null,null,null,null,null,null,null,null,null,null,null,null,6,"Función","Asesor","Asesor externo no vinculado a ninguna entidad","AR",null,null,null,null,null,null,null,null,null,null,null,null,null,null,null,null,null,null,null,null,null,"COL0101099","FILOSOFIA POLITICA Y REPONSABILIDAD SOCIAL",2,{"$f":"ROW()","v":86}]
[null,null,null,null,null,null,null,null,null,null,null,null,null,null,null,null,null,null,null,null,null,null,null,null,null,null,7,"Función","Estudiante","Estudiante apoya el proyecto","EST",null,null,null,null,null,null,null,null,null,null,null,null,null,null,null,null,null,null,null,null,null,"COL0101099","HUMANIDADES, CULTURA Y UNIVERSIDAD",3,{"$f":"ROW()","v":87}]
[null,null,null,null,null,null,null,null,null,null,null,null,null,null,null,null,null,null,null,null,null,null,null,null,null,null,1,"Vinculo","Doc. Carrera TC","Docente de Carrera Tiempo Completo","DTC",null,null,null,null,null,null,null,null,null,null,null,null,null,null,null,null,null,null,null,null,null,"COL0101099","Liderazgo y gestión en educación.",4,{"$f":"ROW()","v":88}]
[null,null,null,null,null,null,null,null,null,null,null,null,null,null,null,null,null,null,null,null,null,null,null,null,null,null,2,"Vinculo","Doc. Carrera MT","Docente de Carrera Medio Tiempo","DMT",null,null,null,null,null,null,null,null,null,null,null,null,null,null,null,null,null,null,null,null,null,"COL0138698","BIOETICA",1,{"$f":"ROW()","v":89}]
[null,null,null,null,null,null,null,null,null,null,null,null,null,null,null,null,null,null,null,null,null,null,null,null,null,null,3,"Vinculo","Doc. Ocasional","Docente de Ocasional","OCA",null,null,null,null,null,null,null,null,null,null,null,null,null,null,null,null,null,null,null,null,null,"COL0138698","CEREBROVASCULAR",2,{"$f":"ROW()","v":90}]
[null,null,null,null,null,null,null,null,null,null,null,null,null,null,null,null,null,null,null,null,null,null,null,null,null,null,4,"Vinculo","OPS - Prestación Servicios","Asistente de Investigacion contratado OPS","OPS",null,null,null,null,null,null,null,null,null,null,null,null,null,null,null,null,null,null,null,null,null,"COL0138698","DEMENCIAS",3,{"$f":"ROW()","v":91}]
[null,null,null,null,null,null,null,null,null,null,null,null,null,null,null,null,null,null,null,null,null,null,null,null,null,null,5,"Vinculo","Estudiante","Estudiante activo de pregrado o postgrado","EST",null,null,null,null,null,null,null,null,null,null,null,null,null,null,null,null,null,null,null,null,null,"COL0138698","DISTONIAS",4,{"$f":"ROW()","v":92}]
[null,null,null,null,null,null,null,null,null,null,null,null,null,null,null,null,null,null,null,null,null,null,null,null,null,null,6,"Vinculo","Externo a la UMNG","Docentes Investigadores externos sin vinculo lavoral al U.","EXT",null,null,null,null,null,null,null,null,null,null,null,null,null,null,null,null,null,null,null,null,null,"COL0138698","ENFERMEDADES HUERFANAS",5,{"$f":"ROW()","v":93}]
[null,null,null,null,null,null,null,null,null,null,null,null,null,null,null,null,null,null,null,null,null,null,null,null,null,null,1,"NBC",11,"Programas y certificaciones básicas",11,null,null,null,null,null,null,null,null,null,null,null,null,null,null,null,null,null,null,null,null,null,"COL0138698","EPILEPSIA",6,{"$f":"ROW()","v":94}]
[null,null,null,null,null,null,null,null,null,null,null,null,null,null,null,null,null,null,null,null,null,null,null,null,null,null,2,"NBC",21,"Alfabetización y aritmética elemental",21,null,null,null,null,null,null,null,null,null,null,null,null,null,null,null,null,null,null,null,null,null,"COL0138698","ESCLEROSIS MULTIPLE",7,{"$f":"ROW()","v":95}]
[null,null,null,null,null,null,null,null,null,null,null,null,null,null,null,null,null,null,null,null,null,null,null,null,null,null,3,"NBC",31,"Competencias personales y desarrollo",31,null,null,null,null,null,null,null,null,null,null,null,null,null,null,null,null,null,null,null,null,null,"COL0138698","MOVIMIENTOS ANORMALES",8,{"$f":"ROW()","v":96}]
[null,null,null,null,null,null,null,null,null,null,null,null,null,null,null,null,null,null,null,null,null,null,null,null,null,null,4,"NBC",111,"Ciencias de la educación",111,null,null,null,null,null,null,null,null,null,null,null,null,null,null,null,null,null,null,null,null,null,"COL0138698","PARALISIS CEREBRAL",9,{"$f":"ROW()","v":97}]
[null,null,null,null,null,null,null,null,null,null,null,null,null,null,null,null,null,null,null,null,null,null,null,null,null,null,5,"NBC",112,"Formación para docentes de educación pre-primaría",112,null,null,null,null,null,null,null,null,null,null,null,null,null,null,null,null,null,null,null,null,null,"COL0138698","RETARDO MENTAL",10,{"$f":"ROW()","v":98}]
[null,null,null,null,null,null,null,null,null,null,null,null,null,null,null,null,null,null,null,null,null,null,null,null,null,null,6,"NBC",113,"Formación para docentes sin asignatura de especialización",113,null,null,null,null,null,null,null,null,null,null,null,null,null,null,null,null,null,null,null,null,null,"COL0138698","SALUD MENTAL",11,{"$f":"ROW()","v":99}]
[null,null,null,null,null,null,null,null,null,null,null,null,null,null,null,null,null,null,null,null,null,null,null,null,null,null,7,"NBC",114,"Formación para docentes con asignatura de especialización",114,null,null,null,null,null,null,null,null,null,null,null,null,null,null,null,null,null,null,null,null,null,"COL0138698","SUEŃO",12,{"$f":"ROW()","v":100}]
[null,null,null,null,null,null,null,null,null,null,null,null,null,null,null,null,null,null,null,null,null,null,null,null,null,null,8,"NBC",211,"Técnicas audiovisuales y producción para medios de comunicación",211,null,null,null,null,null,null,null,null,null,null,null,null,null,null,null,null,null,null,null,null,null,"COL0138698","TRASTORNOS DEL NEURODESARROLLO",13,{"$f":"ROW()","v":101}]
[null,null,null,null,null,null,null,null,null,null,null,null,null,null,null,null,null,null,null,null,null,null,null,null,null,null,9,"NBC",212,"Diseño industrial, de modas e interiores",212,null,null,null,null,null,null,null,null,null,null,null,null,null,null,null,null,null,null,null,null,null,"COL0116439","Cirugía Dermatologica",1,{"$f":"ROW()","v":102}]
[null,null,null,null,null,null,null,null,null,null,null,null,null,null,null,null,null,null,null,null,null,null,null,null,null,null,10,"NBC",213,"Bellas artes",213,null,null,null,null,null,null,null,null,null,null,null,null,null,null,null,null,null,null,null,null,null,"COL0116439","Dermatologia Pediatrica",2,{"$f":"ROW()","v":103}]
[null,null,null,null,null,null,null,null,null,null,null,null,null,null,null,null,null,null,null,null,null,null,null,null,null,null,11,"NBC",214,"Artesanías",214,null,null,null,null,null,null,null,null,null,null,null,null,null,null,null,null,null,null,null,null,null,"COL0116439","Fotobiologia y Fototerapia",3,{"$f":"ROW()","v":104}]
[null,null,null,null,null,null,null,null,null,null,null,null,null,null,null,null,null,null,null,null,null,null,null,null,null,null,12,"NBC",215,"Música y artes escénicas",215,null,null,null,null,null,null,null,null,null,null,null,null,null,null,null,null,null,null,null,null,null,"COL0116439","Leishmaniasis",4,{"$f":"ROW()","v":105}]
[null,null,null,null,null,null,null,null,null,null,null,null,null,null,null,null,null,null,null,null,null,null,null,null,null,null,13,"NBC",221,"Religión y Teología",221,null,null,null,null,null,null,null,null,null,null,null,null,null,null,null,null,null,null,null,null,null,"COL0116439","Psoriasis",5,{"$f":"ROW()","v":106}]
[null,null,null,null,null,null,null,null,null,null,null,null,null,null,null,null,null,null,null,null,null,null,null,null,null,null,14,"NBC",222,"Historia y arqueología",222,null,null,null,null,null,null,null,null,null,null,null,null,null,null,null,null,null,null,null,null,null,"COL0013719","Biología y Epidemiología de hongos patógenos humanos.",1,{"$f":"ROW()","v":107}]
[null,null,null,null,null,null,null,null,null,null,null,null,null,null,null,null,null,null,null,null,null,null,null,null,null,null,15,"NBC",223,"Filosofía y ética",223,null,null,null,null,null,null,null,null,null,null,null,null,null,null,null,null,null,null,null,null,null,"COL0013719","Diversidad, Ecología y Bioprospección",2,{"$f":"ROW()","v":108}]
[null,null,null,null,null,null,null,null,null,null,null,null,null,null,null,null,null,null,null,null,null,null,null,null,null,null,16,"NBC",231,"Adquisición del lenguaje",231,null,null,null,null,null,null,null,null,null,null,null,null,null,null,null,null,null,null,null,null,null,"COL0013719","Fitopatología",3,{"$f":"ROW()","v":109}]
[null,null,null,null,null,null,null,null,null,null,null,null,null,null,null,null,null,null,null,null,null,null,null,null,null,null,17,"NBC",232,"Literatura y lingüística",232,null,null,null,null,null,null,null,null,null,null,null,null,null,null,null,null,null,null,null,null,null,"COL0013719","Genómica y bioinformática",4,{"$f":"ROW()","v":110}]
[null,null,null,null,null,null,null,null,null,null,null,null,null,null,null,null,null,null,null,null,null,null,null,null,null,null,18,"NBC",311,"Economía",311,null,null,null,null,null,null,null,null,null,null,null,null,null,null,null,null,null,null,null,null,null,"COL0013719","Susceptibilidad a Antifungícos",5,{"$f":"ROW()","v":111}]
[null,null,null,null,null,null,null,null,null,null,null,null,null,null,null,null,null,null,null,null,null,null,null,null,null,null,19,"NBC",312,"Ciencias políticas y educación cívica",312,null,null,null,null,null,null,null,null,null,null,null,null,null,null,null,null,null,null,null,null,null,"COL0049999","Calidad y Gestión en la Educación",1,{"$f":"ROW()","v":112}]
[null,null,null,null,null,null,null,null,null,null,null,null,null,null,null,null,null,null,null,null,null,null,null,null,null,null,20,"NBC",313,"Psicología",313,null,null,null,null,null,null,null,null,null,null,null,null,null,null,null,null,null,null,null,null,null,"COL0049999","Gestión y Proyectos",2,{"$f":"ROW()","v":113}]
[null,null,null,null,null,null,null,null,null,null,null,null,null,null,null,null,null,null,null,null,null,null,null,null,null,null,21,"NBC",314,"Sociología y estudios culturales",314,null,null,null,null,null,null,null,null,null,null,null,null,null,null,null,null,null,null,null,null,null,"COL0049999","Innovación",3,{"$f":"ROW()","v":114}]
[null,null,null,null,null,null,null,null,null,null,null,null,null,null,null,null,null,null,null,null,null,null,null,null,null,null,22,"NBC",321,"Periodismo y reportajes",321,null,null,null,null,null,null,null,null,null,null,null,null,null,null,null,null,null,null,null,null,null,"COL0049999","Productividad",4,{"$f":"ROW()","v":115}]
[null,null,null,null,null,null,null,null,null,null,null,null,null,null,null,null,null,null,null,null,null,null,null,null,null,null,23,"NBC",322,"Bibliotecología, información y archivología",322,null,null,null,null,null,null,null,null,null,null,null,null,null,null,null,null,null,null,null,null,null,"COL0049999","Sostenibilidad y Medio Ambiente",5,{"$f":"ROW()","v":116}]
[null,null,null,null,null,null,null,null,null,null,null,null,null,null,null,null,null,null,null,null,null,null,null,null,null,null,24,"NBC",411,"Contabilidad e impuestos",411,null,null,null,null,null,null,null,null,null,null,null,null,null,null,null,null,null,null,null,null,null,"COL0049999","Tecnología",6,{"$f":"ROW()","v":117}]
[null,null,null,null,null,null,null,null,null,null,null,null,null,null,null,null,null,null,null,null,null,null,null,null,null,null,25,"NBC",412,"Gestión financiera, administración bancaria y seguros",412,null,null,null,null,null,null,null,null,null,null,null,null,null,null,null,null,null,null,null,null,null,"COL0086179","Búsqueda de marcadores genéticos y estudio de genes ligados a la resistencia a Fusarium en clavel.",1,{"$f":"ROW()","v":118}]
[null,null,null,null,null,null,null,null,null,null,null,null,null,null,null,null,null,null,null,null,null,null,null,null,null,null,26,"NBC",413,"Gestión y administración",413,null,null,null,null,null,null,null,null,null,null,null,null,null,null,null,null,null,null,null,null,null,"COL0086179","Estudio de la biología del mildeo velloso de la Rosa comercial.",2,{"$f":"ROW()","v":119}]
[null,null,null,null,null,null,null,null,null,null,null,null,null,null,null,null,null,null,null,null,null,null,null,null,null,null,27,"NBC",414,"Mercadotecnia y publicidad",414,null,null,null,null,null,null,null,null,null,null,null,null,null,null,null,null,null,null,null,null,null,"COL0086179","Producción de nuevas variedades de clavel resistentes a parasitos vasculares.",3,{"$f":"ROW()","v":120}]
[null,null,null,null,null,null,null,null,null,null,null,null,null,null,null,null,null,null,null,null,null,null,null,null,null,null,28,"NBC",415,"Secretariado y trabajo de oficina",415,null,null,null,null,null,null,null,null,null,null,null,null,null,null,null,null,null,null,null,null,null,"COL0116636","Desarrollo de software y hardware embebido",1,{"$f":"ROW()","v":121}]
[null,null,null,null,null,null,null,null,null,null,null,null,null,null,null,null,null,null,null,null,null,null,null,null,null,null,29,"NBC",416,"Ventas al por mayor y al por menor",416,null,null,null,null,null,null,null,null,null,null,null,null,null,null,null,null,null,null,null,null,null,"COL0116636","Procesamiento digital de seńales e imágenes",2,{"$f":"ROW()","v":122}]
[null,null,null,null,null,null,null,null,null,null,null,null,null,null,null,null,null,null,null,null,null,null,null,null,null,null,30,"NBC",417,"Competencias laborales",417,null,null,null,null,null,null,null,null,null,null,null,null,null,null,null,null,null,null,null,null,null,"COL0116636","Producción sostenible",3,{"$f":"ROW()","v":123}]
[null,null,null,null,null,null,null,null,null,null,null,null,null,null,null,null,null,null,null,null,null,null,null,null,null,null,31,"NBC",421,"Derecho",421,null,null,null,null,null,null,null,null,null,null,null,null,null,null,null,null,null,null,null,null,null,"COL0116636","Robótica",4,{"$f":"ROW()","v":124}]
[null,null,null,null,null,null,null,null,null,null,null,null,null,null,null,null,null,null,null,null,null,null,null,null,null,null,32,"NBC",511,"Biología",511,null,null,null,null,null,null,null,null,null,null,null,null,null,null,null,null,null,null,null,null,null,"COL0136423","Control óptimo estocástico",1,{"$f":"ROW()","v":125}]
[null,null,null,null,null,null,null,null,null,null,null,null,null,null,null,null,null,null,null,null,null,null,null,null,null,null,33,"NBC",512,"Bioquímica",512,null,null,null,null,null,null,null,null,null,null,null,null,null,null,null,null,null,null,null,null,null,"COL0136423","Estadística Multivariada paramétrica y no paramétrica.",2,{"$f":"ROW()","v":126}]
[null,null,null,null,null,null,null,null,null,null,null,null,null,null,null,null,null,null,null,null,null,null,null,null,null,null,34,"NBC",521,"Ciencias del medio ambiente",521,null,null,null,null,null,null,null,null,null,null,null,null,null,null,null,null,null,null,null,null,null,"COL0136423","Métodos estadísticos basados en grafos",3,{"$f":"ROW()","v":127}]
[null,null,null,null,null,null,null,null,null,null,null,null,null,null,null,null,null,null,null,null,null,null,null,null,null,null,35,"NBC",522,"Medio ambiente natural y vida silvestre",522,null,null,null,null,null,null,null,null,null,null,null,null,null,null,null,null,null,null,null,null,null,"COL0136423","Optimizacion Semidefinida",4,{"$f":"ROW()","v":128}]
[null,null,null,null,null,null,null,null,null,null,null,null,null,null,null,null,null,null,null,null,null,null,null,null,null,null,36,"NBC",531,"Química",531,null,null,null,null,null,null,null,null,null,null,null,null,null,null,null,null,null,null,null,null,null,"COL0136423","Optimización Numérica. Máquinas de Vectores de Soportes.",5,{"$f":"ROW()","v":129}]
[null,null,null,null,null,null,null,null,null,null,null,null,null,null,null,null,null,null,null,null,null,null,null,null,null,null,37,"NBC",532,"Ciencias de la tierra",532,null,null,null,null,null,null,null,null,null,null,null,null,null,null,null,null,null,null,null,null,null,"COL0036025","Biomecatronica",1,{"$f":"ROW()","v":130}]
[null,null,null,null,null,null,null,null,null,null,null,null,null,null,null,null,null,null,null,null,null,null,null,null,null,null,38,"NBC",533,"Física",533,null,null,null,null,null,null,null,null,null,null,null,null,null,null,null,null,null,null,null,null,null,"COL0036025","Optimización y Control de sistemas dinámicos",2,{"$f":"ROW()","v":131}]
[null,null,null,null,null,null,null,null,null,null,null,null,null,null,null,null,null,null,null,null,null,null,null,null,null,null,39,"NBC",541,"Matemáticas",541,null,null,null,null,null,null,null,null,null,null,null,null,null,null,null,null,null,null,null,null,null,"COL0036025","Robótica híbrida",3,{"$f":"ROW()","v":132}]
[null,null,null,null,null,null,null,null,null,null,null,null,null,null,null,null,null,null,null,null,null,null,null,null,null,null,40,"NBC",542,"Estadística",542,null,null,null,null,null,null,null,null,null,null,null,null,null,null,null,null,null,null,null,null,null,"COL0036025","Simulacion y Realidad Virtual",4,{"$f":"ROW()","v":133}]
[null,null,null,null,null,null,null,null,null,null,null,null,null,null,null,null,null,null,null,null,null,null,null,null,null,null,41,"NBC",611,"Uso de computadores",611,null,null,null,null,null,null,null,null,null,null,null,null,null,null,null,null,null,null,null,null,null,"COL0038084","Biologia basica y aplicada de peces",1,{"$f":"ROW()","v":134}]
[null,null,null,null,null,null,null,null,null,null,null,null,null,null,null,null,null,null,null,null,null,null,null,null,null,null,42,"NBC",612,"Diseño y administración de redes y bases de datos",612,null,null,null,null,null,null,null,null,null,null,null,null,null,null,null,null,null,null,null,null,null,"COL0016999","Elementos de concreto y de mampostería",1,{"$f":"ROW()","v":135}]
[null,null,null,null,null,null,null,null,null,null,null,null,null,null,null,null,null,null,null,null,null,null,null,null,null,null,43,"NBC",613,"Desarrollo y análisis de software y aplicaciones",613,null,null,null,null,null,null,null,null,null,null,null,null,null,null,null,null,null,null,null,null,null,"COL0016999","Instrumentación estructural y sensórica",2,{"$f":"ROW()","v":136}]
[null,null,null,null,null,null,null,null,null,null,null,null,null,null,null,null,null,null,null,null,null,null,null,null,null,null,44,"NBC",711,"Ingeniería y procesos químicos",711,null,null,null,null,null,null,null,null,null,null,null,null,null,null,null,null,null,null,null,null,null,"COL0016999","Modelación Matemática",3,{"$f":"ROW()","v":137}]
[null,null,null,null,null,null,null,null,null,null,null,null,null,null,null,null,null,null,null,null,null,null,null,null,null,null,45,"NBC",712,"Tecnología de protección del medio ambiente",712,null,null,null,null,null,null,null,null,null,null,null,null,null,null,null,null,null,null,null,null,null,"COL0016999","Vulnerabilidad Sísmica",4,{"$f":"ROW()","v":138}]
[null,null,null,null,null,null,null,null,null,null,null,null,null,null,null,null,null,null,null,null,null,null,null,null,null,null,46,"NBC",713,"Electricidad y energía",713,null,null,null,null,null,null,null,null,null,null,null,null,null,null,null,null,null,null,null,null,null,"COL0047566","EDUCACIÓN EN INGENIERÍA",1,{"$f":"ROW()","v":139}]
[null,null,null,null,null,null,null,null,null,null,null,null,null,null,null,null,null,null,null,null,null,null,null,null,null,null,47,"NBC",714,"Electrónica y automatización",714,null,null,null,null,null,null,null,null,null,null,null,null,null,null,null,null,null,null,null,null,null,"COL0047566","EVALUACIÓN ECONÓMICA Y ADMINISTRATIVA EN INGENIERÍA",2,{"$f":"ROW()","v":140}]
[null,null,null,null,null,null,null,null,null,null,null,null,null,null,null,null,null,null,null,null,null,null,null,null,null,null,48,"NBC",715,"Mecánica y profesiones afines a la metalistería",715,null,null,null,null,null,null,null,null,null,null,null,null,null,null,null,null,null,null,null,null,null,"COL0047566","GEOMATICA",3,{"$f":"ROW()","v":141}]
[null,null,null,null,null,null,null,null,null,null,null,null,null,null,null,null,null,null,null,null,null,null,null,null,null,null,49,"NBC",716,"Vehículos, barcos y aeronaves motorizadas",716,null,null,null,null,null,null,null,null,null,null,null,null,null,null,null,null,null,null,null,null,null,"COL0047566","GERENCIA DE PROYECTOS",4,{"$f":"ROW()","v":142}]
[null,null,null,null,null,null,null,null,null,null,null,null,null,null,null,null,null,null,null,null,null,null,null,null,null,null,50,"NBC",721,"Procesamiento de alimentos",721,null,null,null,null,null,null,null,null,null,null,null,null,null,null,null,null,null,null,null,null,null,"COL0047566","PROCESOS ESTOCÁSTICOS",5,{"$f":"ROW()","v":143}]
[null,null,null,null,null,null,null,null,null,null,null,null,null,null,null,null,null,null,null,null,null,null,null,null,null,null,51,"NBC",722,"Materiales (vidrio, papel, plástico y madera)",722,null,null,null,null,null,null,null,null,null,null,null,null,null,null,null,null,null,null,null,null,null,"COL0047566","PRODUCTIVIDAD E IMPACTO AMBIENTAL EN PROYECTOS DE INGENIERIA CIVIL (CONSTRUCCIÓN SOSTENIBLE)",6,{"$f":"ROW()","v":144}]
[null,null,null,null,null,null,null,null,null,null,null,null,null,null,null,null,null,null,null,null,null,null,null,null,null,null,52,"NBC",723,"Producción textiles (ropa, calzado y artículos de cuero)",723,null,null,null,null,null,null,null,null,null,null,null,null,null,null,null,null,null,null,null,null,null,"COL0050982","Expansión de Células Stem",1,{"$f":"ROW()","v":145}]
[null,null,null,null,null,null,null,null,null,null,null,null,null,null,null,null,null,null,null,null,null,null,null,null,null,null,53,"NBC",724,"Minería y extracción",724,null,null,null,null,null,null,null,null,null,null,null,null,null,null,null,null,null,null,null,null,null,"COL0050982","Inmunoregulación",2,{"$f":"ROW()","v":146}]
[null,null,null,null,null,null,null,null,null,null,null,null,null,null,null,null,null,null,null,null,null,null,null,null,null,null,54,"NBC",731,"Arquitectura y urbanismo",731,null,null,null,null,null,null,null,null,null,null,null,null,null,null,null,null,null,null,null,null,null,"COL0050982","Investigación en Cáncer",3,{"$f":"ROW()","v":147}]
[null,null,null,null,null,null,null,null,null,null,null,null,null,null,null,null,null,null,null,null,null,null,null,null,null,null,55,"NBC",732,"Construcción e ingeniería civil",732,null,null,null,null,null,null,null,null,null,null,null,null,null,null,null,null,null,null,null,null,null,"COL0050982","Mesénquima",4,{"$f":"ROW()","v":148}]
[null,null,null,null,null,null,null,null,null,null,null,null,null,null,null,null,null,null,null,null,null,null,null,null,null,null,56,"NBC",811,"Producción agrícola y ganadera",811,null,null,null,null,null,null,null,null,null,null,null,null,null,null,null,null,null,null,null,null,null,"COL0129689","Cirugía Ortognática y Distracción Osteogénica",1,{"$f":"ROW()","v":149}]
[null,null,null,null,null,null,null,null,null,null,null,null,null,null,null,null,null,null,null,null,null,null,null,null,null,null,57,"NBC",812,"Horticultura",812,null,null,null,null,null,null,null,null,null,null,null,null,null,null,null,null,null,null,null,null,null,"COL0129689","Implantología y Cirugía Reconstructiva",2,{"$f":"ROW()","v":150}]
[null,null,null,null,null,null,null,null,null,null,null,null,null,null,null,null,null,null,null,null,null,null,null,null,null,null,58,"NBC",821,"Silvicultura",821,null,null,null,null,null,null,null,null,null,null,null,null,null,null,null,null,null,null,null,null,null,"COL0129689","Infecciones, Patología y Cirugía Dentoalveolar",3,{"$f":"ROW()","v":151}]
[null,null,null,null,null,null,null,null,null,null,null,null,null,null,null,null,null,null,null,null,null,null,null,null,null,null,59,"NBC",831,"Pesca",831,null,null,null,null,null,null,null,null,null,null,null,null,null,null,null,null,null,null,null,null,null,"COL0036749","Accesibilidad",1,{"$f":"ROW()","v":152}]
[null,null,null,null,null,null,null,null,null,null,null,null,null,null,null,null,null,null,null,null,null,null,null,null,null,null,60,"NBC",841,"Veterinaria",841,null,null,null,null,null,null,null,null,null,null,null,null,null,null,null,null,null,null,null,null,null,"COL0036749","Multimedia Analítica",2,{"$f":"ROW()","v":153}]
[null,null,null,null,null,null,null,null,null,null,null,null,null,null,null,null,null,null,null,null,null,null,null,null,null,null,61,"NBC",911,"Odontología",911,null,null,null,null,null,null,null,null,null,null,null,null,null,null,null,null,null,null,null,null,null,"COL0002896","Bioética Educación y Cultura",1,{"$f":"ROW()","v":154}]
[null,null,null,null,null,null,null,null,null,null,null,null,null,null,null,null,null,null,null,null,null,null,null,null,null,null,62,"NBC",912,"Medicina",912,null,null,null,null,null,null,null,null,null,null,null,null,null,null,null,null,null,null,null,null,null,"COL0002896","Educación y Sociedad",2,{"$f":"ROW()","v":155}]
[null,null,null,null,null,null,null,null,null,null,null,null,null,null,null,null,null,null,null,null,null,null,null,null,null,null,63,"NBC",913,"Enfermería y partería",913,null,null,null,null,null,null,null,null,null,null,null,null,null,null,null,null,null,null,null,null,null,"COL0002896","Educación y cultura",3,{"$f":"ROW()","v":156}]
[null,null,null,null,null,null,null,null,null,null,null,null,null,null,null,null,null,null,null,null,null,null,null,null,null,null,64,"NBC",914,"Tecnología de diagnóstico y tratamiento médico",914,null,null,null,null,null,null,null,null,null,null,null,null,null,null,null,null,null,null,null,null,null,"COL0066229","(EO) Estructuras Organizacionales",1,{"$f":"ROW()","v":157}]
[null,null,null,null,null,null,null,null,null,null,null,null,null,null,null,null,null,null,null,null,null,null,null,null,null,null,65,"NBC",915,"Terapia y rehabilitación",915,null,null,null,null,null,null,null,null,null,null,null,null,null,null,null,null,null,null,null,null,null,"COL0066229","(PI) Procesos de Integración",2,{"$f":"ROW()","v":158}]
[null,null,null,null,null,null,null,null,null,null,null,null,null,null,null,null,null,null,null,null,null,null,null,null,null,null,66,"NBC",916,"Farmacia",916,null,null,null,null,null,null,null,null,null,null,null,null,null,null,null,null,null,null,null,null,null,"COL0066229","(R) Regionalización",3,{"$f":"ROW()","v":159}]
[null,null,null,null,null,null,null,null,null,null,null,null,null,null,null,null,null,null,null,null,null,null,null,null,null,null,67,"NBC",917,"Medicina y terapia tradicional y complementaria",917,null,null,null,null,null,null,null,null,null,null,null,null,null,null,null,null,null,null,null,null,null,"COL0028767","CONTABILIDAD INTERNACIONAL",1,{"$f":"ROW()","v":160}]
[null,null,null,null,null,null,null,null,null,null,null,null,null,null,null,null,null,null,null,null,null,null,null,null,null,null,68,"NBC",921,"Asistencia a adultos mayores y discapacitados",921,null,null,null,null,null,null,null,null,null,null,null,null,null,null,null,null,null,null,null,null,null,"COL0028767","Contabilidad y Sociedad",2,{"$f":"ROW()","v":161}]
[null,null,null,null,null,null,null,null,null,null,null,null,null,null,null,null,null,null,null,null,null,null,null,null,null,null,69,"NBC",922,"Asistencia a la infancia y servicios para jóvenes",922,null,null,null,null,null,null,null,null,null,null,null,null,null,null,null,null,null,null,null,null,null,"COL0028767","Contabilidad y gestion",3,{"$f":"ROW()","v":162}]
[null,null,null,null,null,null,null,null,null,null,null,null,null,null,null,null,null,null,null,null,null,null,null,null,null,null,70,"NBC",923,"Trabajo social y orientación",923,null,null,null,null,null,null,null,null,null,null,null,null,null,null,null,null,null,null,null,null,null,"COL0028767","Estudios contemporáneos en contabilidad y finanzas",4,{"$f":"ROW()","v":163}]
[null,null,null,null,null,null,null,null,null,null,null,null,null,null,null,null,null,null,null,null,null,null,null,null,null,null,71,"NBC",1011,"Servicios domésticos",1011,null,null,null,null,null,null,null,null,null,null,null,null,null,null,null,null,null,null,null,null,null,"COL0028767","Estudios contemporáneos en gestión y organizaciones",5,{"$f":"ROW()","v":164}]
[null,null,null,null,null,null,null,null,null,null,null,null,null,null,null,null,null,null,null,null,null,null,null,null,null,null,72,"NBC",1012,"Peluquería y tratamientos de belleza",1012,null,null,null,null,null,null,null,null,null,null,null,null,null,null,null,null,null,null,null,null,null,"COL0048492","Biología Molecular de organismos acuáticos, con énfasis en especies de interés comercial y amenazadas.",1,{"$f":"ROW()","v":165}]
[null,null,null,null,null,null,null,null,null,null,null,null,null,null,null,null,null,null,null,null,null,null,null,null,null,null,73,"NBC",1013,"Hotelería, restaurantes y servicios de banquetes",1013,null,null,null,null,null,null,null,null,null,null,null,null,null,null,null,null,null,null,null,null,null,"COL0048492","DINÁMICA ECOLÓGICA DEL ZOOPLANCTON EN EL OCÉANO PACÍFICO COLOMBIANO. CRUCEROS 2007-2010 DE LA SERIE ERFEN (ESTUDIO REGIONAL DEL FENÓMENO EL NIŃO).",2,{"$f":"ROW()","v":166}]
[null,null,null,null,null,null,null,null,null,null,null,null,null,null,null,null,null,null,null,null,null,null,null,null,null,null,74,"NBC",1014,"Deportes",1014,null,null,null,null,null,null,null,null,null,null,null,null,null,null,null,null,null,null,null,null,null,"COL0048492","Estudios Morfológicos, Tróficos, Ecológicos, Bióticos y Abióticos de Humedales Colombianos, con énfasis en la Sabana de Bogotá.",3,{"$f":"ROW()","v":167}]
[null,null,null,null,null,null,null,null,null,null,null,null,null,null,null,null,null,null,null,null,null,null,null,null,null,null,75,"NBC",1015,"Viajes, turismo y actividades recreativas",1015,null,null,null,null,null,null,null,null,null,null,null,null,null,null,null,null,null,null,null,null,null,"COL0048492","Estudios morfológicos, nutricionales, ontogénicos y de cultivo de organismos acuáticos de interés comercial.",4,{"$f":"ROW()","v":168}]
[null,null,null,null,null,null,null,null,null,null,null,null,null,null,null,null,null,null,null,null,null,null,null,null,null,null,76,"NBC",1021,"Saneamiento de la comunidad",1021,null,null,null,null,null,null,null,null,null,null,null,null,null,null,null,null,null,null,null,null,null,"COL0077814","Producción Hortícola Limpia",1,{"$f":"ROW()","v":169}]
[null,null,null,null,null,null,null,null,null,null,null,null,null,null,null,null,null,null,null,null,null,null,null,null,null,null,77,"NBC",1022,"Salud y protección laboral",1022,null,null,null,null,null,null,null,null,null,null,null,null,null,null,null,null,null,null,null,null,null,"COL0077707","Biodiversidad y Conservación",1,{"$f":"ROW()","v":170}]
[null,null,null,null,null,null,null,null,null,null,null,null,null,null,null,null,null,null,null,null,null,null,null,null,null,null,78,"NBC",1031,"Educación militar y de defensa",1031,null,null,null,null,null,null,null,null,null,null,null,null,null,null,null,null,null,null,null,null,null,"COL0077707","Bioprospección de Comunidades Vegetales",2,{"$f":"ROW()","v":171}]
[null,null,null,null,null,null,null,null,null,null,null,null,null,null,null,null,null,null,null,null,null,null,null,null,null,null,79,"NBC",1032,"Protección de las personas y de la propiedad",1032,null,null,null,null,null,null,null,null,null,null,null,null,null,null,null,null,null,null,null,null,null,"COL0077707","Búsqueda Biodirigida y Síntesis de Sustancias Bioactivas",3,{"$f":"ROW()","v":172}]
[null,null,null,null,null,null,null,null,null,null,null,null,null,null,null,null,null,null,null,null,null,null,null,null,null,null,80,"NBC",1041,"Servicios de transporte",1041,null,null,null,null,null,null,null,null,null,null,null,null,null,null,null,null,null,null,null,null,null,"COL0077707","Fitopatología y ecofisiología vegetal",4,{"$f":"ROW()","v":173}]
[null,null,null,null,null,null,null,null,null,null,null,null,null,null,null,null,null,null,null,null,null,null,null,null,null,null,1,"Nivel",1,"Postdoctorado",{"$f":"AC174","v":1},null,null,null,null,null,null,null,null,null,null,null,null,null,null,null,null,null,null,null,null,null,"COL0077707","Metabolómica",5,{"$f":"ROW()","v":174}]
[null,null,null,null,null,null,null,null,null,null,null,null,null,null,null,null,null,null,null,null,null,null,null,null,null,null,2,"Nivel",2,"Doctorado",{"$f":"AC175","v":2},null,null,null,null,null,null,null,null,null,null,null,null,null,null,null,null,null,null,null,null,null,"COL0077707","Modelado Molecular y Quimioinformática",6,{"$f":"ROW()","v":175}]
[null,null,null,null,null,null,null,null,null,null,null,null,null,null,null,null,null,null,null,null,null,null,null,null,null,null,3,"Nivel",3,"Maestría",3,null,null,null,null,null,null,null,null,null,null,null,null,null,null,null,null,null,null,null,null,null,"COL0077707","Química Ambiental",7,{"$f":"ROW()","v":176}]
[null,null,null,null,null,null,null,null,null,null,null,null,null,null,null,null,null,null,null,null,null,null,null,null,null,null,4,"Nivel",4,"Esp. universitaria",4,null,null,null,null,null,null,null,null,null,null,null,null,null,null,null,null,null,null,null,null,null,"COL0077707","Química Bioorgánica",8,{"$f":"ROW()","v":177}]
[null,null,null,null,null,null,null,null,null,null,null,null,null,null,null,null,null,null,null,null,null,null,null,null,null,null,5,"Nivel",5,"Esp. Técnica Profesional",5,null,null,null,null,null,null,null,null,null,null,null,null,null,null,null,null,null,null,null,null,null,"COL0077707","Redes Tróficas y Agroecología",9,{"$f":"ROW()","v":178}]
[null,null,null,null,null,null,null,null,null,null,null,null,null,null,null,null,null,null,null,null,null,null,null,null,null,null,6,"Nivel",6,"Esp. Tecnológica",6,null,null,null,null,null,null,null,null,null,null,null,null,null,null,null,null,null,null,null,null,null,"COL0110436","Bioquímica",1,{"$f":"ROW()","v":179}]
[null,null,null,null,null,null,null,null,null,null,null,null,null,null,null,null,null,null,null,null,null,null,null,null,null,null,7,"Nivel",7,"Universitario",7,null,null,null,null,null,null,null,null,null,null,null,null,null,null,null,null,null,null,null,null,null,"COL0110436","Biorremedación",2,{"$f":"ROW()","v":180}]
[null,null,null,null,null,null,null,null,null,null,null,null,null,null,null,null,null,null,null,null,null,null,null,null,null,null,8,"Nivel",8,"Tecnológico",8,null,null,null,null,null,null,null,null,null,null,null,null,null,null,null,null,null,null,null,null,null,"COL0110436","Fitoquímica",3,{"$f":"ROW()","v":181}]
[null,null,null,null,null,null,null,null,null,null,null,null,null,null,null,null,null,null,null,null,null,null,null,null,null,null,9,"Nivel",9,"Técnico profesional",9,null,null,null,null,null,null,null,null,null,null,null,null,null,null,null,null,null,null,null,null,null,"COL0110436","Química Inorgánica",4,{"$f":"ROW()","v":182}]
[null,null,null,null,null,null,null,null,null,null,null,null,null,null,null,null,null,null,null,null,null,null,null,null,null,null,10,"Nivel",10,"Estudiante pregrado",10,null,null,null,null,null,null,null,null,null,null,null,null,null,null,null,null,null,null,null,null,null,"COL0110436","Química Verde",5,{"$f":"ROW()","v":183}]
[null,null,null,null,null,null,null,null,null,null,null,null,null,null,null,null,null,null,null,null,null,null,null,null,null,null,1,"A",100,"Puede aplicar al maximo de presupuesto dependiendo los puntos comprometidos",null,null,null,null,null,null,null,null,null,null,null,null,null,null,null,null,null,null,null,null,null,null,"COL0110436","Química de coordinación y catálisis ambiental",6,{"$f":"ROW()","v":184}]
[null,null,null,null,null,null,null,null,null,null,null,null,null,null,null,null,null,null,null,null,null,null,null,null,null,null,8,"A1",100,"Puede aplicar al maximo de presupuesto dependiendo los puntos comprometidos",null,null,null,null,null,null,null,null,null,null,null,null,null,null,null,null,null,null,null,null,null,null,"COL0125134","Ayudas Auditivas Implantables",1,{"$f":"ROW()","v":185}]
[null,null,null,null,null,null,null,null,null,null,null,null,null,null,null,null,null,null,null,null,null,null,null,null,null,null,9,"B",100,"Puede aplicar al maximo de presupuesto dependiendo los puntos comprometidos",null,null,null,null,null,null,null,null,null,null,null,null,null,null,null,null,null,null,null,null,null,null,"COL0125134","Base de cráneo",2,{"$f":"ROW()","v":186}]
[null,null,null,null,null,null,null,null,null,null,null,null,null,null,null,null,null,null,null,null,null,null,null,null,null,null,10,"C",100,"Puede aplicar al maximo de presupuesto dependiendo los puntos comprometidos",null,null,null,null,null,null,null,null,null,null,null,null,null,null,null,null,null,null,null,null,null,null,"COL0125134","Cáncer Laríngeo",3,{"$f":"ROW()","v":187}]
[null,null,null,null,null,null,null,null,null,null,null,null,null,null,null,null,null,null,null,null,null,null,null,null,null,null,11,"D",50,"Puede aplicar hasta 50 millones de presupuesto dependiendo los puntos comprometidos",null,null,null,null,null,null,null,null,null,null,null,null,null,null,null,null,null,null,null,null,null,null,"COL0125134","Enfermedad de Meniere",4,{"$f":"ROW()","v":188}]
[null,null,null,null,null,null,null,null,null,null,null,null,null,null,null,null,null,null,null,null,null,null,null,null,null,null,2,"R",25,"Puede aplicar hasta 25 millones de presupuesto dependiendo los puntos comprometidos",null,null,null,null,null,null,null,null,null,null,null,null,null,null,null,null,null,null,null,null,null,null,"COL0125134","Oído Crónico",5,{"$f":"ROW()","v":189}]
[null,null,null,null,null,null,null,null,null,null,null,null,null,null,null,null,null,null,null,null,null,null,null,null,null,null,2,"NR",25,"Puede aplicar hasta 25 millones de presupuesto dependiendo los puntos comprometidos",null,null,null,null,null,null,null,null,null,null,null,null,null,null,null,null,null,null,null,null,null,null,"COL0125134","Rinosinusitis Crónica",6,{"$f":"ROW()","v":190}]
[null,null,null,null,null,null,null,null,null,null,null,null,null,null,null,null,null,null,null,null,null,null,null,null,null,null,null,null,null,null,null,null,null,null,null,null,null,null,null,null,null,null,null,null,null,null,null,null,null,null,null,null,"COL0125134","Trauma de guerra en Otorrinolaringología",7,{"$f":"ROW()","v":191}]
[null,null,null,null,null,null,null,null,null,null,null,null,null,null,null,null,null,null,null,null,null,null,null,null,null,null,null,null,null,null,null,null,null,null,null,null,null,null,null,null,null,null,null,null,null,null,null,null,null,null,null,null,"COL0120281","Medicina Electrodiagnostica",1,{"$f":"ROW()","v":192}]
[null,null,null,null,null,null,null,null,null,null,null,null,null,null,null,null,null,null,null,null,null,null,null,null,null,null,null,null,null,null,null,null,null,null,null,null,null,null,null,null,null,null,null,null,null,null,null,null,null,null,null,null,"COL0120281","Rehabilitacion Neurologica",2,{"$f":"ROW()","v":193}]
[null,null,null,null,null,null,null,null,null,null,null,null,null,null,null,null,null,null,null,null,null,null,null,null,null,null,null,null,null,null,null,null,null,null,null,null,null,null,null,null,null,null,null,null,null,null,null,null,null,null,null,null,"COL0120281","Rehabilitacion cardio-pulmonar",3,{"$f":"ROW()","v":194}]
[null,null,null,null,null,null,null,null,null,null,null,null,null,null,null,null,null,null,null,null,null,null,null,null,null,null,null,null,null,null,null,null,null,null,null,null,null,null,null,null,null,null,null,null,null,null,null,null,null,null,null,null,"COL0120281","Rehabilitacion musculo esqueletica",4,{"$f":"ROW()","v":195}]
[null,null,null,null,null,null,null,null,null,null,null,null,null,null,null,null,null,null,null,null,null,null,null,null,null,null,null,null,null,null,null,null,null,null,null,null,null,null,null,null,null,null,null,null,null,null,null,null,null,null,null,null,"COL0120281","Rehabilitación Infantil",5,{"$f":"ROW()","v":196}]
[null,null,null,null,null,null,null,null,null,null,null,null,null,null,null,null,null,null,null,null,null,null,null,null,null,null,null,null,null,null,null,null,null,null,null,null,null,null,null,null,null,null,null,null,null,null,null,null,null,null,null,null,"COL0128047","Derecho de la responsabilidad y de seguros",1,{"$f":"ROW()","v":197}]
[null,null,null,null,null,null,null,null,null,null,null,null,null,null,null,null,null,null,null,null,null,null,null,null,null,null,null,null,null,null,null,null,null,null,null,null,null,null,null,null,null,null,null,null,null,null,null,null,null,null,null,null,"COL0128047","Derecho económico y de los negocios.",2,{"$f":"ROW()","v":198}]
[null,null,null,null,null,null,null,null,null,null,null,null,null,null,null,null,null,null,null,null,null,null,null,null,null,null,null,null,null,null,null,null,null,null,null,null,null,null,null,null,null,null,null,null,null,null,null,null,null,null,null,null,"COL0116538","Andrologia y Salud sexual",1,{"$f":"ROW()","v":199}]
[null,null,null,null,null,null,null,null,null,null,null,null,null,null,null,null,null,null,null,null,null,null,null,null,null,null,null,null,null,null,null,null,null,null,null,null,null,null,null,null,null,null,null,null,null,null,null,null,null,null,null,null,"COL0116538","Hiperplasia Prostatica",2,{"$f":"ROW()","v":200}]
[null,null,null,null,null,null,null,null,null,null,null,null,null,null,null,null,null,null,null,null,null,null,null,null,null,null,null,null,null,null,null,null,null,null,null,null,null,null,null,null,null,null,null,null,null,null,null,null,null,null,null,null,"COL0116538","Incontinencia Urinaria",3,{"$f":"ROW()","v":201}]
[null,null,null,null,null,null,null,null,null,null,null,null,null,null,null,null,null,null,null,null,null,null,null,null,null,null,null,null,null,null,null,null,null,null,null,null,null,null,null,null,null,null,null,null,null,null,null,null,null,null,null,null,"COL0116538","Litiasis y endourologia",4,{"$f":"ROW()","v":202}]
[null,null,null,null,null,null,null,null,null,null,null,null,null,null,null,null,null,null,null,null,null,null,null,null,null,null,null,null,null,null,null,null,null,null,null,null,null,null,null,null,null,null,null,null,null,null,null,null,null,null,null,null,"COL0116538","Oncologia Urologica",5,{"$f":"ROW()","v":203}]
[null,null,null,null,null,null,null,null,null,null,null,null,null,null,null,null,null,null,null,null,null,null,null,null,null,null,null,null,null,null,null,null,null,null,null,null,null,null,null,null,null,null,null,null,null,null,null,null,null,null,null,null,"COL0116538","Urologia Pediatrica",6,{"$f":"ROW()","v":204}]
[null,null,null,null,null,null,null,null,null,null,null,null,null,null,null,null,null,null,null,null,null,null,null,null,null,null,null,null,null,null,null,null,null,null,null,null,null,null,null,null,null,null,null,null,null,null,null,null,null,null,null,null,"COL0026486","Procesos biológicos",1,{"$f":"ROW()","v":205}]
[null,null,null,null,null,null,null,null,null,null,null,null,null,null,null,null,null,null,null,null,null,null,null,null,null,null,null,null,null,null,null,null,null,null,null,null,null,null,null,null,null,null,null,null,null,null,null,null,null,null,null,null,"COL0026486","Procesos de oxidación avanzada",2,{"$f":"ROW()","v":206}]
[null,null,null,null,null,null,null,null,null,null,null,null,null,null,null,null,null,null,null,null,null,null,null,null,null,null,null,null,null,null,null,null,null,null,null,null,null,null,null,null,null,null,null,null,null,null,null,null,null,null,null,null,"COL0026486","Procesos enzimaticos",3,{"$f":"ROW()","v":207}]
[null,null,null,null,null,null,null,null,null,null,null,null,null,null,null,null,null,null,null,null,null,null,null,null,null,null,null,null,null,null,null,null,null,null,null,null,null,null,null,null,null,null,null,null,null,null,null,null,null,null,null,null,"COL0031824","Bioética Global y Complejidad",1,{"$f":"ROW()","v":208}]
[null,null,null,null,null,null,null,null,null,null,null,null,null,null,null,null,null,null,null,null,null,null,null,null,null,null,null,null,null,null,null,null,null,null,null,null,null,null,null,null,null,null,null,null,null,null,null,null,null,null,null,null,"COL0031824","Bioética Médica y salud pública",2,{"$f":"ROW()","v":209}]
[null,null,null,null,null,null,null,null,null,null,null,null,null,null,null,null,null,null,null,null,null,null,null,null,null,null,null,null,null,null,null,null,null,null,null,null,null,null,null,null,null,null,null,null,null,null,null,null,null,null,null,null,"COL0031824","Bioética, Biopolítica y Biojurídica",3,{"$f":"ROW()","v":210}]
[null,null,null,null,null,null,null,null,null,null,null,null,null,null,null,null,null,null,null,null,null,null,null,null,null,null,null,null,null,null,null,null,null,null,null,null,null,null,null,null,null,null,null,null,null,null,null,null,null,null,null,null,"COL0031824","Bioética, educación y cultura",4,{"$f":"ROW()","v":211}]
[null,null,null,null,null,null,null,null,null,null,null,null,null,null,null,null,null,null,null,null,null,null,null,null,null,null,null,null,null,null,null,null,null,null,null,null,null,null,null,null,null,null,null,null,null,null,null,null,null,null,null,null,"COL0045848","Epidemiología Clínica de Diabetes e Insulino resistencia",1,{"$f":"ROW()","v":212}]
[null,null,null,null,null,null,null,null,null,null,null,null,null,null,null,null,null,null,null,null,null,null,null,null,null,null,null,null,null,null,null,null,null,null,null,null,null,null,null,null,null,null,null,null,null,null,null,null,null,null,null,null,"COL0045848","Genética de diabetes mellitus e insulino resistencia",2,{"$f":"ROW()","v":213}]
[null,null,null,null,null,null,null,null,null,null,null,null,null,null,null,null,null,null,null,null,null,null,null,null,null,null,null,null,null,null,null,null,null,null,null,null,null,null,null,null,null,null,null,null,null,null,null,null,null,null,null,null,"COL0045848","Prevención Cardiovascular",3,{"$f":"ROW()","v":214}]
[null,null,null,null,null,null,null,null,null,null,null,null,null,null,null,null,null,null,null,null,null,null,null,null,null,null,null,null,null,null,null,null,null,null,null,null,null,null,null,null,null,null,null,null,null,null,null,null,null,null,null,null,"COL0052163","Internet de las Cosas",1,{"$f":"ROW()","v":215}]
[null,null,null,null,null,null,null,null,null,null,null,null,null,null,null,null,null,null,null,null,null,null,null,null,null,null,null,null,null,null,null,null,null,null,null,null,null,null,null,null,null,null,null,null,null,null,null,null,null,null,null,null,"COL0052163","Procesamiento de Seńales",2,{"$f":"ROW()","v":216}]
[null,null,null,null,null,null,null,null,null,null,null,null,null,null,null,null,null,null,null,null,null,null,null,null,null,null,null,null,null,null,null,null,null,null,null,null,null,null,null,null,null,null,null,null,null,null,null,null,null,null,null,null,"COL0052163","Seguridad Informática",3,{"$f":"ROW()","v":217}]
[null,null,null,null,null,null,null,null,null,null,null,null,null,null,null,null,null,null,null,null,null,null,null,null,null,null,null,null,null,null,null,null,null,null,null,null,null,null,null,null,null,null,null,null,null,null,null,null,null,null,null,null,"COL0052163","Sistemas bioinspirados",4,{"$f":"ROW()","v":218}]
[null,null,null,null,null,null,null,null,null,null,null,null,null,null,null,null,null,null,null,null,null,null,null,null,null,null,null,null,null,null,null,null,null,null,null,null,null,null,null,null,null,null,null,null,null,null,null,null,null,null,null,null,"COL0052163","Sistemas de comunicaciones",5,{"$f":"ROW()","v":219}]
[null,null,null,null,null,null,null,null,null,null,null,null,null,null,null,null,null,null,null,null,null,null,null,null,null,null,null,null,null,null,null,null,null,null,null,null,null,null,null,null,null,null,null,null,null,null,null,null,null,null,null,null,"COL0066669","Estrategia y Seguridad",1,{"$f":"ROW()","v":220}]
[null,null,null,null,null,null,null,null,null,null,null,null,null,null,null,null,null,null,null,null,null,null,null,null,null,null,null,null,null,null,null,null,null,null,null,null,null,null,null,null,null,null,null,null,null,null,null,null,null,null,null,null,"COL0066669","Paz y Posconflicto",2,{"$f":"ROW()","v":221}]
[null,null,null,null,null,null,null,null,null,null,null,null,null,null,null,null,null,null,null,null,null,null,null,null,null,null,null,null,null,null,null,null,null,null,null,null,null,null,null,null,null,null,null,null,null,null,null,null,null,null,null,null,"COL0066669","Seguridad Física",3,{"$f":"ROW()","v":222}]
[null,null,null,null,null,null,null,null,null,null,null,null,null,null,null,null,null,null,null,null,null,null,null,null,null,null,null,null,null,null,null,null,null,null,null,null,null,null,null,null,null,null,null,null,null,null,null,null,null,null,null,null,"COL0066669","Seguridad de Personas",4,{"$f":"ROW()","v":223}]
[null,null,null,null,null,null,null,null,null,null,null,null,null,null,null,null,null,null,null,null,null,null,null,null,null,null,null,null,null,null,null,null,null,null,null,null,null,null,null,null,null,null,null,null,null,null,null,null,null,null,null,null,"COL0068762","Ingeniería Sostenible",1,{"$f":"ROW()","v":224}]
[null,null,null,null,null,null,null,null,null,null,null,null,null,null,null,null,null,null,null,null,null,null,null,null,null,null,null,null,null,null,null,null,null,null,null,null,null,null,null,null,null,null,null,null,null,null,null,null,null,null,null,null,"COL0068762","Inteligencia artificial y procesamiento de seńales",2,{"$f":"ROW()","v":225}]
[null,null,null,null,null,null,null,null,null,null,null,null,null,null,null,null,null,null,null,null,null,null,null,null,null,null,null,null,null,null,null,null,null,null,null,null,null,null,null,null,null,null,null,null,null,null,null,null,null,null,null,null,"COL0068762","Laboratorios virtuales e instrumentación virtual",3,{"$f":"ROW()","v":226}]
[null,null,null,null,null,null,null,null,null,null,null,null,null,null,null,null,null,null,null,null,null,null,null,null,null,null,null,null,null,null,null,null,null,null,null,null,null,null,null,null,null,null,null,null,null,null,null,null,null,null,null,null,"COL0068762","Sistemas Bioinspirados",4,{"$f":"ROW()","v":227}]
[null,null,null,null,null,null,null,null,null,null,null,null,null,null,null,null,null,null,null,null,null,null,null,null,null,null,null,null,null,null,null,null,null,null,null,null,null,null,null,null,null,null,null,null,null,null,null,null,null,null,null,null,"COL0068762","Tecnologías de la información y las comunicaciones (TIC)",5,{"$f":"ROW()","v":228}]
[null,null,null,null,null,null,null,null,null,null,null,null,null,null,null,null,null,null,null,null,null,null,null,null,null,null,null,null,null,null,null,null,null,null,null,null,null,null,null,null,null,null,null,null,null,null,null,null,null,null,null,null,"COL0068762","Visión de Máquina",6,{"$f":"ROW()","v":229}]
[null,null,null,null,null,null,null,null,null,null,null,null,null,null,null,null,null,null,null,null,null,null,null,null,null,null,null,null,null,null,null,null,null,null,null,null,null,null,null,null,null,null,null,null,null,null,null,null,null,null,null,null,"COL0067371","Desarrollo de diagnósticos físico matemáticos de la morfofisiología celular e histológica con base en geometría fractal y euclidiana.",1,{"$f":"ROW()","v":230}]
[null,null,null,null,null,null,null,null,null,null,null,null,null,null,null,null,null,null,null,null,null,null,null,null,null,null,null,null,null,null,null,null,null,null,null,null,null,null,null,null,null,null,null,null,null,null,null,null,null,null,null,null,"COL0067371","Desarrollo de diagnósticos físico matemáticos de la morfofisiología y la dinámica cardiaca fetal y de adultos",2,{"$f":"ROW()","v":231}]
[null,null,null,null,null,null,null,null,null,null,null,null,null,null,null,null,null,null,null,null,null,null,null,null,null,null,null,null,null,null,null,null,null,null,null,null,null,null,null,null,null,null,null,null,null,null,null,null,null,null,null,null,"COL0067371","Física y matemáticas aplicadas",3,{"$f":"ROW()","v":232}]
[null,null,null,null,null,null,null,null,null,null,null,null,null,null,null,null,null,null,null,null,null,null,null,null,null,null,null,null,null,null,null,null,null,null,null,null,null,null,null,null,null,null,null,null,null,null,null,null,null,null,null,null,"COL0067371","Predicciones en infectología",4,{"$f":"ROW()","v":233}]
[null,null,null,null,null,null,null,null,null,null,null,null,null,null,null,null,null,null,null,null,null,null,null,null,null,null,null,null,null,null,null,null,null,null,null,null,null,null,null,null,null,null,null,null,null,null,null,null,null,null,null,null,"COL0067371","Teorías físicas y Matemáticas aplicadas al desarrollo de diagnósticos de la dinámica y morfología cardíaca",5,{"$f":"ROW()","v":234}]
[null,null,null,null,null,null,null,null,null,null,null,null,null,null,null,null,null,null,null,null,null,null,null,null,null,null,null,null,null,null,null,null,null,null,null,null,null,null,null,null,null,null,null,null,null,null,null,null,null,null,null,null,"COL0067371","teorías físicas y Matemáticas aplicadas a la prediccion de epidemias",6,{"$f":"ROW()","v":235}]
[null,null,null,null,null,null,null,null,null,null,null,null,null,null,null,null,null,null,null,null,null,null,null,null,null,null,null,null,null,null,null,null,null,null,null,null,null,null,null,null,null,null,null,null,null,null,null,null,null,null,null,null,"COL0067371","teorías físicas y Matemáticas aplicadas al de diagnósticos de Morfología y fisiología celular",7,{"$f":"ROW()","v":236}]
[null,null,null,null,null,null,null,null,null,null,null,null,null,null,null,null,null,null,null,null,null,null,null,null,null,null,null,null,null,null,null,null,null,null,null,null,null,null,null,null,null,null,null,null,null,null,null,null,null,null,null,null,"COL0067371","teorías físicas y Matemáticas aplicadas al desarrollo de predicciones en inmunología y biología molecular para el desarrollo de vacunas",8,{"$f":"ROW()","v":237}]
[null,null,null,null,null,null,null,null,null,null,null,null,null,null,null,null,null,null,null,null,null,null,null,null,null,null,null,null,null,null,null,null,null,null,null,null,null,null,null,null,null,null,null,null,null,null,null,null,null,null,null,null,"COL0110329","Didáctica de las matemáticas universitarias",1,{"$f":"ROW()","v":238}]
[null,null,null,null,null,null,null,null,null,null,null,null,null,null,null,null,null,null,null,null,null,null,null,null,null,null,null,null,null,null,null,null,null,null,null,null,null,null,null,null,null,null,null,null,null,null,null,null,null,null,null,null,"COL0110329","Diseńo curricular y evaluación en matemáticas universitarias",2,{"$f":"ROW()","v":239}]
[null,null,null,null,null,null,null,null,null,null,null,null,null,null,null,null,null,null,null,null,null,null,null,null,null,null,null,null,null,null,null,null,null,null,null,null,null,null,null,null,null,null,null,null,null,null,null,null,null,null,null,null,"COL0110329","Herramientas virtuales y enseńanza de las matemáticas universitarias",3,{"$f":"ROW()","v":240}]
[null,null,null,null,null,null,null,null,null,null,null,null,null,null,null,null,null,null,null,null,null,null,null,null,null,null,null,null,null,null,null,null,null,null,null,null,null,null,null,null,null,null,null,null,null,null,null,null,null,null,null,null,"COL0117052","Ambiental",1,{"$f":"ROW()","v":241}]
[null,null,null,null,null,null,null,null,null,null,null,null,null,null,null,null,null,null,null,null,null,null,null,null,null,null,null,null,null,null,null,null,null,null,null,null,null,null,null,null,null,null,null,null,null,null,null,null,null,null,null,null,"COL0117052","Arte y Tecnología",2,{"$f":"ROW()","v":242}]
[null,null,null,null,null,null,null,null,null,null,null,null,null,null,null,null,null,null,null,null,null,null,null,null,null,null,null,null,null,null,null,null,null,null,null,null,null,null,null,null,null,null,null,null,null,null,null,null,null,null,null,null,"COL0117052","Energía",3,{"$f":"ROW()","v":243}]
[null,null,null,null,null,null,null,null,null,null,null,null,null,null,null,null,null,null,null,null,null,null,null,null,null,null,null,null,null,null,null,null,null,null,null,null,null,null,null,null,null,null,null,null,null,null,null,null,null,null,null,null,"COL0117052","Gestión e Innovación",4,{"$f":"ROW()","v":244}]
[null,null,null,null,null,null,null,null,null,null,null,null,null,null,null,null,null,null,null,null,null,null,null,null,null,null,null,null,null,null,null,null,null,null,null,null,null,null,null,null,null,null,null,null,null,null,null,null,null,null,null,null,"COL0117052","Materiales",5,{"$f":"ROW()","v":245}]
[null,null,null,null,null,null,null,null,null,null,null,null,null,null,null,null,null,null,null,null,null,null,null,null,null,null,null,null,null,null,null,null,null,null,null,null,null,null,null,null,null,null,null,null,null,null,null,null,null,null,null,null,"COL0138796","Docencia y Didactica de la Física Universitaria",1,{"$f":"ROW()","v":246}]
[null,null,null,null,null,null,null,null,null,null,null,null,null,null,null,null,null,null,null,null,null,null,null,null,null,null,null,null,null,null,null,null,null,null,null,null,null,null,null,null,null,null,null,null,null,null,null,null,null,null,null,null,"COL0138796","Física Atómica, Molecular y de Agregados",2,{"$f":"ROW()","v":247}]
[null,null,null,null,null,null,null,null,null,null,null,null,null,null,null,null,null,null,null,null,null,null,null,null,null,null,null,null,null,null,null,null,null,null,null,null,null,null,null,null,null,null,null,null,null,null,null,null,null,null,null,null,"COL0138796","Magnetismo y Aplicaciones",3,{"$f":"ROW()","v":248}]
[null,null,null,null,null,null,null,null,null,null,null,null,null,null,null,null,null,null,null,null,null,null,null,null,null,null,null,null,null,null,null,null,null,null,null,null,null,null,null,null,null,null,null,null,null,null,null,null,null,null,null,null,"COL0138796","Nanotecnología y Sensórica",4,{"$f":"ROW()","v":249}]
[null,null,null,null,null,null,null,null,null,null,null,null,null,null,null,null,null,null,null,null,null,null,null,null,null,null,null,null,null,null,null,null,null,null,null,null,null,null,null,null,null,null,null,null,null,null,null,null,null,null,null,null,"COL0138796","Uso de radiación ionizante para la producción de imágenes médicas",5,{"$f":"ROW()","v":250}]
[null,null,null,null,null,null,null,null,null,null,null,null,null,null,null,null,null,null,null,null,null,null,null,null,null,null,null,null,null,null,null,null,null,null,null,null,null,null,null,null,null,null,null,null,null,null,null,null,null,null,null,null,"COL0152463","CURRÍCULO Y EVALUACIÓN",1,{"$f":"ROW()","v":251}]
[null,null,null,null,null,null,null,null,null,null,null,null,null,null,null,null,null,null,null,null,null,null,null,null,null,null,null,null,null,null,null,null,null,null,null,null,null,null,null,null,null,null,null,null,null,null,null,null,null,null,null,null,"COL0152463","DOCENCIA Y PEDAGOGÍA",2,{"$f":"ROW()","v":252}]
[null,null,null,null,null,null,null,null,null,null,null,null,null,null,null,null,null,null,null,null,null,null,null,null,null,null,null,null,null,null,null,null,null,null,null,null,null,null,null,null,null,null,null,null,null,null,null,null,null,null,null,null,"COL0152463","INVESTIGACIÓN CLINICA",3,{"$f":"ROW()","v":253}]
[null,null,null,null,null,null,null,null,null,null,null,null,null,null,null,null,null,null,null,null,null,null,null,null,null,null,null,null,null,null,null,null,null,null,null,null,null,null,null,null,null,null,null,null,null,null,null,null,null,null,null,null,"COL0143731","Electrónica y Telecomunicaciones en Salud",1,{"$f":"ROW()","v":254}]
[null,null,null,null,null,null,null,null,null,null,null,null,null,null,null,null,null,null,null,null,null,null,null,null,null,null,null,null,null,null,null,null,null,null,null,null,null,null,null,null,null,null,null,null,null,null,null,null,null,null,null,null,"COL0143731","Espectro Radioeléctrico",2,{"$f":"ROW()","v":255}]
[null,null,null,null,null,null,null,null,null,null,null,null,null,null,null,null,null,null,null,null,null,null,null,null,null,null,null,null,null,null,null,null,null,null,null,null,null,null,null,null,null,null,null,null,null,null,null,null,null,null,null,null,"COL0143731","Sistemas virtuales de comunicación",3,{"$f":"ROW()","v":256}]
[null,null,null,null,null,null,null,null,null,null,null,null,null,null,null,null,null,null,null,null,null,null,null,null,null,null,null,null,null,null,null,null,null,null,null,null,null,null,null,null,null,null,null,null,null,null,null,null,null,null,null,null,"COL0069296","Modelos de simulación para la Ingeniería Civil",1,{"$f":"ROW()","v":257}]
[null,null,null,null,null,null,null,null,null,null,null,null,null,null,null,null,null,null,null,null,null,null,null,null,null,null,null,null,null,null,null,null,null,null,null,null,null,null,null,null,null,null,null,null,null,null,null,null,null,null,null,null,"COL0096032","Bioetica, Bioderecho, Biomedicina y Biotecnologia",1,{"$f":"ROW()","v":258}]
[null,null,null,null,null,null,null,null,null,null,null,null,null,null,null,null,null,null,null,null,null,null,null,null,null,null,null,null,null,null,null,null,null,null,null,null,null,null,null,null,null,null,null,null,null,null,null,null,null,null,null,null,"COL0096032","Células Madre & Medicina Regenerativa",2,{"$f":"ROW()","v":259}]
[null,null,null,null,null,null,null,null,null,null,null,null,null,null,null,null,null,null,null,null,null,null,null,null,null,null,null,null,null,null,null,null,null,null,null,null,null,null,null,null,null,null,null,null,null,null,null,null,null,null,null,null,"COL0096032","Genética Humana",3,{"$f":"ROW()","v":260}]
[null,null,null,null,null,null,null,null,null,null,null,null,null,null,null,null,null,null,null,null,null,null,null,null,null,null,null,null,null,null,null,null,null,null,null,null,null,null,null,null,null,null,null,null,null,null,null,null,null,null,null,null,"COL0096032","Medicina Transfusional y Cuidado Crítico",4,{"$f":"ROW()","v":261}]
[null,null,null,null,null,null,null,null,null,null,null,null,null,null,null,null,null,null,null,null,null,null,null,null,null,null,null,null,null,null,null,null,null,null,null,null,null,null,null,null,null,null,null,null,null,null,null,null,null,null,null,null,"COL0114201","BIOETICA DE LA INVESTIGACION CLINICA EN FARMACOLOGIA",1,{"$f":"ROW()","v":262}]
[null,null,null,null,null,null,null,null,null,null,null,null,null,null,null,null,null,null,null,null,null,null,null,null,null,null,null,null,null,null,null,null,null,null,null,null,null,null,null,null,null,null,null,null,null,null,null,null,null,null,null,null,"COL0114201","FARMACOLOGIA, TOXICOLOGIA Y TERAPEUTICA",2,{"$f":"ROW()","v":263}]
[null,null,null,null,null,null,null,null,null,null,null,null,null,null,null,null,null,null,null,null,null,null,null,null,null,null,null,null,null,null,null,null,null,null,null,null,null,null,null,null,null,null,null,null,null,null,null,null,null,null,null,null,"COL0114201","FARMACOVIGILANCIA, TOXICOLOGIA, ESTUDIO Y SEGUIMIENTO DE EFECTOS Y EVENTOS ADVERSOS",3,{"$f":"ROW()","v":264}]
[null,null,null,null,null,null,null,null,null,null,null,null,null,null,null,null,null,null,null,null,null,null,null,null,null,null,null,null,null,null,null,null,null,null,null,null,null,null,null,null,null,null,null,null,null,null,null,null,null,null,null,null,"COL0117722","Educación y Construcción de sujeto",1,{"$f":"ROW()","v":265}]
[null,null,null,null,null,null,null,null,null,null,null,null,null,null,null,null,null,null,null,null,null,null,null,null,null,null,null,null,null,null,null,null,null,null,null,null,null,null,null,null,null,null,null,null,null,null,null,null,null,null,null,null,"COL0117722","Estudios Disciplinares en Contaduría",2,{"$f":"ROW()","v":266}]
[null,null,null,null,null,null,null,null,null,null,null,null,null,null,null,null,null,null,null,null,null,null,null,null,null,null,null,null,null,null,null,null,null,null,null,null,null,null,null,null,null,null,null,null,null,null,null,null,null,null,null,null,"COL0125107","Investigación en Cáncer",1,{"$f":"ROW()","v":267}]
[null,null,null,null,null,null,null,null,null,null,null,null,null,null,null,null,null,null,null,null,null,null,null,null,null,null,null,null,null,null,null,null,null,null,null,null,null,null,null,null,null,null,null,null,null,null,null,null,null,null,null,null,"COL0125107","REGENERACION EN PIEL",2,{"$f":"ROW()","v":268}]
[null,null,null,null,null,null,null,null,null,null,null,null,null,null,null,null,null,null,null,null,null,null,null,null,null,null,null,null,null,null,null,null,null,null,null,null,null,null,null,null,null,null,null,null,null,null,null,null,null,null,null,null,"COL0125107","TERAPIA REGENERATIVA CARDIOVASCULAR",3,{"$f":"ROW()","v":269}]
[null,null,null,null,null,null,null,null,null,null,null,null,null,null,null,null,null,null,null,null,null,null,null,null,null,null,null,null,null,null,null,null,null,null,null,null,null,null,null,null,null,null,null,null,null,null,null,null,null,null,null,null,"COL0125107","TERAPIA REGENERATIVA OCULAR",4,{"$f":"ROW()","v":270}]
[null,null,null,null,null,null,null,null,null,null,null,null,null,null,null,null,null,null,null,null,null,null,null,null,null,null,null,null,null,null,null,null,null,null,null,null,null,null,null,null,null,null,null,null,null,null,null,null,null,null,null,null,"COL0125107","regeneracion vascular",5,{"$f":"ROW()","v":271}]
[null,null,null,null,null,null,null,null,null,null,null,null,null,null,null,null,null,null,null,null,null,null,null,null,null,null,null,null,null,null,null,null,null,null,null,null,null,null,null,null,null,null,null,null,null,null,null,null,null,null,null,null,"COL0126777","Animación experimental",1,{"$f":"ROW()","v":272}]
[null,null,null,null,null,null,null,null,null,null,null,null,null,null,null,null,null,null,null,null,null,null,null,null,null,null,null,null,null,null,null,null,null,null,null,null,null,null,null,null,null,null,null,null,null,null,null,null,null,null,null,null,"COL0126777","Audio y video",2,{"$f":"ROW()","v":273}]
[null,null,null,null,null,null,null,null,null,null,null,null,null,null,null,null,null,null,null,null,null,null,null,null,null,null,null,null,null,null,null,null,null,null,null,null,null,null,null,null,null,null,null,null,null,null,null,null,null,null,null,null,"COL0126777","Integración Multimedia",3,{"$f":"ROW()","v":274}]
[null,null,null,null,null,null,null,null,null,null,null,null,null,null,null,null,null,null,null,null,null,null,null,null,null,null,null,null,null,null,null,null,null,null,null,null,null,null,null,null,null,null,null,null,null,null,null,null,null,null,null,null,"COL0142331","Competitividad industrial",1,{"$f":"ROW()","v":275}]
[null,null,null,null,null,null,null,null,null,null,null,null,null,null,null,null,null,null,null,null,null,null,null,null,null,null,null,null,null,null,null,null,null,null,null,null,null,null,null,null,null,null,null,null,null,null,null,null,null,null,null,null,"COL0142331","Innovación y educación en Ingenierěa",2,{"$f":"ROW()","v":276}]
[null,null,null,null,null,null,null,null,null,null,null,null,null,null,null,null,null,null,null,null,null,null,null,null,null,null,null,null,null,null,null,null,null,null,null,null,null,null,null,null,null,null,null,null,null,null,null,null,null,null,null,null,"COL0142331","Productividad industrial",3,{"$f":"ROW()","v":277}]
[null,null,null,null,null,null,null,null,null,null,null,null,null,null,null,null,null,null,null,null,null,null,null,null,null,null,null,null,null,null,null,null,null,null,null,null,null,null,null,null,null,null,null,null,null,null,null,null,null,null,null,null,"COL0142449","Politica Agraria",1,{"$f":"ROW()","v":278}]
[null,null,null,null,null,null,null,null,null,null,null,null,null,null,null,null,null,null,null,null,null,null,null,null,null,null,null,null,null,null,null,null,null,null,null,null,null,null,null,null,null,null,null,null,null,null,null,null,null,null,null,null,"COL0142449","Política Ambiental",2,{"$f":"ROW()","v":279}]
[null,null,null,null,null,null,null,null,null,null,null,null,null,null,null,null,null,null,null,null,null,null,null,null,null,null,null,null,null,null,null,null,null,null,null,null,null,null,null,null,null,null,null,null,null,null,null,null,null,null,null,null,"COL0142449","Política Criminal",3,{"$f":"ROW()","v":280}]
[null,null,null,null,null,null,null,null,null,null,null,null,null,null,null,null,null,null,null,null,null,null,null,null,null,null,null,null,null,null,null,null,null,null,null,null,null,null,null,null,null,null,null,null,null,null,null,null,null,null,null,null,"COL0142449","Política Económica y Social",4,{"$f":"ROW()","v":281}]
[null,null,null,null,null,null,null,null,null,null,null,null,null,null,null,null,null,null,null,null,null,null,null,null,null,null,null,null,null,null,null,null,null,null,null,null,null,null,null,null,null,null,null,null,null,null,null,null,null,null,null,null,"COL0142449","Política Internacional",5,{"$f":"ROW()","v":282}]
[null,null,null,null,null,null,null,null,null,null,null,null,null,null,null,null,null,null,null,null,null,null,null,null,null,null,null,null,null,null,null,null,null,null,null,null,null,null,null,null,null,null,null,null,null,null,null,null,null,null,null,null,"COL0142449","Política Minera y Energética",6,{"$f":"ROW()","v":283}]
[null,null,null,null,null,null,null,null,null,null,null,null,null,null,null,null,null,null,null,null,null,null,null,null,null,null,null,null,null,null,null,null,null,null,null,null,null,null,null,null,null,null,null,null,null,null,null,null,null,null,null,null,"COL0142449","Política en Desarrollo Territorial",7,{"$f":"ROW()","v":284}]
[null,null,null,null,null,null,null,null,null,null,null,null,null,null,null,null,null,null,null,null,null,null,null,null,null,null,null,null,null,null,null,null,null,null,null,null,null,null,null,null,null,null,null,null,null,null,null,null,null,null,null,null,"COL0149359","GESTION DE LA EDUCACION Y LA ACADEMIA",1,{"$f":"ROW()","v":285}]
[null,null,null,null,null,null,null,null,null,null,null,null,null,null,null,null,null,null,null,null,null,null,null,null,null,null,null,null,null,null,null,null,null,null,null,null,null,null,null,null,null,null,null,null,null,null,null,null,null,null,null,null,"COL0149359","GESTION DE LA SALUD PUBLICA",2,{"$f":"ROW()","v":286}]
[null,null,null,null,null,null,null,null,null,null,null,null,null,null,null,null,null,null,null,null,null,null,null,null,null,null,null,null,null,null,null,null,null,null,null,null,null,null,null,null,null,null,null,null,null,null,null,null,null,null,null,null,"COL0151789","APROVECHAMIENTO DE RESIDUOS ORGÁNICOS",1,{"$f":"ROW()","v":287}]
[null,null,null,null,null,null,null,null,null,null,null,null,null,null,null,null,null,null,null,null,null,null,null,null,null,null,null,null,null,null,null,null,null,null,null,null,null,null,null,null,null,null,null,null,null,null,null,null,null,null,null,null,"COL0151789","ECOSOSTENIBILIDAD EN PROCESOS DE PRODUCCIÓN",2,{"$f":"ROW()","v":288}]
[null,null,null,null,null,null,null,null,null,null,null,null,null,null,null,null,null,null,null,null,null,null,null,null,null,null,null,null,null,null,null,null,null,null,null,null,null,null,null,null,null,null,null,null,null,null,null,null,null,null,null,null,"COL0151789","ESTÉTICA DEL VIDEOJUEGO",3,{"$f":"ROW()","v":289}]
[null,null,null,null,null,null,null,null,null,null,null,null,null,null,null,null,null,null,null,null,null,null,null,null,null,null,null,null,null,null,null,null,null,null,null,null,null,null,null,null,null,null,null,null,null,null,null,null,null,null,null,null,"COL0151789","INGENIERÍA DEL TERRENO, GEODESIA Y GEOFÍSICA",4,{"$f":"ROW()","v":290}]
[null,null,null,null,null,null,null,null,null,null,null,null,null,null,null,null,null,null,null,null,null,null,null,null,null,null,null,null,null,null,null,null,null,null,null,null,null,null,null,null,null,null,null,null,null,null,null,null,null,null,null,null,"COL0151789","MUSEOGRAFÍA",5,{"$f":"ROW()","v":291}]
[null,null,null,null,null,null,null,null,null,null,null,null,null,null,null,null,null,null,null,null,null,null,null,null,null,null,null,null,null,null,null,null,null,null,null,null,null,null,null,null,null,null,null,null,null,null,null,null,null,null,null,null,"COL0151789","PREVENCIÓN Y CONTROL DE LA CONTAMINACIÓN",6,{"$f":"ROW()","v":292}]
[null,null,null,null,null,null,null,null,null,null,null,null,null,null,null,null,null,null,null,null,null,null,null,null,null,null,null,null,null,null,null,null,null,null,null,null,null,null,null,null,null,null,null,null,null,null,null,null,null,null,null,null,"COL0151789","SENSÓRICA Y SISTEMAS INTELIGENTES",7,{"$f":"ROW()","v":293}]
[null,null,null,null,null,null,null,null,null,null,null,null,null,null,null,null,null,null,null,null,null,null,null,null,null,null,null,null,null,null,null,null,null,null,null,null,null,null,null,null,null,null,null,null,null,null,null,null,null,null,null,null,"COL0152472","Pendiente Linea : No 1",1,{"$f":"ROW()","v":294}]
[null,null,null,null,null,null,null,null,null,null,null,null,null,null,null,null,null,null,null,null,null,null,null,null,null,null,null,null,null,null,null,null,null,null,null,null,null,null,null,null,null,null,null,null,null,null,null,null,null,null,null,null,"COL0152472","Pendiente Linea : No 2",2,{"$f":"ROW()","v":295}]
[null,null,null,null,null,null,null,null,null,null,null,null,null,null,null,null,null,null,null,null,null,null,null,null,null,null,null,null,null,null,null,null,null,null,null,null,null,null,null,null,null,null,null,null,null,null,null,null,null,null,null,null,"COL0152319","Epidemiología Clínica",1,{"$f":"ROW()","v":296}]
[null,null,null,null,null,null,null,null,null,null,null,null,null,null,null,null,null,null,null,null,null,null,null,null,null,null,null,null,null,null,null,null,null,null,null,null,null,null,null,null,null,null,null,null,null,null,null,null,null,null,null,null,"COL0152319","Epidemiología General.",2,{"$f":"ROW()","v":297}]
[null,null,null,null,null,null,null,null,null,null,null,null,null,null,null,null,null,null,null,null,null,null,null,null,null,null,null,null,null,null,null,null,null,null,null,null,null,null,null,null,null,null,null,null,null,null,null,null,null,null,null,null,"COL0152319","Formación del Recurso Humano en Salud en Epidemiología y Salud Colectiva",3,{"$f":"ROW()","v":298}]
[null,null,null,null,null,null,null,null,null,null,null,null,null,null,null,null,null,null,null,null,null,null,null,null,null,null,null,null,null,null,null,null,null,null,null,null,null,null,null,null,null,null,null,null,null,null,null,null,null,null,null,null,"COL0152319","Las Tecnologías de la Información y de la comunicación en Epidemiología y Salud Colectiva",4,{"$f":"ROW()","v":299}]
[null,null,null,null,null,null,null,null,null,null,null,null,null,null,null,null,null,null,null,null,null,null,null,null,null,null,null,null,null,null,null,null,null,null,null,null,null,null,null,null,null,null,null,null,null,null,null,null,null,null,null,null,"COL0152319","Medicina tradicional complementaria.",5,{"$f":"ROW()","v":300}]
[]
[]
[]
[]
[]
[]
[]
[]
[]
[]
[]
[]
[]
[]
[]
[]
[]
[]
[]
[]
[]
[]
[]
[]
[]
[]
[]
[]
[]
[]
[]
[]
[]
[]
[]
[]
[]
[]
[]
[]
[]
[]
[]
[]
[]
[]
[]
[]
[]
[]
[]
[]
[]
[]
[]
[]
[]
[]
[]
[]
[]
[]
[]
[]
[]
[]
[]
[]
[]
[]
[]
[]
[]
[]
[]
[]
[]
[]
[]
[]
[]
[]
[]
[]
[]
[]
[]
[]
[]
[]
[]
[]
[]
[]
[]
[]
[]
[]
[]
[]
[]
[]
[]
[]
[]
[]
[]
[]
[]
[]
[]
[]
[]
[]
[]
[]
[]
[]
[]
[]
[]
[]
[]
[]
[]
[]
[]
[]
[]
[]
[]
[]
[]
[]
[]
[]
[]
[]
[]
[]
[]
[]
[]
[]
[]
[]
[]
[]
[]
[]
[]
[]
[]
[]
[]
[]
[]
[]
[]
[]
[]
[]
[]
[]
[]
[]
[]
[]
[]
[]
[]
[]
[]
[]
[]
[]
[]
[]
[]
[]
[]
[]
[]
[]
[]
[]
[]
[]
[]
[]
[]
[]
[]
[]
[]
[]
[]
[]
[]
[]
[]
[]
[]
[]
[]
[]
[]
[]
[]
[]
[]
[]
[]
[]
[]
[]
[]
[]
[]
[]
[]
[]
[]
[]
[]
[]
[]
[]
[]
[]
[]
[]
[]
[]
[]
[]
[]
[]
[]
[]
[]
[]
[]
[]
[]
[]
[]
[]
[]
[]
[]
[]
[]
[]
[]
[]
[]
[]
[]
[]
[]
[]
[]
[]
[]
[]
[]
[]
[]
[]
[]
[]
[]
[]
[]
[]
[]
[]
[]
[]
[]
[]
[]
[]
[]
[]
[]
[]
[]
[]
[]
[]
[]
[]
[]
[]
[]
[]
[]
[]
[]
[]
[]
[]
[]
[]
[]
[]
[]
[]
[]
[]
[]
[]
[]
[]
[]
[]
[]
[]
[]
[]
[]
[]
[]
[]
[]
[]
[]
[]
[]
[]
[]
[]
[]
[]
[]
[]
[]
[]
[]
[]
[]
[]
[]
[]
[]
[]
[]
[]
[]
[]
[]
[]
[]
[]
[]
[]
[]
[]
[]
[]
[]
[]
[]
[]
[]
[]
[]
[]
[]
[]
[]
[]
[]
[]
[]
[]
[]
[]
[]
[]
[]
[]
[]
[]
[]
[]
[]
[]
[]
[]
[]
[]
[]
[]
[]
[]
[]
[]
[]
[]
[]
[]
[]
[]
[]
[]
[]
[]
[]
[]
[]
[]
[]
[]
[]
[]
[]
[]
[]
[]
[]
[]
[]
[]
[]
[]
[]
[]
[]
[]
[]
[]
[]
[]
[]
[]
[]
[]
[]
[]
[]
[]
[]
[]
[]
[]
[]
[]
[]
[]
[]
[]
[]
[]
[]
[]
[]
[]
[]
[]
[]
[]
[]
[]
[]
[]
[]
[]
[]
[]
[]
[]
[]
[]
[]
[]
[]
[]
[]
[]
[]
[]
[]
[]
[]
[]
[]
[]
[]
[]
[]
[]
[]
[]
[]
[]
[]
[]
[]
[]
[]
[]
[]
[]
[]
[]
[]
[]
[]
[]
[]
[]
[]
[]
[]
[]
[]
[]
[]
[]
[]
[]
[]
[]
[]
[]
[]
[]
[]
[]
[]
[]
[]
[]
[]
[]
[]
[]
[]
[]
[]
[]
[]
[]
[]
[]
[]
[]
[]
[]
[]
[]
[]
[]
[]
[]
[]
[]
[]
[]
[]
[]
[]
[]
[]
[]
[]
[]
[]
[]
[]
[]
[]
[]
[]
[]
[]
[]
[]
[]
[]
[]
[]
[]
[]
[]
[]
[]
[]
[]
[]
[]
[]
[]
[]
[]
[]
[]
[]
[]
[]
[]
[]
[]
[]
[]
[]
[]
[]
[]
[]
[]
[]
[]
[]
[]
[]
[]
[]
[]
[]
[]
[]
[]
[]
[]
[]
[]
[]
[]
[]
[]
[]
[]
[]
[]
[]
[]
[]
[]
[]
[]
[]
[]
[]
[]
[]
[]
[]
[]
[]
[]
[]
[]
[]
[]
[]
[]
[]
[]
[]
[]
[]
[]
[]
[]
[]
[]
[]
[]
[]
[]
[]
[]
[]
[]
[]
[]
[]
[]
[]
[]
[]
[]
[]
[]
[]
[]
[]
[]
[]
[]
[]
[]
[]
[]
[]
[]
[]
[]
[]
[]
[]
[]
[]
[]
[]
[]
[]
[]
[]
[]
[]
[]
[]
[]
[]
[]
[]
[]
[]
[]
[]
[]
[]
[]
[]
[]
[]
[]
[]
[]
[]
[]
[]
[]
[]
[]
[]
[]
[]
[]
[]
[]
[]
[]
[]
[]
[]
[]
[]
[]
[]
[]
[]
[]
[]
[]
[]
[]
[]
[]
[]
[]
[]
[]
[]
[]
[]
[]
[]
[]
[]
[]
[]
[]
[]
[]
[]
[]
[]
[]
[]
[]
[]
[]
[]
[]
[]
[]
[]
[]
[]
[]
[]
[]
[]
[]
[]
[]
[]
[]
[]
[]
[]
[]
[]
[]
[]
[]
[]
[]
[]
[]
[]
[]
[]
[]
[]
[]
[]
[]
[]
[]
[]
[]
[]
[]
[]
[]
[]
[]
[]
[]
[]
[]
[]
[]
[]
[]
[]
[]
[]
[]
[]
[]
[]
[]
[]
[]
[]
[]
[]
[]
[]
[]
[]
[]
[]
[]
[]
[]
[]
[]
[]
[]
[]
[]
[]
[]
[]
[]
[]
[]
[]
[]
[]
[]
[]
[]
[]
[]
[]
[]
[]
[]
[]
[]
[]
[]
[]
[]
[]
[]
[]
[]
[]
[]
[]
[]
[]
[]
[]
[]
[]
[]
[]
[]
[]
[]
[]
[]
[]
[]
[]
[]
[]
[]
[]
[]
[]
[]
[]
[]
[]
[]
[]
[]
[]
[]
[]
[]
[]
[]
[]
[]
[]
[]
[]
[]
[]
[]
[]
[]
[]
[]
[]
[]
[]
[]
[]
[]
[]
[]
[]
[]
[]
[]
[]
[]
[]
[]
[]
[]
[]
[]
[]
[]
[]
[]
[]
[]
[]
[]
[]
[]
[]
[]
[]
[]
[]
[]
[]
[]
[]
[]
[]
[]
[]
[]
[]
[]
[]
[]
[]
[]
[]
[]
[]
[]
[]
[]
[]
[]
[]
[]
[]
[]
[]
[]
[]
[]
[]
[]
[]
[]
[]
[]
[]
[]
[]
[]
[]
[]
[]
[]
[]
[]
[]
[]
[]
[]
[]
[]
[]
[]
[]
[]
[]
[]
[]
[]
[]
[]
[]
[]
[]
[]
[]
[]
[]
[]
[]
[]
[]
[]
[]
[]
[]
[]
[]
[]
[]
[]
[]
[]
[]
[]
[]
[]
[]
[]
[]
[]
[]
[]
[]
[]
[]
[]
[]
[]
[]
[]
[]
[]
[]
[]
[]
[]
[]
[]
[]
[]
[]
[]
[]
[]
[]
[]
[]
[]
[]
[]
[]
[]
[]
[]
[]
[]
[]
[]
[]
[]
[]
[]
[]
[]
[]
[]
[]
[]
[]
[]
[]
[]
[]
[]
[]
[]
[]
[]
[]
[]
[]
[]
[]
[]
[]
[]
[]
[]
[]
[]
[]
[]
[]
[]
[]
[]
[]
[]
[]
[]
[]
[]
[]
[]
[]
[]
[]
[]
[]
[]
[]
[]
[]
[]
[]
[]
[]
[]
[]
[]
[]
[]
[]
[]
[]
[]
[]
[]
[]
[]
[]
[]
[]
[]
[]
[]
[]
[]
[]
[]
[]
[]
[]
[]
[]
[]
[]
[]
[]
[]
[]
[]
[]
[]
[]
[]
[]
[]
[]
[]
[]
[]
[]
[]
[]
[]
[]
[]
[]
[]
[]
[]
[]
[]
[]
[]
[]
[]
[]
[]
[]
[]
[]
[]
[]
[]
[]
[]
[]
[]
[]
[]
[]
[]
[]
[]
[]
[]
[]
[]
[]
[]
[]
[]
[]
[]
[]
[]
[]
[]
[]
[]
[]
[]
[]
[]
[]
[]
[]
[]
[]
[]
[]
[]
[]
[]
[]
[]
[]
[]
[]
[]
[]
[]
[]
[]
[]
[]
[]
[]
[]
[]
[]
[]
[]
[]
[]
[]
[]
[]
[]
[]
[]
[]
[]
[]
[]
[]
[]
[]
[]
[]
[]
[]
[]
[]
[]
[]
[]
[]
[]
[]
[]
[]
[]
[]
[]
[]
[]
[]
[]
[]
[]
[]
[]
[]
[]
[]
[]
[]
[]
[]
[]
[]
[]
[]
[]
[]
[]
[]
[]
[]
[]
[]
[]
[]
[]
[]
[]
[]
[]
[]
[]
[]
[]
[]
[]
[]
[]
[]
[]
[]
[]
[]
[]
[]
[]
[]
[]
[]
[]
[]
[]
[]
[]
[]
[]
[]
[]
[]
[]
[]
[]
[]
[]
[]
[]
[]
[]
[]
[]
[]
[]
[]
[]
[]
[]
[]
[]
[]
[]
[]
[]
[]
[]
[]
[]
[]
[]
[]
[]
[]
[]
[]
[]
[]
[]
[]
[]
[]
[]
[]
[]
[]
[]
[]
[]
[]
[]
[]
[]
[]
[]
[]
[]
[]
[]
[]
[]
[]
[]
[]
[]
[]
[]
[]
[]
[]
[]
[]
[]
[]
[]
[]
[]
[]
[]
[]
[]
[]
[]
[]
[]
[]
[]
[]
[]
[]
[]
[]
[]
[]
[]
[]
[]
[]
[]
[]
[]
[]
[]
[]
[]
[]
[]
[]
[]
[]
[]
[]
[]
[]
[]
[]
[]
[]
[]
[]
[]
[]
[]
[]
[]
[]
[]
[]
[]
[]
[]
[]
[]
[]
[]
[]
[]
[]
[]
[]
[]
[]
[]
[]
[]
[]
[]
[]
[]
[]
[]
[]
[]
[]
[]
[]
[]
[]
[]
[]
[]
[]
[]
[]
[]
[]
[]
[]
[]
[]
[]
[]
[]
[]
[]
[]
[]
[]
[]
[]
[]
[]
[]
[]
[]
[]
[]
[]
[]
[]
[]
[]
[]
[]
[]
[]
[]
[]
[]
[]
[]
[]
[]
[]
[]
[]
[]
[]
[]
[]
[]
[]
[]
[]
[]
[]
[]
[]
[]
[]
[]
[]
[]
[]
[]
[]
[]
[]
[]
[]
[]
[]
[]
[]
[]
[]
[]
[]
[]
[]
[]
[]
[]
[]
[]
[]
[]
[]
[]
[]
[]
[]
[]
[]
[]
[]
[]
[]
[]
[]
[]
[]
[]
[]
[]
[]
[]
[]
[]
[]
[]
[]
[]
[]
[]
[]
[]
[]
[]
[]
[]
[]
[]
[]
[]
[]
[]
[]
[]
[]
[]
[]
[]
[]
[]
[]
[]
[]
[]
[]
[]
[]
[]
[]
[]
[]
[]
[]
[null,null,null,null,null,null,null,null,null,null,null,null,null,null,null,null,null,null,null,null,null,null,null,null,null,null,null,null,null,null,null,null,null,null,null,null,null,null,null,null,null,null,null,null,null,null,null,null,null,null,null,null,null,null,null,null,null,null,null,null,null,null,null,null,null,null,null,null,null,null,null,null,null,null,null,null,null,null,null,null,null,null,null,null,null,null,null,null,null,null,null,null,null,null,null,null,null,null,null,null,null,null,null,null,null,null,null,null,null,null,null,null,null,null,null,null,null,null,null,null,null,null,null,null,null,null,null,null,null,null,null,null,null,null,null,null,null,null,null,null,null,null,null,null,null,null,null,null,null,null,null,null,null,null,null,null,null,null,null,null,null,null,null,null,null,null,null,null,null,null,null,null,null,null,null,null,null,null,null,null,null,null,null,null,null,null,null,null,null,null,null,null,null,null,null,null,null,null,null,null,null,null,null,null,null,null,null,null,null,null,null,null,null,null,null,null,null,null,null,null,null,null,null,null,null,null,null,null,null,null,null,null,null,null,null,null,null,null,null,null,null,null,null,null,null,null,null,null,null,null,null,null,null,null,null,null,null,null,null,null,null,null,null,null,null,null,null,null,null,null,null,null,null,null,null,null,null,null,null,null,null,null,null,null,null,null,null,null,null,null,null,null,null,null,null,null,null,null,null,null,null,null,null,null,null,null,null,null,null,null,null,null,null,null,null,null,null,null,null,null,null,null,null,null,null,null,null,null,null,null,null,null,null,null,null,null,null,null,null,null,null,null,null,null,null,null,null,null,null,null,null,null,null,null,null,null,null,null,null,null,null,null,null,null,null,null,null,null,null,null,null,null,null,null,null,null,null,null,null,null,null,null,null,null,null,null,null,null,null,null,null,null,null,null,null,null,null,null,null,null,null,null,null,null,null,null,null,null,null,null,null,null,null,null,null,null,null,null,null,null,null,null,null,null,null,null,null,null,null,null,null,null,null,null,null,null,null,null,null,null,null,null,null,null,null,null,null,null,null,null,null,null,null,null,null,null,null,null,null,null,null,null,null,null,null,null,null,null,null,null,null,null,null,null,null,null,null,null,null,null,null,null,null,null,null,null,null,null,null,null,null,null,null,null,null,null,null,null,null,null,null,null,null,null,null,null,null,null,null,null,null,null,null,null,null,null,null,null,null,null,null,null,null,null,null,null,null,null,null,null,null,null,null,null,null,null,null,null,null,null,null,null,null,null,null,null,null,null,null,null,null,null,null,null,null,null,null,null,null,null,null,null,null,null,null,null,null,null,null,null,null,null,null,null,null,null,null,null,null,null,null,null,null,null,null,null,null,null,null,null,null,null,null,null,null,null,null,null,null,null,null,null,null,null,null,null,null,null,null,null,null,null,null,null,null,null,null,null,null,null,null,null,null,null,null,null,null,null,null,null,null,null,null,null,null,null,null,null,null,null,null,null,null,null,null,null,null,"Luis.chirivi"]
[null,null,null,null,null,null,null,null,null,null,null,null,null,null,null,null,null,null,null,null,null,null,null,null,null,null,null,null,null,null,null,null,null,null,null,null,null,null,null,null,null,null,null,null,null,null,null,null,null,null,null,null,null,null,null,null,null,null,null,null,null,null,null,null,null,null,null,null,null,null,null,null,null,null,null,null,null,null,null,null,null,null,null,null,null,null,null,null,null,null,null,null,null,null,null,null,null,null,null,null,null,null,null,null,null,null,null,null,null,null,null,null,null,null,null,null,null,null,null,null,null,null,null,null,null,null,null,null,null,null,null,null,null,null,null,null,null,null,null,null,null,null,null,null,null,null,null,null,null,null,null,null,null,null,null,null,null,null,null,null,null,null,null,null,null,null,null,null,null,null,null,null,null,null,null,null,null,null,null,null,null,null,null,null,null,null,null,null,null,null,null,null,null,null,null,null,null,null,null,null,null,null,null,null,null,null,null,null,null,null,null,null,null,null,null,null,null,null,null,null,null,null,null,null,null,null,null,null,null,null,null,null,null,null,null,null,null,null,null,null,null,null,null,null,null,null,null,null,null,null,null,null,null,null,null,null,null,null,null,null,null,null,null,null,null,null,null,null,null,null,null,null,null,null,null,null,null,null,null,null,null,null,null,null,null,null,null,null,null,null,null,null,null,null,null,null,null,null,null,null,null,null,null,null,null,null,null,null,null,null,null,null,null,null,null,null,null,null,null,null,null,null,null,null,null,null,null,null,null,null,null,null,null,null,null,null,null,null,null,null,null,null,null,null,null,null,null,null,null,null,null,null,null,null,null,null,null,null,null,null,null,null,null,null,null,null,null,null,null,null,null,null,null,null,null,null,null,null,null,null,null,null,null,null,null,null,null,null,null,null,null,null,null,null,null,null,null,null,null,null,null,null,null,null,null,null,null,null,null,null,null,null,null,null,null,null,null,null,null,null,null,null,null,null,null,null,null,null,null,null,null,null,null,null,null,null,null,null,null,null,null,null,null,null,null,null,null,null,null,null,null,null,null,null,null,null,null,null,null,null,null,null,null,null,null,null,null,null,null,null,null,null,null,null,null,null,null,null,null,null,null,null,null,null,null,null,null,null,null,null,null,null,null,null,null,null,null,null,null,null,null,null,null,null,null,null,null,null,null,null,null,null,null,null,null,null,null,null,null,null,null,null,null,null,null,null,null,null,null,null,null,null,null,null,null,null,null,null,null,null,null,null,null,null,null,null,null,null,null,null,null,null,null,null,null,null,null,null,null,null,null,null,null,null,null,null,null,null,null,null,null,null,null,null,null,null,null,null,null,null,null,null,null,null,null,null,null,null,null,null,null,null,null,null,null,null,null,null,null,null,null,null,null,null,null,null,null,null,null,null,null,null,null,null,null,null,null,null,null,null,null,null,null,null,null,null,null,null,null,null,null,null,null,null,null,null,null,null,null,null,null,null,null,null,null,null,null,"Luis.chirivi"]

{"sheet":"General","index":1,"n_rows":44,"n_cols":24,"rows_kept":44,"cut":false,"hidden":false,"merged":[[41,1,41,8],[29,2,29,8],[32,2,32,8],[17,2,17,8],[19,3,19,8],[21,2,21,8],[23,3,23,8],[25,2,25,8],[30,2,30,6],[31,2,31,6],[15,3,15,8],[11,2,11,5],[11,7,11,8],[1,1,2,6],[8,1,8,8],[9,2,9,5],[9,7,9,8],[10,7,10,8],[10,2,10,5],[6,2,6,5],[6,7,6,8]]}
[1,null,null,null,null,null,null,{"$f":"IFERROR(VLOOKUP($C$7,Dt!AD79:AE80,2,0),\"INV\")","v":"INV"},{"$f":"IFERROR(VLOOKUP($C$12,Dt!$AC$6:$AD$13,2,0),\"NT\")","v":"NT"},null,null,null,null,7,"A",{"$f":"COUNTIF($I$17:$I$25,O1)","v":0},{"$f":"IF(P1>0,$N1,0)","v":0},null,null,null,null,null,null,"Número de Paginas del documento final , se puede ajustar."]
[null,"PRESENTACIÓN DE PROYECTOS \nDE INVESTIGACIÓN",null,null,null,null,null,"Fecha de Emisión: 2017/02/28","IN-IV-F-14",null,null,null,null,6,"A1",{"$f":"COUNTIF($I$17:$I$25,O2)","v":0},0,null,null,null,null,null,null,11]
[null,null,null,null,null,null,null,"Revision N°:\n2",{"$f":"\"Página \"&A1&\" de \"&Dt_TPG","v":"Página 1 de 11"},null,null,null,null,5,"B",0,0,null,"Investigación Científica"]
[null,null,null,null,null,null,null,null,null,null,null,null,null,null,null,0,0]
["1.-","Información general del proyecto.",null,null,null,null,null,null,null,null,null,null,null,4,"C",0,0,null,null,null,null,null,null,"Hoy es "]
[null,null,null,null,null,null,null,null,null,null,null,null,null,null,null,0,0]
[null,"Convocatoria:","Investigación Científica",null,null,null,null,null,null,null,null,null,null,3,"D",0,0,null,null,null,null,null,null,{"$f":"NOW()","v":"2017-03-21T09:44:58.680"}]
[null,null,null,null,null,null,null,null,null,null,null,null,null,2,"R",0,0]
[null,null,null,null,null,null,null,null,null,null,null,null,null,1,"NR",0,0]
[null,"Líder: ",null,null,null,null,"Teléfonos :",null,null,null,null,null,null,null,null,null,null,null,null,null,null,null,null,"2017-03-02"]
[null,"Correo:",null,null,null,null," Sede:"]
[null,"Facultad ",null,null,null,null,"Programa",null,null,null,null,"Clasificación Grupo Máximo",{"$f":"IFERROR(VLOOKUP($N$12,$N$1:$O$9,2,0),\"NR\")","v":"NR"},{"$f":"MAX(Q1:Q9)","v":0}]
[]
["2.-","Información de Grupos de Investigación UMNG asiados al proyecto"]
[]
[null,"Grupo Principal",null,null,null,null,null,null,null,null,{"$f":"IF(AND(Cel_TP=\"IMP\",L17>0),D16,1)","v":1},{"$f":"IFERROR(VLOOKUP($D16,Dt!$AP$3:$AQ$78,2,0),0)","v":0}]
[null,"Link Colciencias:",{"$f":"IFERROR(VLOOKUP(L16,Dt!$AQ$3:$AS$78,3,0),\"\")","v":""},null,null,null,null,null,{"$f":"IFERROR(VLOOKUP(L16,Dt!$AQ$3:$AS$78,2,0),\"\")","v":""},null,{"$f":"I17","v":""},{"$f":"COUNTIF($O$7:$O$9,I17)","v":0}]
[null,"Lineas",null,null,null,null,null,null,null,null,{"$f":"\"Puntos:\"&Productos!H39","v":"Puntos:39"},{"$f":"IFERROR(\"DT!\"&VLOOKUP($D16,Dt!$AP$3:$AT$78,5,0),0)","v":0}]
[]
[{"$f":"IFERROR(VLOOKUP(D20,Dt!$AP$3:$AU$78,5,0),\"\")","v":""},"Grupo Aliado 1",null,null,null,null,null,null,null,null,null,{"$f":"IFERROR(VLOOKUP($D20,Dt!$AP$3:$AQ$78,2,0),0)","v":0}]
[null,"Link Colciencias:",{"$f":"IFERROR(VLOOKUP(L20,Dt!$AQ$3:$AS$78,3,0),\"\")","v":""},null,null,null,null,null,{"$f":"IFERROR(VLOOKUP(L20,Dt!$AQ$3:$AS$78,2,0),\"\")","v":""}]
[{"$f":"IFERROR(VLOOKUP($C22,Dt!$BB$3:$BD$300,3,0),\"\")","v":""},"Lineas",null,null,null,null,null,null,null,null,null,{"$f":"IFERROR(\"DT!\"&VLOOKUP($D20,Dt!$AP$3:$AT$78,5,0),0)","v":0}]
[]
[null,"Grupo Aliado 2",null,null,null,null,null,null,null,null,null,{"$f":"IFERROR(VLOOKUP($D24,Dt!$AP$3:$AQ$78,2,0),0)","v":0}]
[null,"Link Colciencias:",{"$f":"IFERROR(VLOOKUP(L24,Dt!$AQ$3:$AS$78,3,0),\"\")","v":""},null,null,null,null,null,{"$f":"\"Clasif.:\"&IFERROR(VLOOKUP(L24,Dt!$AQ$3:$AS$78,2,0),\"\")","v":"Clasif.:"}]
[null,"Lineas",null,null,null,null,null,null,null,null,null,{"$f":"IFERROR(\"DT!\"&VLOOKUP($D24,Dt!$AP$3:$AT$78,5,0),0)","v":0}]
[]
["3.-","Instituciones Externas participantes."]
[]
[null,"Nombre"]
[null,"Grupo",null,null,null,null,null,"Clasificación"]
[null,"Investigadores",null,null,null,null,null,"Presupuesto en plan de compras:",{"$f":"Presupuesto!H119","v":0}]
[null,"Link Colciencias:",null,null,null,null,null,null,null,null,{"$f":"IF(L33=0,C33,0)","v":0},{"$f":"IFERROR(SEARCH(M33,C33,1),0)","v":0},"http://scienti.colciencias.gov"]
[]
[null,"Datos comprometidos."]
[]
[null,"Productividad  comprometida",null,{"$f":"IF(K37>0,\"Error revice productos \",V_Max)","v":0},null,"$ Vicein:",{"$f":"IF(D37>0,Presupuesto!F119,0)","v":0},null,{"$f":"\"Limite en millones \"&Integrantes!T4","v":"Limite en millones 25"},null,{"$f":"IF(Productos!P42>0,1,0)","v":0}]
[null,"* Las areas sombreadas de color azul no son editables "]
[]
[null,"Observaciones o recomendaciones (no valida para calificación de Propuesta):"]
[]
[]
[]
[null,"Calificación del formato"]

{"sheet":"Resumen","index":2,"n_rows":32,"n_cols":9,"rows_kept":32,"cut":false,"hidden":false,"merged":[[25,2,25,4],[26,2,26,4],[27,2,27,4],[28,2,28,4],[20,2,20,4],[21,2,21,4],[22,2,22,4],[23,2,23,4],[24,2,24,4],[8,2,8,4],[7,2,7,4],[1,2,2,2],[6,2,6,4],[19,2,19,4],[13,2,13,4],[12,2,12,4],[11,2,11,4],[10,2,10,4],[9,2,9,4]]}
[2,null,null,null,null,null,"*Pueden  Ocultar las Filas que no se utilicen."]
[null,null,"PRESENTACIÓN DE PROYECTOS \nDE INVESTIGACIÓN",{"$f":"General!$H$2","v":"Fecha de Emisión: 2017/02/28"},{"$f":"General!$I$2","v":"IN-IV-F-14"},null,{"$f":"SUM(G7:G14)","v":0},"<=== N° palabras en total"]
[null,null,null,{"$f":"General!$H$3","v":"Revision N°:\n2"},{"$f":"\"Página \"&A1&\" de \"&Dt_TPG","v":"Página 2 de 11"},null,"Palabras","Largo L","Limite"]
[]
["4.-","#","Resumen de la propuesta .( 250 Palabras)",null,null,null,{"$f":"SUM(G6:G15)","v":0},{"$f":"SUM(H6:H15)","v":0},250]
[null,null,null,null,null,null,null,null,{"$f":"I5","v":250}]
[null,{"$f":"ROW()-6","v":1},null,null,null,null,{"$f":"IF(C7=\"\",0,LEN(TRIM(C7))-LEN(SUBSTITUTE(TRIM(C7),\" \",\"\"))+1)","v":0},{"$f":"LEN(C7)","v":0},{"$f":"I6","v":250}]
[null,{"$f":"ROW()-6","v":2},null,null,null,null,{"$f":"IF(C8=\"\",0,LEN(TRIM(C8))-LEN(SUBSTITUTE(TRIM(C8),\" \",\"\"))+1)","v":0},{"$f":"LEN(C8)","v":0},250]
[null,3,null,null,null,null,{"$f":"IF(C9=\"\",0,LEN(TRIM(C9))-LEN(SUBSTITUTE(TRIM(C9),\" \",\"\"))+1)","v":0},0,250]
[null,4,null,null,null,null,0,0,250]
[null,5,null,null,null,null,0,0,250]
[null,6,null,null,null,null,0,0,250]
[null,7,null,null,null,null,0,0,250]
[null,8,null,null,null,null,0,0,250]
[]
[null,null,{"$f":"IF(G2>250,I16, \"-\")","v":"-"},null,null,null,null,null,{"$f":"\"Supera el número de palabra permitidas para el resumen por favor quitar \"&(G2-250)&\" palabras.\"","v":"Supera el número de palabra permitidas para el resumen por favor quitar -250 palabras."}]
[]
["5.-","#","Planteamiento y justificación de la propuesta.",null,null,null,{"$f":"SUM(G19:G300)","v":0},"<=== Palabras en total"]
[null,null,null,null,null,null,{"$f":"IF(C19=\"\",0,LEN(TRIM(C19))-LEN(SUBSTITUTE(TRIM(C19),\" \",\"\"))+1)","v":0}]
[null,{"$f":"ROW()-19","v":1},null,null,null,null,0]
[null,{"$f":"ROW()-19","v":2},null,null,null,null,0]
[null,3,null,null,null,null,0]
[null,4,null,null,null,null,0]
[null,5,null,null,null,null,0]
[null,6,null,null,null,null,0]
[null,7,null,null,null,null,0]
[null,8,null,null,null,null,0]
[null,9,null,null,null,null,0]
[null,10,null,null,null,null,0]
[]
[]
[null,"*Pueden  Ocultar las Filas que no se utilicen."]

{"sheet":"Estado_del_arte","index":3,"n_rows":40,"n_cols":8,"rows_kept":40,"cut":false,"hidden":false,"merged":[[35,2,35,4],[1,2,2,2],[30,2,30,4],[31,2,31,4],[32,2,32,4],[33,2,33,4],[18,2,18,4],[19,2,19,4],[20,2,20,4],[21,2,21,4],[22,2,22,4],[23,2,23,4],[12,2,12,4],[13,2,13,4],[14,2,14,4],[15,2,15,4],[16,2,16,4],[34,2,34,4],[24,2,24,4],[25,2,25,4],[26,2,26,4],[27,2,27,4],[28,2,28,4],[29,2,29,4],[17,2,17,4],[11,2,11,4],[6,2,6,4],[7,2,7,4],[8,2,8,4],[9,2,9,4],[10,2,10,4]]}
[3,null,null,null,null,null,"*Pueden  Ocultar las Filas que no se utilicen."]
[null,null,"PRESENTACIÓN DE PROYECTOS \nDE INVESTIGACIÓN",{"$f":"General!$H$2","v":"Fecha de Emisión: 2017/02/28"},{"$f":"General!$I$2","v":"IN-IV-F-14"}]
[null,null,null,{"$f":"General!$H$3","v":"Revision N°:\n2"},{"$f":"\"Página \"&A1&\" de \"&Dt_TPG","v":"Página 3 de 11"},null,{"$f":"SUM(G7:G3500)","v":0},"<== Total de palabras"]
[]
["6.-","#","Estado del arte de la propuesta o  antecedesntes.",null,null,null,"Largo"]
[]
[null,{"$f":"ROW()-6","v":1},null,null,null,null,{"$f":"IF(C7=\"\",0,LEN(TRIM(C7))-LEN(SUBSTITUTE(TRIM(C7),\" \",\"\"))+1)","v":0}]
[null,{"$f":"ROW()-6","v":2},null,null,null,null,{"$f":"IF(C8=\"\",0,LEN(TRIM(C8))-LEN(SUBSTITUTE(TRIM(C8),\" \",\"\"))+1)","v":0}]
[null,3,null,null,null,null,0]
[null,4,null,null,null,null,0]
[null,5,null,null,null,null,0]
[null,6,null,null,null,null,0]
[null,7,null,null,null,null,0]
[null,8,null,null,null,null,0]
[null,9,null,null,null,null,0]
[null,10,null,null,null,null,0]
[null,11,null,null,null,null,0]
[null,12,null,null,null,null,0]
[null,13,null,null,null,null,0]
[null,14,null,null,null,null,0]
[null,15,null,null,null,null,0]
[null,16,null,null,null,null,0]
[null,17,null,null,null,null,0]
[null,18,null,null,null,null,0]
[null,19,null,null,null,null,0]
[null,20,null,null,null,null,0]
[null,21,null,null,null,null,0]
[null,22,null,null,null,null,0]
[null,23,null,null,null,null,0]
[null,24,null,null,null,null,0]
[null,25,null,null,null,null,0]
[null,26,null,null,null,null,0]
[null,27,null,null,null,null,0]
[null,28,null,null,null,null,0]
[null,29,null,null,null,null,0]
[null,30,null,null,null,null,0]
[]
[]
[]
[null,"*Pueden  Ocultar las Filas que no se utilicen."]

{"sheet":"Objetivos","index":4,"n_rows":23,"n_cols":8,"rows_kept":23,"cut":false,"hidden":false,"merged":[[18,2,18,4],[17,2,17,4],[22,2,22,4],[21,2,21,4],[20,2,20,4],[19,2,19,4],[1,1,2,2],[7,2,7,4],[8,2,8,4],[9,2,9,4],[10,2,10,4],[6,1,6,4],[11,2,11,4],[13,2,13,4],[14,2,14,4],[15,2,15,4],[16,2,16,4],[12,2,12,4]]}
[4]
[null,"PRESENTACIÓN DE PROYECTOS \nDE INVESTIGACIÓN",null,{"$f":"General!$H$2","v":"Fecha de Emisión: 2017/02/28"},{"$f":"General!$I$2","v":"IN-IV-F-14"}]
[null,null,null,{"$f":"General!$H$3","v":"Revision N°:\n2"},{"$f":"\"Página \"&A1&\" de \"&Dt_TPG","v":"Página 4 de 11"},null,{"$f":"SUM(G7:G3500)","v":0},"<== Total de palabras"]
[]
["7.-","Objetivos de la propuesta.",null,null,null,null,"Largo"]
[]
[null,"*El especio del Item (0) Cero es para definir el objetivo general los demás corresponden a objetivos especificos "]
[null,{"$f":"ROW()-8","v":0},null,null,null,null,{"$f":"IF(C8=\"\",0,LEN(TRIM(C8))-LEN(SUBSTITUTE(TRIM(C8),\" \",\"\"))+1)","v":0}]
[null,{"$f":"ROW()-8","v":1},null,null,null,null,0]
[null,2,null,null,null,null,0]
[null,3,null,null,null,null,0]
[null,4,null,null,null,null,0]
[null,5,null,null,null,null,0]
[null,6,null,null,null,null,0]
[null,7,null,null,null,null,0]
[null,8,null,null,null,null,0]
[null,9,null,null,null,null,0]
[null,10,null,null,null,null,0]
[null,11,null,null,null,null,0]
[null,12,null,null,null,null,0]
[null,13,null,null,null,null,0]
[null,14,null,null,null,null,0]
[null,15,null,null,null,null,0]

{"sheet":"Metodología","index":5,"n_rows":40,"n_cols":8,"rows_kept":40,"cut":false,"hidden":false,"merged":[[30,2,30,4],[31,2,31,4],[32,2,32,4],[33,2,33,4],[34,2,34,4],[1,2,2,2],[24,2,24,4],[25,2,25,4],[26,2,26,4],[27,2,27,4],[12,2,12,4],[13,2,13,4],[14,2,14,4],[15,2,15,4],[16,2,16,4],[17,2,17,4],[6,2,6,4],[7,2,7,4],[8,2,8,4],[9,2,9,4],[10,2,10,4],[11,2,11,4],[28,2,28,4],[29,2,29,4],[18,2,18,4],[19,2,19,4],[20,2,20,4],[21,2,21,4],[22,2,22,4],[23,2,23,4]]}
[5,null,null,null,null,null,"*Pueden  Ocultar las Filas que no se utilicen."]
[null,null,"PRESENTACIÓN DE PROYECTOS \nDE INVESTIGACIÓN",{"$f":"General!$H$2","v":"Fecha de Emisión: 2017/02/28"},{"$f":"General!$I$2","v":"IN-IV-F-14"}]
[null,null,null,{"$f":"General!$H$3","v":"Revision N°:\n2"},{"$f":"\"Página \"&A1&\" de \"&Dt_TPG","v":"Página 5 de 11"},null,{"$f":"SUM(G7:G3500)","v":0},"<== Total de palabras"]
[]
["8.-","#","Metodología de la propuesta.",null,null,null,"Largo"]
[]
[null,{"$f":"ROW()-6","v":1},null,null,null,null,{"$f":"IF(C7=\"\",0,LEN(TRIM(C7))-LEN(SUBSTITUTE(TRIM(C7),\" \",\"\"))+1)","v":0}]
[null,{"$f":"ROW()-6","v":2},null,null,null,null,{"$f":"IF(C8=\"\",0,LEN(TRIM(C8))-LEN(SUBSTITUTE(TRIM(C8),\" \",\"\"))+1)","v":0}]
[null,3,null,null,null,null,0]
[null,4,null,null,null,null,0]
[null,5,null,null,null,null,0]
[null,6,null,null,null,null,0]
[null,7,null,null,null,null,0]
[null,8,null,null,null,null,0]
[null,9,null,null,null,null,0]
[null,10,null,null,null,null,0]
[null,11,null,null,null,null,0]
[null,12,null,null,null,null,0]
[null,13,null,null,null,null,0]
[null,14,null,null,null,null,0]
[null,15,null,null,null,null,0]
[null,16,null,null,null,null,0]
[null,17,null,null,null,null,0]
[null,18,null,null,null,null,0]
[null,19,null,null,null,null,0]
[null,20,null,null,null,null,0]
[null,21,null,null,null,null,0]
[null,22,null,null,null,null,0]
[null,23,null,null,null,null,0]
[null,24,null,null,null,null,0]
[null,25,null,null,null,null,0]
[null,26,null,null,null,null,0]
[null,27,null,null,null,null,0]
[null,28,null,null,null,null,0]
[null,29,null,null,null,null,0]
[]
[]
[]
[]
[null,"*Pueden  Ocultar las Filas que no se utilicen."]

{"sheet":"Cronograma","index":6,"n_rows":33,"n_cols":12,"rows_kept":33,"cut":false,"hidden":false,"merged":[[1,1,2,2]]}
[6,null,null,null,null,null,null,null,"*Pueden  Ocultar las Filas que no se utilicen.",null,null,{"$f":"(\"* Actualmente tiene \"&G7&\" meses de ejecución no superar los \"& G5&\" meses.\")","v":"* Actualmente tiene 0 meses de ejecución no superar los 12 meses."}]
[null,"PRESENTACIÓN DE PROYECTOS \nDE INVESTIGACIÓN",null,{"$f":"General!$H$2","v":"Fecha de Emisión: 2017/02/28"},{"$f":"General!$I$2","v":"IN-IV-F-14"}]
[null,null,null,{"$f":"General!$H$3","v":"Revision N°:\n2"},{"$f":"\"Página \"&A1&\" de \"&Dt_TPG","v":"Página 6 de 11"}]
[]
["9.-","Cronograma de actividades a desarrollar",null,null,{"$f":"Integrantes!J6","v":12},null,{"$f":"E5","v":12},"Meses Maximo","Palabras"]
[]
[null,"No","Descripción básica de la actividad","Mes de Inicio","Duración en mes",null,{"$f":"MAX(G8:G27)","v":0},"Meses de ejecición actuales",{"$f":"SUM(I8:I27)","v":0},"<== Total de palabras"]
[null,{"$f":"ROW()-7","v":1},null,null,null,null,{"$f":"SUM(D8:E8)","v":0},null,{"$f":"IF(C8=\"\",0,LEN(TRIM(C8))-LEN(SUBSTITUTE(TRIM(C8),\" \",\"\"))+1)","v":0}]
[null,{"$f":"ROW()-7","v":2},null,null,null,null,{"$f":"SUM(D9:E9)","v":0},null,{"$f":"IF(C9=\"\",0,LEN(TRIM(C9))-LEN(SUBSTITUTE(TRIM(C9),\" \",\"\"))+1)","v":0}]
[null,3,null,null,null,null,0,null,0]
[null,4,null,null,null,null,0,null,0]
[null,5,null,null,null,null,0,null,0]
[null,6,null,null,null,null,0,null,0]
[null,7,null,null,null,null,0,null,0]
[null,8,null,null,null,null,0,null,0]
[null,9,null,null,null,null,0,null,0]
[null,10,null,null,null,null,0,null,0]
[null,11,null,null,null,null,0,null,0]
[null,12,null,null,null,null,0,null,0]
[null,13,null,null,null,null,0,null,0]
[null,14,null,null,null,null,0,null,0]
[null,15,null,null,null,null,0,null,0]
[null,16,null,null,null,null,0,null,0]
[null,17,null,null,null,null,0,null,0]
[null,18,null,null,null,null,0,null,0]
[null,19,null,null,null,null,0,null,0]
[null,20,null,null,null,null,0,null,0]
[]
[null,null,{"$f":"IF(G7>G5,L1,\".\")","v":"."}]
[]
[]
[]
[null,"*Pueden  Ocultar las Filas que no se utilicen."]

{"sheet":"Productos","index":7,"n_rows":60,"n_cols":21,"rows_kept":60,"cut":false,"hidden":false,"merged":[[1,1,2,5]]}
[7]
[null,"PRESENTACIÓN DE PROYECTOS \nDE INVESTIGACIÓN",null,null,null,null,{"$f":"General!$H$2","v":"Fecha de Emisión: 2017/02/28"},{"$f":"General!$I$2","v":"IN-IV-F-14"}]
[null,null,null,null,null,null,{"$f":"General!$H$3","v":"Revision N°:\n2"},{"$f":"\"Página \"&A1&\" de \"&Dt_TPG","v":"Página 7 de 11"},null,null,"N","Abreviatura","IdClase","INV","IMP","Clase ","Tipo de Productos","Indicadores","o","Ok"]
[null,null,null,null,null,null,{"$f":"IF(H5=\"INV\",3,4)","v":3},null,null,null,{"$f":"ROW()-3","v":1},"Articulo Q1","GNC",60,60,"Productos de Generación de Nuevo Conocimiento (GNC) ","En Cuartil 1 (Q1) de Scimago ","Comunicado sometido ante la editorial","o",{"$f":"SUMIFS($F$7:$F$27,$C$7:$C$27,$L4)","v":0}]
["10.-","Productividad comprometida",null,null,null,"Tipo de proyecto:",null,{"$f":"General!$H$1","v":"INV"},null,null,{"$f":"ROW()-3","v":2},"Articulo Q2","GNC",50,50,"Productos de Generación de Nuevo Conocimiento (GNC) ","En Cuartil 2 (Q2) de Scimago ","Comunicado sometido ante la editorial","o",{"$f":"SUMIFS($F$7:$F$27,$C$7:$C$27,$L5)","v":0}]
[null,"N°","Resultado/Producto esperado","Descripción o detalles del producto esperado","Indicador","Cantidad","Total de puntos","Benefi-ciario",null,null,3,"Articulo Q3","GNC",40,40,"Productos de Generación de Nuevo Conocimiento (GNC) ","En Cuartil 3 (Q3) de Scimago ","Comunicado sometido ante la editorial","o",0]
[null,{"$f":"ROW()-6","v":1},null,null,{"$f":"IFERROR(VLOOKUP($C7,L3:$T$40,7,0),\" \")","v":" "},1,{"$f":"IFERROR(F7*VLOOKUP($C7,$L$3:$T$40,G$4,0),\" \")","v":" "},null,null,null,4,"Articulo Q4","GNC",30,30,"Productos de Generación de Nuevo Conocimiento (GNC) ","En Cuartil 4 (Q4) de Scimago ","Comunicado sometido ante la editorial","o",0]
[null,{"$f":"ROW()-6","v":2},null,null,{"$f":"IFERROR(VLOOKUP($C8,L4:$T$40,7,0),\" \")","v":" "},1," ",null,null,null,5,"Articulo A1","GNC",20,20,"Productos de Generación de Nuevo Conocimiento (GNC) ","En A1  de  Publindex","Comunicado sometido ante la editorial","o",0]
[null,3,null,null,{"$f":"IFERROR(VLOOKUP($C9,L5:$T$40,7,0),\" \")","v":" "},1," ",null,null,null,6,"Articulo A2","GNC",16,16,"Productos de Generación de Nuevo Conocimiento (GNC) ","En A2  de  Publindex","Comunicado sometido ante la editorial","o",0]
[null,4,null,null,{"$f":"IFERROR(VLOOKUP($C10,L6:$T$40,7,0),\" \")","v":" "},0," ",null,null,null,7,"Articulo B","GNC",14,14,"Productos de Generación de Nuevo Conocimiento (GNC) ","En B  de  Publindex","Comunicado sometido ante la editorial","o",0]
[null,5,null,null,{"$f":"IFERROR(VLOOKUP($C11,L7:$T$40,7,0),\" \")","v":" "},0," ",null,null,null,8,"Articulo C","GNC",12,12,"Productos de Generación de Nuevo Conocimiento (GNC) ","En C  de  Publindex","Comunicado sometido ante la editorial","o",0]
[null,6,null,null,{"$f":"IFERROR(VLOOKUP($C12,L8:$T$40,7,0),\" \")","v":" "},0," ",null,null,null,9,"Libro Completo","GNC",40,40,"Productos de Generación de Nuevo Conocimiento (GNC) ","Libro de Investigación ","Comunicado de sometido ante la Div. de publicaciones o editorial.","o",0]
[null,7,null,null,{"$f":"IFERROR(VLOOKUP($C13,L9:$T$40,7,0),\" \")","v":" "},0," ",null,null,null,10,"Cap. de Libro","GNC",15,15,"Productos de Generación de Nuevo Conocimiento (GNC) ","Capítulo de Libro de Investigación","Comunicado de sometido ante la Div. de publicaciones o editorial.","o",0]
[null,8,null,null,{"$f":"IFERROR(VLOOKUP($C14,L10:$T$40,7,0),\" \")","v":" "},0," ",null,null,null,11,"Patentes Invencion","GNC",60,60,"Productos de Generación de Nuevo Conocimiento (GNC) ","Productos o procesos tecnológicos patentados o registrados ","Resolución expedida SIC/ Patente","o",0]
[null,9,null,null,{"$f":"IFERROR(VLOOKUP($C15,L11:$T$40,7,0),\" \")","v":" "},0," ",null,null,null,12,"Patentes Utilidad","GNC",30,30,"Productos de Generación de Nuevo Conocimiento (GNC) ","Productos o procesos tecnológicos patentados o registrados de modelo de utilidad","Resolución expedida SIC/ Patente","o",0]
[null,10,null,null,{"$f":"IFERROR(VLOOKUP($C16,L12:$T$40,7,0),\" \")","v":" "},0," ",null,null,null,13,"Software","GNC",20,20,"Productos de Generación de Nuevo Conocimiento (GNC) ","Software registrado","Registro ante dirección nacional de derechos de autor","o",0]
[null,11,null,null,{"$f":"IFERROR(VLOOKUP($C17,L13:$T$40,7,0),\" \")","v":" "},0," ",null,null,null,14,"Prototipo","GNC",15,15,"Productos de Generación de Nuevo Conocimiento (GNC) ","Productos o procesos tecnológicos usualmente no patentables (Prototipo) ","Modelo funcionalidad","o",0]
[null,12,null,null,{"$f":"IFERROR(VLOOKUP($C18,L14:$T$40,7,0),\" \")","v":" "},0," ",null,null,null,15,"Empresa","GNC",30,30,"Productos de Generación de Nuevo Conocimiento (GNC) ","Empresa SpinOff en proceso de incubación","Registro creación empresa cámara de comercio","o",0]
[null,13,null,null,{"$f":"IFERROR(VLOOKUP($C19,L15:$T$40,7,0),\" \")","v":" "},0," ",null,null,null,16,"OVA","GNC",8,8,"Productos de Generación de Nuevo Conocimiento (GNC) ","Objeto Virtual de Aprendizaje","Copia Archivo de Seguridad","o",0]
[null,14,null,null,{"$f":"IFERROR(VLOOKUP($C20,L16:$T$40,7,0),\" \")","v":" "},0," ",null,null,null,17,"AVA","GNC",15,15,"Productos de Generación de Nuevo Conocimiento (GNC) ","Aula Virtual de Aprendizaje","Copia Archivo de Seguridad","o",0]
[null,15,null,null,{"$f":"IFERROR(VLOOKUP($C21,L17:$T$40,7,0),\" \")","v":" "},0," ",null,null,null,18,"Dir. Doctorado","FRH",30,30,"Formación de Recurso Humano (FRH) ","Dirección de Tesis de Doctorado en la UMNG con temática asociadas a línea de investigación a la que pertenece el proyecto","Acta del comité de de investigacion donde se designa al director y anteproyecto de tesis doctoral o Certificado de la unidad Academica.","o",0]
[null,16,null,null,{"$f":"IFERROR(VLOOKUP($C22,L18:$T$40,7,0),\" \")","v":" "},0," ",null,null,null,19,"Dir. Maestria","FRH",15,15,"Formación de Recurso Humano (FRH) ","Dirección de Trabajos de Maestría en la UMNG con  temática asociadas a línea de investigación a la que pertenece el proyecto ","Acta del comité de de investigacion donde se designa al tutor y anteproyecto o Certificado de la unidad Academica.","o",0]
[null,17,null,null,{"$f":"IFERROR(VLOOKUP($C23,L19:$T$40,7,0),\" \")","v":" "},0," ",null,null,null,20,"Dir. Trab. Grado","FRH",10,10,"Formación de Recurso Humano (FRH) ","Dirección de Trabajos de Grado en la UMNG con temática asociadas a línea de investigación a la que pertenece el proyecto ","Copia del acta sustentación del proyecto de grado","o",0]
[null,18,null,null,{"$f":"IFERROR(VLOOKUP($C24,L20:$T$40,7,0),\" \")","v":" "},0," ",null,null,null,21,"Dir. PIC","FRH",5,0,"Formación de Recurso Humano (FRH) ","Dirección de Proyectos de Iniciación Científica en la UMNG con temática asociadas a línea de investigación a la que pertenece  el proyecto ","Informe final","o",0]
[null,19,null,null,{"$f":"IFERROR(VLOOKUP($C25,L21:$T$40,7,0),\" \")","v":" "},0," ",null,null,null,22,"Jov. Investigador","FRH",10,10,"Formación de Recurso Humano (FRH) ","Contratación de Joven Investigador  UMNG","Contrato OPS Fotocopia","o",0]
[null,20,null,null,{"$f":"IFERROR(VLOOKUP($C26,L22:$T$40,7,0),\" \")","v":" "},0," ",null,null,null,23,{"$f":"IF(H5=\"IMP\",\"Asis. Graduado(IMP)\",\"..\")","v":".."},"FRH",0,10,"Formación de Recurso Humano (FRH) ","Contratación de Asistente Graduado UMNG","Contrato OPS Fotocopia","o",0]
[null,null,null,null,null,null,null,null,null,null,24,"Cond. Doctorado","FRH",10,10,"Formación de Recurso Humano (FRH) ","Conducción de asignatura en  Programa Doctoral con  temática asociadas a línea de investigación a la que pertenece el proyecto ","Acta del comité curricular aprobado los contenidos y que se verifique la articulación con la línea de investigación, copia plan de trabajo o Certificado de la unidad Academica.","o",0]
[null,"T",{"$f":"\"Tiene \"&V_Max&\" Pts.  de un limite máximo de \"& H39&\" Pts.\"","v":"Tiene 0 Pts.  de un limite máximo de 39 Pts."},null,null,{"$f":"SUM(F6:F26)","v":3},{"$f":"INT(SUM(G6:G26))","v":0},null,null,null,25,"Cond. Maestria","FRH",5,5,"Formación de Recurso Humano (FRH) ","Conducción de asignatura en Maestría de investigación con temática asociadas a línea de investigación a la que pertenece el proyecto ","Acta del comité curricular aprobado los contenidos y que se verifique la articulación con la línea de investigación, copia plan de trabajo o Certificado de la unidad Academica.","o",0]
[null,{"$f":"IF(V_Max>H39,Q42,\"\")","v":""},null,null,null,null,null,{"$f":"IF(AND(H5=\"INV\",T26>0),Q45,\"\")","v":""},null,null,26,"Ponencia Inter.","SAC",8,8,"Socialización y Apropiacióndel Conocimiento (SAC) ","Ponencia en evento Internacional (**) ","Resumen publicado en memoria con ISSN o ISBN del evento y/o certificado de ponente","o",0]
[null,null,null,null,null,null,null,null,null,null,27,"Ponencia Nac.","SAC",6,6,"Socialización y Apropiacióndel Conocimiento (SAC) ","Ponencia en evento nacional (***)","Resumen publicado en memoria con ISSN o ISBN del evento y/o certificado de ponente","o",0]
[null,"N","Sigla","Clase ",null,null,null,"No",null,null,28,"Ponencia Insti.","SAC",4,0,"Socialización y Apropiacióndel Conocimiento (SAC) ","Ponencia en evento Institucional ","Resumen publicado en  memoria del evento y/o certificado de ponente","o",0]
[null,1,"GNC","Productos de Generación de Nuevo Conocimiento (GNC) ",null,null,null,{"$f":"SUMIF($M$4:$M$40,$C32,$T$4:$T$40)","v":0},null,null,29,"Org. Evento Inter.","SAC",8,8,"Socialización y Apropiacióndel Conocimiento (SAC) ","Organización de Eventos de alcance  Internacional con temáticas asociadas al tema de investigación del grupo ","Certificado de la participación de la organización del evento","o",0]
[null,2,"FRH","Formación de Recurso Humano (FRH) ",null,null,null,{"$f":"SUMIF($M$4:$M$40,$C33,$T$4:$T$40)","v":0},null,null,30,"Org. Evento Nac.","SAC",4,4,"Socialización y Apropiacióndel Conocimiento (SAC) ","Organización de Eventos de alcance nacional con temáticas asociadas al tema de investigación del grupo ","Certificado de la participación de la organización del evento","o",0]
[null,3,"SAC","Socialización y Apropiacióndel Conocimiento (SAC) ",null,null,null,{"$f":"SUMIF($M$4:$M$40,$C34,$T$4:$T$40)","v":0},null,null,31,"Org. Evento Insti.","SAC",2,0,"Socialización y Apropiacióndel Conocimiento (SAC) ","Organización de Eventos de alcance  institucional contemáticas  asociadas al temde investigación del grupo ","Resumen publicado en libro de memoria del evento o Certificado del comité organizador del evento.","o",0]
[null,4,"GI","Gestión de Investigación (GI) ",null,null,null,{"$f":"SUMIF($M$4:$M$40,$C35,$T$4:$T$40)","v":0},null,null,32,"Premios Inter.","SAC",5,5,"Socialización y Apropiacióndel Conocimiento (SAC) ","Recepción de Premios internacionales por resultados derivados del  proyecto ","Convocatria del premio y Certificado","o",0]
[null,null,null,null,null,null,null,{"$f":"SUM(H32:H35)","v":0},null,null,33,"Premios Nac.","SAC",2.5,2.5,"Socialización y Apropiacióndel Conocimiento (SAC) ","Recepción de Premios Nacionales poresultados derivados delproyecto ","Convocatria del premio y Certificado","o",0]
[null,null,null,null,null,null,null,null,null,null,34,"Mat. Divulgativo ISBN","SAC",2.5,0,"Socialización y Apropiacióndel Conocimiento (SAC) ","Publicación de material  divulgativo (con ISBN) o  publicaciones en revistas no indexadas ","Comunicado de sometido ante la Div. de publicaciones o editorial.","o",0]
[null,null,null,null,null,null,null,"Max Puntos",null,null,35,"Mat. Divulgativo","SAC",1.5,0,"Socialización y Apropiacióndel Conocimiento (SAC) ","Publicación de material  divulgativo (sin ISBN) o  publicaciones en revistas no indexadas ","Comunicado de sometido ante la Div. de publicaciones o editorial.","o",0]
[null,"Cuadro validación de productos por Sigla",null,null,null,{"$f":"IF(H5=\"IMP\",3,2)","v":2},{"$f":"Gp_Max","v":"NR"},{"$f":"IFERROR(VLOOKUP($G$39,$S$42:$U$49,$F$39,0),0)","v":39},null,null,36,"Proyecto Coop. Inter.","GI",12,12,"Gestión de Investigación (GI) ","Presentación de nuevo proyecto en la misma temática, para desarrollar en cofinanciación con entidad académica o científica extranjera.\nEsta nueva propuesta debe estar sometida a alguna convocatoria externa y acompañarse mínimo de Carta de Acuerdo de la entidad con la que se desarrollará la cooperación internacional."," Carta de Acuerdo de la entidad con la que se desarrollará la cooperación internacional.","o",0]
[null,0,"Puntos","Convocatoria ","Sigla","Necesita","Tiene",null,null,null,37,"Proyecto Coop. Nac.","GI",6,6,"Gestión de Investigación (GI) ","Presentación de nuevo proyecto en la misma temática, para desarrollar en cofinanciación con entidad académica o científica nacional.\nEsta nueva propuesta debe estar sometida a alguna convocatoria externa  \ny debe acompañarse mínimo de Carta de Acuerdo de la entidad con la que se desarrollará la cooperación nacional","Carta de Acuerdo de la entidad con la que se desarrollará la cooperación nacional","o",{"$f":"SUMIFS($F$7:$F$27,$C$7:$C$27,$L40)","v":0}]
[null,1,200,"Alto Impacto",{"$f":"C32","v":"GNC"},1,{"$f":"H32","v":0}]
[null,2,200,"Alto Impacto",{"$f":"C33","v":"FRH"},1,{"$f":"H33","v":0},null,null,null,null,null,null,null,null,{"$f":"V_Max-H39","v":-39},{"$f":"\"* Supera en \"&P42&\" el limite de puntos para el tipo de proyecto es \"&$H$39&\" puntos como máximo\"","v":"* Supera en -39 el limite de puntos para el tipo de proyecto es 39 puntos como máximo"},{"$f":"General!C7","v":"Investigación Científica"},"T","INV","IMP"]
[null,3,200,"Alto Impacto",{"$f":"C34","v":"SAC"},1,{"$f":"H34","v":0},null,null,null,null,null,null,null,null,null,"* debe por lo menos tener 20 puntos para cumplir los topes requisto de la convocatoria (INV)",null,"A",199,300]
[null,4,200,"Alto Impacto",{"$f":"C35","v":"GI"},1,{"$f":"H35","v":0},null,null,null,null,null,null,null,null,null,null,null,"A1",199,300]
[null,5,80,"Investigacion ",{"$f":"E41","v":"GNC"},1,{"$f":"G41","v":0},null,null,null,null,null,null,null,null,null,"En proyectos de investigación no tiene asistentes de graduados.",null,"B",199,300]
[null,6,{"$f":"C45","v":80},"Investigacion ",{"$f":"E42","v":"FRH"},1,{"$f":"G42","v":0},null,null,null,null,null,null,null,null,null,null,null,"C",199,300]
[null,7,{"$f":"C46","v":80},"Investigacion ","SAC",1,0,null,null,null,null,null,null,null,null,null,null,null,"D",59,0]
[null,8,{"$f":"C47","v":80},"Investigacion ","GI",0,0,null,null,null,null,null,null,null,null,null,null,null,"R",59,0]
[null,9,{"$f":"C45-20","v":60},{"$f":"D48","v":"Investigacion "},"GNC",1,0,null,null,null,null,null,null,null,null,null,null,null,"NR",39,0]
[null,10,{"$f":"C46-20","v":60},{"$f":"D49","v":"Investigacion "},"FRH",1,0]
[null,11,60,"Investigacion ","SAC",1,0]
[null,12,60,"Investigacion ","GI",0,0]
[null,13,40,"Investigacion ","GNC",1,0]
[null,14,40,"Investigacion ","FRH",1,0]
[null,15,40,"Investigacion ","SAC",0,0]
[null,16,40,"Investigacion ","GI",0,0]
[null,17,20,"Investigacion ","GNC",1,0]
[null,18,20,"Investigacion ","FRH",0,0]
[null,19,20,"Investigacion ","SAC",0,0]
[null,20,20,"Investigacion ","GI",0,0]

{"sheet":"Integrantes","index":8,"n_rows":38,"n_cols":27,"rows_kept":38,"cut":false,"hidden":false,"merged":[[24,25,24,26],[35,1,37,1],[20,1,22,1],[23,1,25,1],[26,1,28,1],[29,1,31,1],[32,1,34,1],[21,5,21,7],[24,5,24,7],[22,3,22,7],[25,3,25,7],[28,3,28,7],[37,3,37,7],[33,5,33,7],[36,5,36,7],[27,5,27,7],[11,1,13,1],[14,1,16,1],[17,1,19,1],[13,3,13,7],[16,3,16,7],[19,3,19,7],[2,1,3,4],[2,6,2,7],[3,6,3,7],[8,1,10,1],[9,5,9,7],[10,3,10,7],[30,5,30,7],[31,3,31,7],[34,3,34,7],[18,5,18,7],[12,5,12,7],[15,5,15,7]]}
[8]
[]
[null,"PRESENTACIÓN DE PROYECTOS \nDE INVESTIGACIÓN",null,null,null,{"$f":"General!$H$2","v":"Fecha de Emisión: 2017/02/28"},"IN-IV-F-14",null,null,null,null,null,"Ok","Puntos","IP Max","IP Min","CO Max","CO Min","CR"]
[null,null,null,null,null,{"$f":"General!$H$3","v":"Revision N°:\n2"},{"$f":"\"Página \"&A1&\" de \"&Dt_TPG","v":"Página 8 de 11"},{"$f":"\"Página \"&A2&\" de \"&Dt_TPG","v":"Página  de 11"},null,20,null,null,1,{"$f":"S8","v":0},{"$f":"VLOOKUP($M$4,$M$8:$T$23,3,0)","v":8},{"$f":"O4-4","v":4},{"$f":"O4/2","v":4},{"$f":"P4/2","v":2},{"$f":"VLOOKUP($M$4,$M$8:$T$23,2,0)","v":20},{"$f":"VLOOKUP($M$4,$M$8:$T$23,8,0)","v":25}]
[]
["11.-","Investigadores Integrantes del proyecto.",null,null,null,{"$f":"Cel_TP","v":"INV"},{"$f":"Cel_Fac","v":"NT"},{"$f":"V_Max","v":0},null,{"$f":"IF(F6=\"INV\",12,24)","v":12},null,null,null,null,null,null,null,null,null,null,null,null,"* Cuadro para tener relación entre Fincion y Tipo de Vinculo"]
[]
[null,"No","Identificacion","Nombres","Apellidos","Nivel Academico","Mes","Horas",null,"Max","Min",null,"Ok","Puntos","IP Max","IP Min","CO Max","CO Min",{"$f":"H6","v":0},"Valores",null,null,"Funcion ","y","Vinculo","Mes","Fila"]
[null,1,null,null,null,null,{"$f":"J6","v":12},null,null,{"$f":"O4","v":8},{"$f":"P4","v":4},"Doc. Carrera TC",{"$f":"IF(SUM(M10:M23)=0,1,IF(N9=S9,1,0))","v":1},20,8,4,4,2,{"$f":"INT(S8/20)*20","v":0},25,null,null,"Investigador Principal",{"$f":"$X$8&\"9:\"&$X$8&\"10\"","v":"y9:y10"},"Doc. Carrera TC",{"$f":"G9","v":12},{"$f":"ROW()","v":9}]
[null,null,"Funcion :","Investigador Principal",null,null,null,null,null,{"$f":"IFERROR(VLOOKUP($F10,V_IdNBC,2,0),0)","v":0},null,"Doc. Carrera MT",{"$f":"IF(N10=S10,1,0)","v":0},40,12,8,6,4,{"$f":"INT(S9/20)*20","v":0},50,null,null,"Investigador Principal",{"$f":"$X$8&\"9:\"&$X$8&\"10\"","v":"y9:y10"},"Doc. Carrera MT",{"$f":"Z9","v":12},{"$f":"ROW()","v":10}]
[null,null,"CvLac:",null,null,null,null,null,null,{"$f":"IF($D10=$W$18,20,IFERROR(VLOOKUP($E10,$Y$8:$Z$19,2,0),$G$9))","v":12},null,null,0,60,16,12,8,6,0,75,null,null,"Coinvestigador",{"$f":"$X$8&\"11:\"&$X$8&\"14\"","v":"y11:y14"},"Doc. Carrera TC",{"$f":"Z10","v":12},{"$f":"ROW()","v":11}]
[null,2,null,null,null,null,null,null,null,{"$f":"IF($E13=$Y$14,IF($D13=$W$15,0,40),IF($D13=\"Coinvestigador\",J$9/2,40))","v":40},{"$f":"IF(E13=$Y$14,0,IF($D13=\"Coinvestigador\",K$9/2,0))","v":0},null,0,80,20,16,10,8,0,100,null,null,"Coinvestigador",{"$f":"$X$8&\"11:\"&$X$8&\"14\"","v":"y11:y14"},"Doc. Carrera MT",{"$f":"Z11","v":12},{"$f":"ROW()","v":12}]
[null,{"$f":"+B12","v":2},"Funcion :",null,null,null,null,null,null,{"$f":"IFERROR(VLOOKUP($F13,V_IdNBC,2,0),0)","v":0},null,null,0,{"$f":"N12+20","v":100},{"$f":"O12","v":20},16,10,8,0,100,null,null,"Coinvestigador",{"$f":"$X$8&\"11:\"&$X$8&\"14\"","v":"y11:y14"},"Doc. Ocasional",10,{"$f":"ROW()","v":13}]
[null,{"$f":"+B13","v":2},"CvLac:",null,null,null,null,null,null,{"$f":"IF($D13=$W$18,20,IFERROR(VLOOKUP($E13,$Y$8:$Z$19,2,0),$G$9))","v":12},null,null,0,{"$f":"N13+20","v":120},20,16,10,8,0,100,null,null,"Coinvestigador",{"$f":"$X$8&\"11:\"&$X$8&\"14\"","v":"y11:y14"},"Externo a la UMNG",{"$f":"Z12","v":12},{"$f":"ROW()","v":14}]
[null,{"$f":"B12+1","v":3},null,null,null,null,null,null,null,{"$f":"IF($E16=$Y$14,IF($D16=$W$15,0,40),IF($D16=\"Coinvestigador\",J$9/2,40))","v":40},{"$f":"IF(E16=$Y$14,0,IF($D16=\"Coinvestigador\",K$9/2,0))","v":0},null,0,{"$f":"N14+20","v":140},20,16,10,8,0,100,null,null,"Asesor",{"$f":"$X$8&AA15&\":\"&$X$8&AA15","v":"y15:y15"},"Externo a la UMNG",{"$f":"Z14","v":12},{"$f":"ROW()","v":15}]
[null,{"$f":"+B15","v":3},"Funcion :",null,null,null,null,null,null,{"$f":"IFERROR(VLOOKUP($F16,V_IdNBC,2,0),0)","v":0},null,null,0,{"$f":"N15+20","v":160},20,16,10,8,0,100,null,null,"Asistente OPS",{"$f":"$X$8&AA16&\":\"&$X$8&AA16","v":"y16:y16"},"OPS - Prestación Servicios",10,{"$f":"ROW()","v":16}]
[null,{"$f":"+B16","v":3},"CvLac:",null,null,null,null,null,null,{"$f":"IF($D16=$W$18,20,IFERROR(VLOOKUP($E16,$Y$8:$Z$19,2,0),$G$9))","v":12},null,null,0,{"$f":"N16+20","v":180},20,16,10,8,0,100,null,null,"Joven Investigador",{"$f":"$X$8&AA17&\":\"&$X$8&AA17","v":"y17:y17"},"OPS - Prestación Servicios",10,{"$f":"ROW()","v":17}]
[null,{"$f":"B15+1","v":4},null,null,null,null,null,null,null,{"$f":"IF($E19=$Y$14,IF($D19=$W$15,0,40),IF($D19=\"Coinvestigador\",J$9/2,40))","v":40},{"$f":"IF(E19=$Y$14,0,IF($D19=\"Coinvestigador\",K$9/2,0))","v":0},null,0,200,24,20,12,10,0,250,null,null,"Asistente Graduado",{"$f":"$X$8&AA18&\":\"&$X$8&AA18","v":"y18:y18"},"OPS - Prestación Servicios",10,{"$f":"ROW()","v":18}]
[null,{"$f":"+B18","v":4},"Funcion :",null,null,null,null,null,null,{"$f":"IFERROR(VLOOKUP($F19,V_IdNBC,2,0),0)","v":0},null,null,0,{"$f":"N18+20","v":220},24,20,12,10,{"$f":"INT(S18/20)*20","v":0},250,null,null,"Estudiante",{"$f":"$X$8&AA19&\":\"&$X$8&AA19","v":"y19:y19"},"Auxiliar  de Investigación",10,{"$f":"ROW()","v":19}]
[null,{"$f":"+B19","v":4},"CvLac:",null,null,null,null,null,null,{"$f":"IF($D19=$W$18,20,IFERROR(VLOOKUP($E19,$Y$8:$Z$19,2,0),$G$9))","v":12},null,null,0,{"$f":"N19+20","v":240},24,20,12,10,{"$f":"INT(S19/20)*20","v":0},250]
[null,{"$f":"B18+1","v":5},null,null,null,null,null,null,null,{"$f":"IF($E22=$Y$14,IF($D22=$W$15,0,40),IF($D22=\"Coinvestigador\",J$9/2,40))","v":40},{"$f":"IF(E22=$Y$14,0,IF($D22=\"Coinvestigador\",K$9/2,0))","v":0},null,0,{"$f":"N20+20","v":260},24,20,12,10,{"$f":"INT(S20/20)*20","v":0},250]
[null,{"$f":"+B21","v":5},"Funcion :",null,null,null,null,null,null,{"$f":"IFERROR(VLOOKUP($F22,V_IdNBC,2,0),0)","v":0},null,null,0,{"$f":"N21+20","v":280},24,20,12,10,{"$f":"INT(S21/20)*20","v":0},250]
[null,{"$f":"+B22","v":5},"CvLac:",null,null,null,null,null,null,{"$f":"IF($D22=$W$18,20,IFERROR(VLOOKUP($E22,$Y$8:$Z$19,2,0),$G$9))","v":12},null,null,0,{"$f":"N22+20","v":300},24,20,12,10,{"$f":"INT(S22/20)*20","v":0},250]
[null,{"$f":"B21+1","v":6},null,null,null,null,null,null,null,{"$f":"IF($E25=$Y$14,IF($D25=$W$15,0,40),IF($D25=\"Coinvestigador\",J$9/2,40))","v":40},{"$f":"IF(E25=$Y$14,0,IF($D25=\"Coinvestigador\",K$9/2,0))","v":0}]
[null,{"$f":"+B24","v":6},"Funcion :",null,null,null,null,null,null,{"$f":"IFERROR(VLOOKUP($F25,V_IdNBC,2,0),0)","v":0},null,null,"N","Tipos",1,2,3,"No",null,null,null,null,"Clasificación de grupo máximo asociado a la propuesta ",null,null,{"$f":"Gp_Max","v":"NR"}]
[null,{"$f":"+B25","v":6},"CvLac:",null,null,null,null,null,null,{"$f":"IF($D25=$W$18,20,IFERROR(VLOOKUP($E25,$Y$8:$Z$19,2,0),$G$9))","v":12},null,null,1,"Investigador Principal",null,null,null,{"$f":"COUNTIF($D$10:$D$38,$N26)","v":1},null,null,null,null,null,null,null,"Inv IP"]
[null,{"$f":"B24+1","v":7},null,null,null,null,null,null,null,{"$f":"IF($E28=$Y$14,IF($D28=$W$15,0,40),IF($D28=\"Coinvestigador\",J$9/2,40))","v":40},{"$f":"IF(E28=$Y$14,0,IF($D28=\"Coinvestigador\",K$9/2,0))","v":0},null,2,"Coinvestigador",null,null,null,{"$f":"COUNTIF($D$10:$D$38,$N27)","v":0},null,null,null,null,"Grupos","Millon","Entre","Max","Min"]
[null,{"$f":"+B27","v":7},"Funcion :",null,null,null,null,null,null,{"$f":"IFERROR(VLOOKUP($F28,V_IdNBC,2,0),0)","v":0},null,null,3,"Asistente OPS",null,null,null,0,null,null,null,null,"Avalados ",25,"20- 39",8,4]
[null,{"$f":"+B28","v":7},"CvLac:",null,null,null,null,null,null,{"$f":"IF($D28=$W$18,20,IFERROR(VLOOKUP($E28,$Y$8:$Z$19,2,0),$G$9))","v":12},null,null,4,"Joven Investigador",null,null,null,0,null,null,null,null,"Reconocidos",50,"40-59",12,8]
[null,{"$f":"B27+1","v":8},null,null,null,null,null,null,null,{"$f":"IF($E31=$Y$14,IF($D31=$W$15,0,40),IF($D31=\"Coinvestigador\",J$9/2,40))","v":40},{"$f":"IF(E31=$Y$14,0,IF($D31=\"Coinvestigador\",K$9/2,0))","v":0},null,5,"Asistente Graduado",null,null,null,0,null,null,null,null,"Mayores de Cat. C",75,"60-79",16,12]
[null,{"$f":"+B30","v":8},"Funcion :",null,null,null,null,null,null,{"$f":"IFERROR(VLOOKUP($F31,V_IdNBC,2,0),0)","v":0},null,null,6,"Asesor",null,null,null,0,null,null,null,null,"Mayores de Cat. C",100,"80-199",20,16]
[null,{"$f":"+B31","v":8},"CvLac:",null,null,null,null,null,null,{"$f":"IF($D31=$W$18,20,IFERROR(VLOOKUP($E31,$Y$8:$Z$19,2,0),$G$9))","v":12},null,null,7,"Estudiante",null,null,null,0,null,null,null,null,"IMP",250,"200-300",24,10]
[null,{"$f":"B30+1","v":9},null,null,null,null,null,null,null,{"$f":"IF($E34=$Y$14,IF($D34=$W$15,0,40),IF($D34=\"Coinvestigador\",J$9/2,40))","v":40},{"$f":"IF(E34=$Y$14,0,IF($D34=\"Coinvestigador\",K$9/2,0))","v":0}]
[null,{"$f":"+B33","v":9},"Funcion :",null,null,null,null,null,null,{"$f":"IFERROR(VLOOKUP($F34,V_IdNBC,2,0),0)","v":0}]
[null,{"$f":"+B34","v":9},"CvLac:",null,null,null,null,null,null,{"$f":"IF($D34=$W$18,20,IFERROR(VLOOKUP($E34,$Y$8:$Z$19,2,0),$G$9))","v":12}]
[null,{"$f":"B33+1","v":10},null,null,null,null,null,null,null,{"$f":"IF($E37=$Y$14,IF($D37=$W$15,0,40),IF($D37=\"Coinvestigador\",J$9/2,40))","v":40},{"$f":"IF(E37=$Y$14,0,IF($D37=\"Coinvestigador\",K$9/2,0))","v":0}]
[null,{"$f":"+B36","v":10},"Funcion :",null,null,null,null,null,null,{"$f":"IFERROR(VLOOKUP($F37,V_IdNBC,2,0),0)","v":0}]
[null,{"$f":"+B37","v":10},"CvLac:",null,null,null,null,null,null,{"$f":"IF($D37=$W$18,20,IFERROR(VLOOKUP($E37,$Y$8:$Z$19,2,0),$G$9))","v":12}]

{"sheet":"Presupuesto","index":9,"n_rows":125,"n_cols":17,"rows_kept":125,"cut":false,"hidden":false,"merged":[[66,4,66,5],[61,4,61,5],[62,4,62,5],[63,4,63,5],[64,4,64,5],[65,4,65,5],[56,4,56,5],[57,4,57,5],[58,4,58,5],[59,4,59,5],[60,4,60,5],[51,4,51,5],[52,4,52,5],[53,4,53,5],[54,4,54,5],[55,4,55,5],[122,4,123,8],[99,1,101,1],[102,1,104,1],[105,1,107,1],[108,1,110,1],[120,4,120,8],[96,1,98,1],[2,1,3,6],[48,4,48,5],[49,4,49,5],[93,1,95,1],[68,4,68,5],[67,4,67,5],[78,1,80,1],[81,1,83,1],[84,1,86,1],[87,1,89,1],[90,1,92,1],[6,3,6,8],[7,3,7,5],[7,7,7,8],[50,4,50,5]]}
[9]
[]
[null,"PRESENTACIÓN DE PROYECTOS \nDE INVESTIGACIÓN",null,null,null,null,null,{"$f":"General!$H$2","v":"Fecha de Emisión: 2017/02/28"},{"$f":"General!$I$2","v":"IN-IV-F-14"}]
[null,null,null,null,null,null,null,{"$f":"General!$H$3","v":"Revision N°:\n2"},{"$f":"\"Página \"&$A$1&\" de \"&Dt_TPG","v":"Página 9 de 11"}]
[]
[]
[null,"T","Título de la Propuesta :",{"$f":"General!B9","v":0}]
[null,"L","Lider responsable",{"$f":"General!C10","v":0},null,null,"Codigo VICEIN:"]
[]
["12.-","Presupuesto rubro personal asocidado a la propuesta",null,null,null,null,{"$f":"V_Max","v":0},{"$f":"Cel_TP","v":"INV"},{"$f":"Gp_Max","v":"NR"}]
[null,null,null,null,null,null,null,null,1.66]
[null,"a.","Personal de planta o ocasional que integra al proyecto de investigación.",null,null,null,null,"Valores de Contrapartida."]
[{"$f":"ROW()","v":13},"N°","Sueldo Neto","Factor ","Tipo de Vinculo UMNG","Numero de meses ","Número Horas / Semanal","Valor Final","Identificación",null,null,"*tabla de consolidacion por año para proyectos IMP"]
[null,{"$f":"ROW()-$A$13","v":1},null,{"$f":"I11","v":1.66},{"$f":"INDIRECT($I$24&\"E\"&$J14+1,1)","v":0},{"$f":"INDIRECT($I$24&\"G\"&$J14,1)","v":12},{"$f":"INDIRECT($I$24&\"H\"&$J14,1)","v":0},{"$f":"INT((C14*F14)/40)*G14*$I$11","v":0},{"$f":"INDIRECT($I$24&\"C\"&$J14,1)","v":0},9,null,0,"Tipo Vinculo UMNG","Año1","Año2"]
[null,{"$f":"ROW()-$A$13","v":2},null,{"$f":"D14","v":1.66},0,0,0,{"$f":"INT((C15*F15)/40)*G15*$I$11","v":0},0,{"$f":"J14+3","v":12},null,1,"Doc. Carrera TC",{"$f":"(SUMIF($E$14:$E$23,$M15,$H$14:$H$23)/2)","v":0},{"$f":"N15","v":0}]
[null,3,null,{"$f":"D15","v":1.66},0,0,0,0,0,{"$f":"J15+3","v":15},null,2,"Doc. Carrera MT",{"$f":"(SUMIF($E$14:$E$23,$M16,$H$14:$H$23)/2)","v":0},{"$f":"N16","v":0}]
[null,4,null,1.66,0,0,0,0,0,18,null,3,"Doc. Ocasional",{"$f":"SUMIF($E$14:$E$23,$M17,$H$14:$H$23)","v":0},0]
[null,5,null,1.66,0,0,0,0,0,21,null,1,"Contrapartida Facultad  IMP:",{"$f":"SUM(N15:N17)","v":0},{"$f":"SUM(O15:O17)","v":0}]
[null,6,null,1.66,0,0,0,0,0,24,null,2,"Contrapartida Facultad  INV:",{"$f":"SUM(N15:O17)","v":0}]
[null,7,null,1.66,0,0,0,0,0,27]
[null,8,null,1.66,0,0,0,0,0,30,null,null,"Validación IMP OK Grupo","A"]
[null,9,null,1.66,0,0,0,0,0,33,null,null,null,"A1"]
[null,10,null,1.66,0,0,0,0,0,36,null,null,null,"B"]
[null,null,"Sumatoria del calculo de personal de planta \"Valor contrapartida Facultades\":",null,null,null,null,{"$f":"SUBTOTAL(109,H14:H23)","v":0},"Integrantes!",null,null,null,"Incremento al salario","C"]
[null,null,null,null,null,null,null,null,null,null,null,null,0]
[null,"b. ","Asistentes externos o temporales contratados por (OPS) y/o hora cadedra.",null,null,null,null,null,null,null,null,null,"Valor SMLV","Max Mes"]
[null,">","Salario  Minimo Legal Vigente (SMIV) : ",null,null,737717,null,36885850,null,null,null,null,{"$f":"F27*(1+M25)","v":737717},{"$f":"INT(Integrantes!J6/10)*10","v":10}]
[]
[{"$f":"ROW()","v":29},"No","Valor mensual del contrato","Factor ","Tipo de vinculación","Numero de meses ","Número Horas / Semanal","Valor total de contrato","Valores  de entidades externas",null,null,"No","Tipo","Valor total del contrato (10 mes)","SMMLV","Valor mes contrato","Cuantos"]
[null,{"$f":"ROW()-$A$29","v":1},{"$f":"IFERROR(VLOOKUP($E30,$M$29:$P$38,4,0),0)","v":0},{"$f":"IFERROR(VLOOKUP($E30,$M$29:$O$37,3,0)/10,0)","v":0},null,1,1,{"$f":"IF($E30=$M$38,$N$38,(F30*C30)/40*G30)","v":0},null,{"$f":"IFERROR(VLOOKUP($E30,$M$29:$O$38,2,0),0)*IF($H$10=\"IMP\",2,1)","v":0},null,1,"Técnico",{"$f":"$M$27*O30","v":14754340},20,{"$f":"N30/10","v":1475434},{"$f":"COUNTIF($E$30:$E$42,M30)","v":0}]
[null,{"$f":"ROW()-$A$29","v":2},{"$f":"IFERROR(VLOOKUP($E31,$M$29:$P$38,4,0),0)","v":0},0,null,1,1,{"$f":"IF($E31=$M$38,$N$38,(F31*C31)/40*G31)","v":0},null,{"$f":"IFERROR(VLOOKUP($E31,$M$29:$O$38,2,0),0)*IF($H$10=\"IMP\",2,1)","v":0},null,2,"Profesional",25820095,35,{"$f":"N31/10","v":2582009.5},{"$f":"COUNTIF($E$30:$E$42,M31)","v":0}]
[null,3,0,0,null,1,1,0,null,0,null,3,"Profesional especilizado",29508680,40,2950868,0]
[null,4,0,0,null,1,1,0,null,0,null,4,"Profesional magister",33197265,45,3319726.5,0]
[null,5,0,0,null,1,1,0,null,0,null,5,"Profesional doctorado",40574435,55,4057443.5,0]
[null,6,0,0,null,1,1,0,null,0,null,6,"Joven investigador",25820095,35,2582009.5,0]
[null,7,0,0,null,1,1,0,null,0,null,7,"Asistente graduado magister",36885850,50,3688585,0]
[null,8,0,0,null,1,1,0,null,0,null,8,"Asistente graduado doctorado",51640190,70,5164019,0]
[null,9,0,0,null,1,1,0,null,0,null,9,"Auxiliar de Investigación",2213151,3,221315.1,0]
[null,10,0,0,null,1,1,0,null,0]
[null,11,0,0,null,1,1,0,null,0]
[null,12,0,0,null,1,1,0,null,0,null,null,null,"Salario 12 meses"]
[null,13,0,0,null,1,1,0,null,0,null,null,"Joven investigador Colciencias",{"$f":"M27*3*12","v":26557812}]
[null,null,"Sumatoria del calculo de OPS  \"Valor financiado Vicein\" en rubro de (Personal):",null,null,null,{"$f":"IF(H43>M78,\"Esta superando el total de presupuesto\",\"\")","v":""},{"$f":"SUM(H30:H42)","v":0},0]
[null,null,null,null,null,null,null,null,null,null,null,"Instrucción  ver Comentario… OJO VER EN ESTO IMP"]
["13.-","Presupuesto detalle de Plan de compras general ",null,null,null,null,null,null,{"$f":"General!I52","v":0},null,null,1,"Para IMP - Contrapartida Facultad Año 1 es : ",null,{"$f":"N18","v":0}]
[null,null,null,null,null,null,null,null,null,null,null,2,"Para IMP - Contrapartida Facultad Año 2 es : ",null,{"$f":"O18","v":0}]
[null,{"$f":"IFERROR(\"Nota : \"&VLOOKUP(I10,Dt_Limite,3,0),\" \")","v":"Nota : Puede aplicar hasta 25 millones de presupuesto dependiendo los puntos comprometidos"},null,null,null,null,null,null,null,null,null,3,"Para Presupuesto $ VICEIN la mitad de OPS es :",null,{"$f":"H43/2","v":0}]
[null,null,"* En proyectos IMP se debe discriminar por año el presupuesto a utilizar sin superar el la mitad del total.",null,null,null,null,null,null,null,null,"Consulte sobre los items"]
[{"$f":"ROW()","v":49},"No","Rubro","Año ejecu-ción","Descripción",null,"Finaciación Vicein $","Contrapartida Facultad $","Contrapartida Otros $",null,null,"No","Nombre Rubro","Rubro","Limite%",{"$f":"M78","v":25000000},"Solicitado $Vicein"]
[null,{"$f":"ROW()-$A$49","v":1},"Personal",1,null,null,null,{"$f":"H24","v":0},null,null,null,1,"Personal",611401,1,{"$f":"SUMIF($C$49:$C$70,$M50,$G$49:$G$70)","v":0},{"$f":"P50/$P$49","v":0}]
[null,{"$f":"ROW()-$A$49","v":2},null,1,null,null,null,null,null,null,null,2,"Equipos",632,1,{"$f":"SUMIF($C$49:$C$70,$M51,$G$49:$G$70)","v":0},{"$f":"P51/$P$49","v":0}]
[null,3,null,1,null,null,null,null,null,null,null,3,"Equipos transformables",632,1,0,0]
[null,4,null,1,null,null,null,null,null,null,null,4,"Software",612102,1,0,0]
[null,5,null,1,null,null,null,null,null,null,null,5,"Materiales",612101,1,0,0]
[null,6,null,1,null,null,null,null,null,null,null,6,"Materiales (Papelería)",612101,0.01,0,0]
[null,7,null,1,null,null,null,null,null,null,null,7,"Salidas de Campo",612104,0.1,0,0]
[null,8,null,1,null,null,null,null,null,null,null,8,"Servicios Técnicos",612103,1,0,0]
[null,9,null,1,null,null,null,null,null,null,null,9,"Recursos Biblograficos",633,1,0,0]
[null,10,null,1,null,null,null,null,null,null,null,10,"Impresos y Publicaciones",612106,1,0,0]
[null,11,null,1,null,null,null,null,null,null,null,11,"Movilidad",635020,0.2,0,0]
[null,12,null,1,null,null,null,null,null,null,null,12,"Viajes",null,null,null,0]
[null,13,null,1,null,null,null,null,null,null,null,13,"Mantenimiento",null,null,null,0]
[null,14,null,1,null,null,null,null,null,null,null,14,"Administración",null,null,null,0]
[null,15,null,1,null,null,null,null,null,null,null,15,"Construcciones",null,null,null,0]
[null,16,null,1,null,null,null,null,null,null,null,16,"Otros Gastos",null,null,null,0]
[null,17,null,1,null,null,null,null,null,null,null,null,"Si cambio"]
[null,18,null,1]
[null,19,null,1,null,null,null,null,null,null,null,"Validación $ Vicein Maximo 2018",null,null,null,25,20]
[null,20,null,1,null,null,null,null,null,null,null,1,"Puntos  Comprometidos : ",{"$f":"V_Max","v":0},null,50,40]
[]
[null,null,"Sumatoria general de plan de compras :",null,null,{"$f":"SUM(G71:I71)","v":0},{"$f":"SUM(G72:G73)","v":0},{"$f":"SUM(H72:H73)","v":0},{"$f":"SUM(I72:I73)","v":0},null,null,2,"Franja  de Presupuesto en puntos :",{"$f":"Integrantes!S4","v":20},null,75,60]
[null,null,null,1,"Total Presupuesto Año 1 :",null,{"$f":"IF(Cel_TP=\"IMP\",SUMIF($D$50:$D$70,$D72,G$50:G$70),SUM(G$50:G$70))","v":0},{"$f":"SUMIF($D$50:$D$70,$D72,H$50:H$70)","v":0},{"$f":"SUMIF($D$50:$D$70,$D72,I$50:I$70)","v":0},null,null,3,"Maximo $Vicein por Puntos en Millones",{"$f":"Integrantes!T4","v":25},null,100,80]
[null,null,null,2,"Total Presupuesto Año 2 :",null,{"$f":"SUMIF($D$50:$D$70,$D73,G$50:G$70)","v":0},{"$f":"SUMIF($D$50:$D$70,$D73,H$50:H$70)","v":0},{"$f":"SUMIF($D$50:$D$70,$D73,I$50:I$70)","v":0},null,null,4,"Maximo $Vicein por Puntos en Millones Grupo",{"$f":" IFERROR(VLOOKUP(I10,Dt_Limite,2,0),0)","v":25},null,250,200]
[null,null,null,null,{"$f":"IF(G74>0,\"Presupuesto por definir.\",\" Error  - Supero el presupuesto en : \")","v":"Presupuesto por definir."},null,{"$f":"E119-G71","v":25000000},null,null,null,null,4,"Tipo Convocatoria es :",{"$f":"General!C7","v":"Investigación Científica"}]
[null,null,null,null,"Limite de presupuesto VICEIN por año :",null,{"$f":"IFERROR(IF($H$10=\"IMP\",$M$78/2,$M$78),\"0\")","v":25000000}]
[]
[null,null,null,null,null,null,null,null,null,null,null,{"$f":"General!I17","v":""},"Valor maximo INV por clasificacion de Grupo"]
[null,"No","Rubro","%","Porcentaje","$ Financiación solicitada a VICEIN","$ Contrapartida Facultad","$ Contrapartida Externa","$ Total Rubro",0,null,null,{"$f":"IFERROR(IF(H10=\"IMP\",250,N78)*1000000,0)","v":25000000},{"$f":"MIN(N72:N73)","v":25},{"$f":"VLOOKUP($N$78,$P$68:$Q$74,2,0)","v":20}]
[null,1,{"$f":"C81","v":"Personal"},{"$f":"IFERROR(F79/F81,0)","v":0},{"$f":"D79","v":0},{"$f":"SUMIFS(G$49:G$70,$C$49:$C$70,$C79,$D$49:$D$70,$J79)","v":0},0,0,{"$f":"SUM(F79:H79)","v":0},1,{"$f":"VLOOKUP($B80,$L$49:$Q$65,4,0)","v":{"$error":"#N/A"}}]
[null,null,{"$f":"C81","v":"Personal"},{"$f":"IFERROR(F79/F81,0)","v":0},0,0,0,0,{"$f":"SUM(F80:H80)","v":0},2,{"$f":"VLOOKUP($B81,$L$49:$Q$65,4,0)","v":{"$error":"#N/A"}}]
[null,null,{"$f":"M50","v":"Personal"},{"$f":"IFERROR(VLOOKUP($B79,$L$49:$Q$65,6,0),0)","v":0},0,{"$f":"SUM(F79:F80)","v":0},{"$f":"SUM(G79:G80)","v":0},{"$f":"SUM(H79:H80)","v":0},0,3,{"$f":"VLOOKUP($B79,$L$49:$Q$65,4,0)","v":1}]
[null,2,{"$f":"C84","v":"Equipos"},{"$f":"IFERROR(F82/F84,0)","v":0},0,{"$f":"SUMIFS(G$49:G$70,$C$49:$C$70,$C82,$D$49:$D$70,$J82)","v":0},0,0,0,{"$f":"J79","v":1},{"$f":"VLOOKUP($B83,$L$49:$Q$65,4,0)","v":{"$error":"#N/A"}}]
[null,null,{"$f":"C84","v":"Equipos"},{"$f":"IFERROR(F82/F84,0)","v":0},0,0,0,0,0,{"$f":"J80","v":2},{"$f":"VLOOKUP($B84,$L$49:$Q$65,4,0)","v":{"$error":"#N/A"}}]
[null,null,{"$f":"M51","v":"Equipos"},{"$f":"IFERROR(VLOOKUP($B82,$L$49:$Q$65,6,0),0)","v":0},0,{"$f":"SUM(F82:F83)","v":0},{"$f":"SUM(G82:G83)","v":0},{"$f":"SUM(H82:H83)","v":0},{"$f":"SUM(F84:H84)","v":0},{"$f":"J81","v":3},{"$f":"VLOOKUP($B82,$L$49:$Q$65,4,0)","v":1}]
[null,3,{"$f":"C87","v":"Equipos transformables"},{"$f":"IFERROR(F85/F87,0)","v":0},0,{"$f":"SUMIFS(G$49:G$70,$C$49:$C$70,$C85,$D$49:$D$70,$J85)","v":0},0,0,0,1,{"$f":"VLOOKUP($B86,$L$49:$Q$65,4,0)","v":{"$error":"#N/A"}}]
[null,null,{"$f":"C87","v":"Equipos transformables"},{"$f":"IFERROR(F85/F87,0)","v":0},0,0,0,0,0,2,{"$f":"VLOOKUP($B87,$L$49:$Q$65,4,0)","v":1}]
[null,3,{"$f":"M52","v":"Equipos transformables"},{"$f":"IFERROR(VLOOKUP($B85,$L$49:$Q$65,6,0),0)","v":0},0,{"$f":"SUM(F85:F86)","v":0},{"$f":"SUM(G85:G86)","v":0},{"$f":"SUM(H85:H86)","v":0},{"$f":"SUM(F87:H87)","v":0},3,{"$f":"VLOOKUP($B85,$L$49:$Q$65,4,0)","v":1}]
[null,4,{"$f":"C90","v":"Software"},{"$f":"IFERROR(F88/F90,0)","v":0},0,{"$f":"SUMIFS(G$49:G$70,$C$49:$C$70,$C88,$D$49:$D$70,$J88)","v":0},0,0,0,1,{"$f":"VLOOKUP($B89,$L$49:$Q$65,4,0)","v":{"$error":"#N/A"}}]
[null,null,{"$f":"C90","v":"Software"},{"$f":"IFERROR(F88/F90,0)","v":0},0,0,0,0,0,2,{"$f":"VLOOKUP($B90,$L$49:$Q$65,4,0)","v":1}]
[null,4,{"$f":"M53","v":"Software"},{"$f":"IFERROR(VLOOKUP($B88,$L$49:$Q$65,6,0),0)","v":0},0,{"$f":"SUM(F88:F89)","v":0},{"$f":"SUM(G88:G89)","v":0},{"$f":"SUM(H88:H89)","v":0},{"$f":"SUM(F90:H90)","v":0},3,{"$f":"VLOOKUP($B88,$L$49:$Q$65,4,0)","v":1}]
[null,5,{"$f":"C93","v":"Materiales"},{"$f":"IFERROR(F91/F93,0)","v":0},0,{"$f":"SUMIFS(G$49:G$70,$C$49:$C$70,$C91,$D$49:$D$70,$J91)","v":0},0,0,0,1,{"$f":"VLOOKUP($B92,$L$49:$Q$65,4,0)","v":{"$error":"#N/A"}}]
[null,null,{"$f":"C93","v":"Materiales"},{"$f":"IFERROR(F91/F93,0)","v":0},0,0,0,0,0,2,{"$f":"VLOOKUP($B93,$L$49:$Q$65,4,0)","v":1}]
[null,5,{"$f":"M54","v":"Materiales"},{"$f":"IFERROR(VLOOKUP($B91,$L$49:$Q$65,6,0),0)","v":0},0,{"$f":"SUM(F91:F92)","v":0},{"$f":"SUM(G91:G92)","v":0},{"$f":"SUM(H91:H92)","v":0},{"$f":"SUM(F93:H93)","v":0},3,{"$f":"VLOOKUP($B91,$L$49:$Q$65,4,0)","v":1}]
[null,6,{"$f":"C96","v":"Materiales (Papelería)"},{"$f":"IFERROR(F94/F96,0)","v":0},0,{"$f":"SUMIFS(G$49:G$70,$C$49:$C$70,$C94,$D$49:$D$70,$J94)","v":0},0,0,0,1,{"$f":"VLOOKUP($B95,$L$49:$Q$65,4,0)","v":{"$error":"#N/A"}}]
[null,null,{"$f":"C96","v":"Materiales (Papelería)"},{"$f":"IFERROR(F94/F96,0)","v":0},0,0,0,0,0,2,{"$f":"VLOOKUP($B96,$L$49:$Q$65,4,0)","v":0.01}]
[null,6,{"$f":"M55","v":"Materiales (Papelería)"},{"$f":"IFERROR(VLOOKUP($B94,$L$49:$Q$65,6,0),0)","v":0},0,{"$f":"SUM(F94:F95)","v":0},{"$f":"SUM(G94:G95)","v":0},{"$f":"SUM(H94:H95)","v":0},{"$f":"SUM(F96:H96)","v":0},3,{"$f":"VLOOKUP($B94,$L$49:$Q$65,4,0)","v":0.01}]
[null,7,{"$f":"C99","v":"Salidas de Campo"},{"$f":"IFERROR(F97/F99,0)","v":0},0,{"$f":"SUMIFS(G$49:G$70,$C$49:$C$70,$C97,$D$49:$D$70,$J97)","v":0},0,0,0,1,{"$f":"VLOOKUP($B98,$L$49:$Q$65,4,0)","v":{"$error":"#N/A"}}]
[null,null,{"$f":"C99","v":"Salidas de Campo"},{"$f":"IFERROR(F97/F99,0)","v":0},0,0,0,0,0,2,{"$f":"VLOOKUP($B99,$L$49:$Q$65,4,0)","v":0.1}]
[null,7,{"$f":"M56","v":"Salidas de Campo"},{"$f":"IFERROR(VLOOKUP($B97,$L$49:$Q$65,6,0),0)","v":0},0,{"$f":"SUM(F97:F98)","v":0},{"$f":"SUM(G97:G98)","v":0},{"$f":"SUM(H97:H98)","v":0},{"$f":"SUM(F99:H99)","v":0},3,{"$f":"VLOOKUP($B97,$L$49:$Q$65,4,0)","v":0.1}]
[null,8,{"$f":"C102","v":"Servicios Técnicos"},{"$f":"IFERROR(F100/F102,0)","v":0},0,{"$f":"SUMIFS(G$49:G$70,$C$49:$C$70,$C100,$D$49:$D$70,$J100)","v":0},0,0,0,1,{"$f":"VLOOKUP($B101,$L$49:$Q$65,4,0)","v":{"$error":"#N/A"}}]
[null,null,{"$f":"C102","v":"Servicios Técnicos"},{"$f":"IFERROR(F100/F102,0)","v":0},0,0,0,0,0,2,{"$f":"VLOOKUP($B102,$L$49:$Q$65,4,0)","v":1}]
[null,8,{"$f":"M57","v":"Servicios Técnicos"},{"$f":"IFERROR(VLOOKUP($B100,$L$49:$Q$65,6,0),0)","v":0},0,{"$f":"SUM(F100:F101)","v":0},{"$f":"SUM(G100:G101)","v":0},{"$f":"SUM(H100:H101)","v":0},{"$f":"SUM(F102:H102)","v":0},3,{"$f":"VLOOKUP($B100,$L$49:$Q$65,4,0)","v":1}]
[null,9,{"$f":"C105","v":"Recursos Biblograficos"},{"$f":"IFERROR(F103/F105,0)","v":0},0,{"$f":"SUMIFS(G$49:G$70,$C$49:$C$70,$C103,$D$49:$D$70,$J103)","v":0},0,0,0,1,{"$f":"VLOOKUP($B104,$L$49:$Q$65,4,0)","v":{"$error":"#N/A"}}]
[null,null,{"$f":"C105","v":"Recursos Biblograficos"},{"$f":"IFERROR(F103/F105,0)","v":0},0,0,0,0,0,2,{"$f":"VLOOKUP($B105,$L$49:$Q$65,4,0)","v":1}]
[null,9,{"$f":"M58","v":"Recursos Biblograficos"},{"$f":"IFERROR(VLOOKUP($B103,$L$49:$Q$65,6,0),0)","v":0},0,{"$f":"SUM(F103:F104)","v":0},{"$f":"SUM(G103:G104)","v":0},{"$f":"SUM(H103:H104)","v":0},{"$f":"SUM(F105:H105)","v":0},3,{"$f":"VLOOKUP($B103,$L$49:$Q$65,4,0)","v":1}]
[null,10,{"$f":"C108","v":"Impresos y Publicaciones"},{"$f":"IFERROR(F106/F108,0)","v":0},0,{"$f":"SUMIFS(G$49:G$70,$C$49:$C$70,$C106,$D$49:$D$70,$J106)","v":0},0,0,0,1,{"$f":"VLOOKUP($B107,$L$49:$Q$65,4,0)","v":{"$error":"#N/A"}}]
[null,null,{"$f":"C108","v":"Impresos y Publicaciones"},{"$f":"IFERROR(F106/F108,0)","v":0},0,0,0,0,0,2,{"$f":"VLOOKUP($B108,$L$49:$Q$65,4,0)","v":1}]
[null,10,{"$f":"M59","v":"Impresos y Publicaciones"},{"$f":"IFERROR(VLOOKUP($B106,$L$49:$Q$65,6,0),0)","v":0},0,{"$f":"SUM(F106:F107)","v":0},{"$f":"SUM(G106:G107)","v":0},{"$f":"SUM(H106:H107)","v":0},{"$f":"SUM(F108:H108)","v":0},3,{"$f":"VLOOKUP($B106,$L$49:$Q$65,4,0)","v":1}]
[null,11,{"$f":"C111","v":"Movilidad"},{"$f":"IFERROR(F109/F111,0)","v":0},0,{"$f":"SUMIFS(G$49:G$70,$C$49:$C$70,$C109,$D$49:$D$70,$J109)","v":0},0,0,0,1,{"$f":"VLOOKUP($B110,$L$49:$Q$65,4,0)","v":{"$error":"#N/A"}}]
[null,null,{"$f":"C111","v":"Movilidad"},{"$f":"IFERROR(F109/F111,0)","v":0},0,0,0,0,0,2,{"$f":"VLOOKUP($B111,$L$49:$Q$65,4,0)","v":0.2}]
[null,11,{"$f":"M60","v":"Movilidad"},{"$f":"IFERROR(VLOOKUP($B109,$L$49:$Q$65,6,0),0)","v":0},0,{"$f":"SUM(F109:F110)","v":0},{"$f":"SUM(G109:G110)","v":0},{"$f":"SUM(H109:H110)","v":0},{"$f":"SUM(F111:H111)","v":0},3,{"$f":"VLOOKUP($B109,$L$49:$Q$65,4,0)","v":0.2}]
[null,12,"Viajes",null,null,{"$f":"SUMIFS(G$49:G$70,$C$49:$C$70,$C112,$D$49:$D$70,$J112)","v":0},0,0,0,{"$f":"J111","v":3}]
[null,13,"Mantenimiento",null,null,0,0,0,0,{"$f":"J112","v":3}]
[null,14,"Administración",null,null,0,0,0,0,{"$f":"J113","v":3}]
[null,15,"Construcciones",null,null,0,0,0,0,{"$f":"J114","v":3}]
[null,16,"Otros Gastos",null,null,0,0,0,0,{"$f":"J115","v":3}]
[null,"T1","$ Total General (Año 1)",null,null,{"$f":"SUMIFS(F$79:F$116,$J$79:$J$116,$J117)","v":0},{"$f":"SUMIFS(G$79:G$116,$J$79:$J$116,$J117)","v":0},0,0,{"$f":"J106","v":1}]
[null,"T2","$ Total General (Año 2)",null,null,{"$f":"SUMIFS(F$79:F$116,$J$79:$J$116,$J118)","v":0},0,0,0,{"$f":"J107","v":2}]
[null,"T3",{"$f":"\"TotalesPlan compras  -  (máximo):\"","v":"TotalesPlan compras  -  (máximo):"},null,{"$f":"M78","v":25000000},{"$f":"SUMIFS(F$79:F$116,$J$79:$J$116,$J119)","v":0},0,0,0,{"$f":"J108","v":3}]
[]
[null,"Nombre Institución Externa :",null,null,{"$f":"IF(General!C30=0,\"\",General!C30)","v":""}]
[]
[null,null,null,"Propuesta:",{"$f":"D7","v":0}]
[]
[null,null,"Firma de responsable"]

{"sheet":"Impactos","index":10,"n_rows":39,"n_cols":12,"rows_kept":39,"cut":false,"hidden":false,"merged":[[1,2,2,2]]}
[10,null,null,null,null,null,"*Pueden  Ocultar las Filas que no se utilicen."]
[null,null,"PRESENTACIÓN DE PROYECTOS \nDE INVESTIGACIÓN",{"$f":"General!$H$2","v":"Fecha de Emisión: 2017/02/28"},{"$f":"General!$I$2","v":"IN-IV-F-14"}]
[null,null,null,{"$f":"General!$H$3","v":"Revision N°:\n2"},{"$f":"\"Página \"&$A$1&\" de \"&Dt_TPG","v":"Página 10 de 11"},null,{"$f":"SUM(G7:G3500)","v":1},"<== Total de palabras"]
[]
["14.-","#","Impactos asociados a la propuesta.",null,null,null,"Largo"]
[]
[null,"N°","Impacto","Categoria","Plazo",null,{"$f":"IF(C7=\"\",0,LEN(TRIM(C7))-LEN(SUBSTITUTE(TRIM(C7),\" \",\"\"))+1)","v":1},null,null,"No","Tipo","Duración"]
[null,{"$f":"ROW()-7","v":1},null,null,null,null,{"$f":"IF(C8=\"\",0,LEN(TRIM(C8))-LEN(SUBSTITUTE(TRIM(C8),\" \",\"\"))+1)","v":0},null,null,1,"Fin de la pobreza","Corto (1 año)"]
[null,{"$f":"ROW()-7","v":2},null,null,null,null,0,null,null,{"$f":"J8+1","v":2},"Hambre Cero (0)","Medio (2 años)"]
[null,3,null,null,null,null,0,null,null,{"$f":"J9+1","v":3},"Salud y bienestar","Largo (3 años)"]
[null,4,null,null,null,null,0,null,null,4,"Educación de calidad"]
[null,5,null,null,null,null,0,null,null,5,"Igualdad de genero"]
[null,6,null,null,null,null,0,null,null,6,"Agua limpia y saneamiento"]
[null,7,null,null,null,null,0,null,null,7,"Energía asequible y no contaminante"]
[null,8,null,null,null,null,0,null,null,8,"Trabajo decente y crecimiento económico"]
[null,9,null,null,null,null,0,null,null,9,"Industria, innovación e infraestructura"]
[null,10,null,null,null,null,0,null,null,10,"Reducción de las desigualdades"]
[null,11,null,null,null,null,0,null,null,11,"Ciudades y comunidades sostenibles"]
[null,12,null,null,null,null,0,null,null,12,"Producción y consumo responsables"]
[null,13,null,null,null,null,{"$f":"IF(C20=\"\",0,LEN(TRIM(C20))-LEN(SUBSTITUTE(TRIM(C20),\" \",\"\"))+1)","v":0},null,null,13,"Acción por el clima"]
[null,14,null,null,null,null,0,null,null,14,"Vida submarina"]
[null,15,null,null,null,null,0,null,null,15,"Vida de ecosistemas terrestres"]
[null,16,null,null,null,null,0,null,null,16,"Paz, justicia e instituciones sólidas"]
[null,null,null,null,null,null,null,null,null,17,"Alianzas para lograr los objetivos"]
[null,null,null,null,null,null,null,null,null,18,"Ciencias básicas "]
[null,null,null,null,null,null,null,null,null,{"$f":"J25+1","v":19},"Otros"]
[]
[]
[]
[]
[]
[]
[]
[]
[]
[]
[]
[]
[null,"*Pueden  Ocultar las Filas que no se utilicen."]

{"sheet":"Bibliografía","index":11,"n_rows":39,"n_cols":8,"rows_kept":39,"cut":false,"hidden":false,"merged":[[34,2,34,4],[23,2,23,4],[24,2,24,4],[25,2,25,4],[26,2,26,4],[27,2,27,4],[28,2,28,4],[29,2,29,4],[30,2,30,4],[31,2,31,4],[32,2,32,4],[33,2,33,4],[22,2,22,4],[11,2,11,4],[12,2,12,4],[13,2,13,4],[14,2,14,4],[15,2,15,4],[16,2,16,4],[17,2,17,4],[18,2,18,4],[19,2,19,4],[20,2,20,4],[21,2,21,4],[10,2,10,4],[1,2,2,2],[6,2,6,4],[7,2,7,4],[8,2,8,4],[9,2,9,4]]}
[11,null,null,null,null,null,"*Pueden  Ocultar las Filas que no se utilicen."]
[null,null,"PRESENTACIÓN DE PROYECTOS \nDE INVESTIGACIÓN",{"$f":"General!$H$2","v":"Fecha de Emisión: 2017/02/28"},{"$f":"General!$I$2","v":"IN-IV-F-14"}]
[null,null,null,{"$f":"General!$H$3","v":"Revision N°:\n2"},{"$f":"\"Página \"&$A$1&\" de \"&Dt_TPG","v":"Página 11 de 11"},null,{"$f":"SUM(G7:G3500)","v":0},"<== Total de palabras"]
[]
["15.-","#","Bibliografía de la propuesta.",null,null,null,"Largo"]
[]
[null,{"$f":"ROW()-6","v":1},null,null,null,null,{"$f":"IF(C7=\"\",0,LEN(TRIM(C7))-LEN(SUBSTITUTE(TRIM(C7),\" \",\"\"))+1)","v":0}]
[null,{"$f":"ROW()-6","v":2},null,null,null,null,{"$f":"IF(C8=\"\",0,LEN(TRIM(C8))-LEN(SUBSTITUTE(TRIM(C8),\" \",\"\"))+1)","v":0}]
[null,3,null,null,null,null,0]
[null,4,null,null,null,null,0]
[null,5,null,null,null,null,0]
[null,6,null,null,null,null,0]
[null,7,null,null,null,null,0]
[null,8,null,null,null,null,0]
[null,9,null,null,null,null,0]
[null,10,null,null,null,null,0]
[null,11,null,null,null,null,0]
[null,12,null,null,null,null,0]
[null,13,null,null,null,null,0]
[null,14,null,null,null,null,0]
[null,15,null,null,null,null,0]
[null,16,null,null,null,null,0]
[null,17,null,null,null,null,0]
[null,18,null,null,null,null,0]
[null,19,null,null,null,null,0]
[null,20,null,null,null,null,0]
[null,21,null,null,null,null,0]
[null,22,null,null,null,null,0]
[null,23,null,null,null,null,0]
[null,24,null,null,null,null,0]
[null,25,null,null,null,null,0]
[null,26,null,null,null,null,0]
[null,27,null,null,null,null,0]
[null,28,null,null,null,null,0]
[null,29,null,null,null,null,0]
[]
[]
[]
[null,"*Pueden  Ocultar las Filas que no se utilicen."]